{"text_format":"1","workbook":"xlsx","n_sheets":3,"sheets":["出場ペア データ入力・貼付","採点票(作成画面)","採点票(印刷画面)"],"not_rendered":{"charts":0,"images":7,"macros":1,"external_links":0,"defined_names":2,"comments":0,"pivot_tables":0},"unopened":[],"bounds":{"document_bytes":16777216,"sheet_cells":100000,"rows_first":2000,"rows_last":500,"rows_between":2000,"halvings":0,"cell_chars":16384,"cell_head_chars":4096},"cells_cut":0,"cells_raw":0,"read":"whole","date_system":"1900"}

{"sheet":"出場ペア データ入力・貼付","index":0,"n_rows":313,"n_cols":10,"rows_kept":313,"cut":false,"hidden":false,"merged":[[1,1,1,4],[47,12,47,13]]}
[]
[null,"出場ペア一覧"]
[null,"NO.","ペア名","学校名","NO."]
[null,null,null,null,null,null,{"$f":"IFERROR(FIND(\"・\",C4),\"\")","v":""},{"$f":"IFERROR(LEFT(C4,(G4-1)),\"\")","v":""},{"$f":"IFERROR(MID(C4,(G4+1),99),\"\")","v":""},{"$f":"SUBSTITUTE(SUBSTITUTE(D4,\"(\",\"\"),\")\",\"\")","v":""}]
[null,null,null,null,null,null,{"$f":"IFERROR(FIND(\"・\",C5),\"\")","v":""},{"$f":"IFERROR(LEFT(C5,(G5-1)),\"\")","v":""},{"$f":"IFERROR(MID(C5,(G5+1),99),\"\")","v":""},{"$f":"SUBSTITUTE(SUBSTITUTE(D5,\"(\",\"\"),\")\",\"\")","v":""}]
[null,null,null,null,null,null,{"$f":"IFERROR(FIND(\"・\",C6),\"\")","v":""},{"$f":"IFERROR(LEFT(C6,(G6-1)),\"\")","v":""},{"$f":"IFERROR(MID(C6,(G6+1),99),\"\")","v":""},{"$f":"SUBSTITUTE(SUBSTITUTE(D6,\"(\",\"\"),\")\",\"\")","v":""}]
[null,null,null,null,null,null,"","","",""]
[null,null,null,null,null,null,"","","",""]
[null,null,null,null,null,null,"","","",""]
[null,null,null,null,null,null,"","","",""]
[null,null,null,null,null,null,"","","",""]
[null,null,null,null,null,null,"","","",""]
[null,null,null,null,null,null,"","","",""]
[null,null,null,null,null,null,"","","",""]
[null,null,null,null,null,null,"","","",""]
[null,null,null,null,null,null,"","","",""]
[null,null,null,null,null,null,"","","",""]
[null,null,null,null,null,null,"","","",""]
[null,null,null,null,null,null,"","","",""]
[null,null,null,null,null,null,"","","",""]
[null,null,null,null,null,null,"","","",""]
[null,null,null,null,null,null,"","","",""]
[null,null,null,null,null,null,"","","",""]
[null,null,null,null,null,null,"","","",""]
[null,null,null,null,null,null,"","","",""]
[null,null,null,null,null,null,"","","",""]
[null,null,null,null,null,null,"","","",""]
[null,null,null,null,null,null,"","","",""]
[null,null,null,null,null,null,"","","",""]
[null,null,null,null,null,null,"","","",""]
[null,null,null,null,null,null,"","","",""]
[null,null,null,null,null,null,"","","",""]
[null,null,null,null,null,null,"","","",""]
[null,null,null,null,null,null,"","","",""]
[null,null,null,null,null,null,"","","",""]
[null,null,null,null,null,null,"","","",""]
[null,null,null,null,null,null,"","","",""]
[null,null,null,null,null,null,"","","",""]
[null,null,null,null,null,null,"","","",""]
[null,null,null,null,null,null,"","","",""]
[null,null,null,null,null,null,"","","",""]
[null,null,null,null,null,null,"","","",""]
[null,null,null,null,null,null,"","","",""]
[null,null,null,null,null,null,"","","",""]
[null,null,null,null,null,null,"","","",""]
[null,null,null,null,null,null,"","","",""]
[null,null,null,null,null,null,"","","",""]
[null,null,null,null,null,null,"","","",""]
[null,null,null,null,null,null,"","","",""]
[null,null,null,null,null,null,"","","",""]
[null,null,null,null,null,null,"","","",""]
[null,null,null,null,null,null,"","","",""]
[null,null,null,null,null,null,"","","",""]
[null,null,null,null,null,null,"","","",""]
[null,null,null,null,null,null,"","","",""]
[null,null,null,null,null,null,"","","",""]
[null,null,null,null,null,null,"","","",""]
[null,null,null,null,null,null,"","","",""]
[null,null,null,null,null,null,"","","",""]
[null,null,null,null,null,null,"","","",""]
[null,null,null,null,null,null,"","","",""]
[null,null,null,null,null,null,"","","",""]
[null,null,null,null,null,null,"","","",""]
[null,null,null,null,null,null,"","","",""]
[null,null,null,null,null,null,"","","",""]
[null,null,null,null,null,null,"","","",""]
[null,null,null,null,null,null,"","","",""]
[null,null,null,null,null,null,"","","",""]
[null,null,null,null,null,null,"","","",""]
[null,null,null,null,null,null,{"$f":"IFERROR(FIND(\"・\",C70),\"\")","v":""},{"$f":"IFERROR(LEFT(C70,(G70-1)),\"\")","v":""},{"$f":"IFERROR(MID(C70,(G70+1),99),\"\")","v":""},{"$f":"SUBSTITUTE(SUBSTITUTE(D70,\"(\",\"\"),\")\",\"\")","v":""}]
[null,null,null,null,null,null,"","","",""]
[null,null,null,null,null,null,"","","",""]
[null,null,null,null,null,null,"","","",""]
[null,null,null,null,null,null,"","","",""]
[null,null,null,null,null,null,"","","",""]
[null,null,null,null,null,null,"","","",""]
[null,null,null,null,null,null,"","","",""]
[null,null,null,null,null,null,"","","",""]
[null,null,null,null,null,null,"","","",""]
[null,null,null,null,null,null,"","","",""]
[null,null,null,null,null,null,"","","",""]
[null,null,null,null,null,null,"","","",""]
[null,null,null,null,null,null,"","","",""]
[null,null,null,null,null,null,"","","",""]
[null,null,null,null,null,null,"","","",""]
[null,null,null,null,null,null,"","","",""]
[null,null,null,null,null,null,"","","",""]
[null,null,null,null,null,null,"","","",""]
[null,null,null,null,null,null,"","","",""]
[null,null,null,null,null,null,"","","",""]
[null,null,null,null,null,null,"","","",""]
[null,null,null,null,null,null,"","","",""]
[null,null,null,null,null,null,"","","",""]
[null,null,null,null,null,null,"","","",""]
[null,null,null,null,null,null,"","","",""]
[null,null,null,null,null,null,"","","",""]
[null,null,null,null,null,null,"","","",""]
[null,null,null,null,null,null,"","","",""]
[null,null,null,null,null,null,"","","",""]
[null,null,null,null,null,null,"","","",""]
[null,null,null,null,null,null,"","","",""]
[null,null,null,null,null,null,"","","",""]
[null,null,null,null,null,null,"","","",""]
[null,null,null,null,null,null,"","","",""]
[null,null,null,null,null,null,"","","",""]
[null,null,null,null,null,null,"","","",""]
[null,null,null,null,null,null,"","","",""]
[null,null,null,null,null,null,"","","",""]
[null,null,null,null,null,null,"","","",""]
[null,null,null,null,null,null,"","","",""]
[null,null,null,null,null,null,"","","",""]
[null,null,null,null,null,null,"","","",""]
[null,null,null,null,null,null,"","","",""]
[null,null,null,null,null,null,"","","",""]
[null,null,null,null,null,null,"","","",""]
[null,null,null,null,null,null,"","","",""]
[null,null,null,null,null,null,"","","",""]
[null,null,null,null,null,null,"","","",""]
[null,null,null,null,null,null,"","","",""]
[null,null,null,null,null,null,"","","",""]
[null,null,null,null,null,null,"","","",""]
[null,null,null,null,null,null,"","","",""]
[null,null,null,null,null,null,"","","",""]
[null,null,null,null,null,null,"","","",""]
[null,null,null,null,null,null,"","","",""]
[null,null,null,null,null,null,"","","",""]
[null,null,null,null,null,null,"","","",""]
[null,null,null,null,null,null,"","","",""]
[null,null,null,null,null,null,"","","",""]
[null,null,null,null,null,null,"","","",""]
[null,null,null,null,null,null,"","","",""]
[null,null,null,null,null,null,"","","",""]
[null,null,null,null,null,null,"","","",""]
[null,null,null,null,null,null,{"$f":"IFERROR(FIND(\"・\",C134),\"\")","v":""},{"$f":"IFERROR(LEFT(C134,(G134-1)),\"\")","v":""},{"$f":"IFERROR(MID(C134,(G134+1),99),\"\")","v":""},{"$f":"SUBSTITUTE(SUBSTITUTE(D134,\"(\",\"\"),\")\",\"\")","v":""}]
[null,null,null,null,null,null,"","","",""]
[null,null,null,null,null,null,"","","",""]
[null,null,null,null,null,null,"","","",""]
[null,null,null,null,null,null,"","","",""]
[null,null,null,null,null,null,"","","",""]
[null,null,null,null,null,null,"","","",""]
[null,null,null,null,null,null,"","","",""]
[null,null,null,null,null,null,"","","",""]
[null,null,null,null,null,null,"","","",""]
[null,null,null,null,null,null,"","","",""]
[null,null,null,null,null,null,"","","",""]
[null,null,null,null,null,null,"","","",""]
[null,null,null,null,null,null,"","","",""]
[null,null,null,null,null,null,"","","",""]
[null,null,null,null,null,null,"","","",""]
[null,null,null,null,null,null,"","","",""]
[null,null,null,null,null,null,"","","",""]
[null,null,null,null,null,null,"","","",""]
[null,null,null,null,null,null,"","","",""]
[null,null,null,null,null,null,"","","",""]
[null,null,null,null,null,null,"","","",""]
[null,null,null,null,null,null,"","","",""]
[null,null,null,null,null,null,"","","",""]
[null,null,null,null,null,null,"","","",""]
[null,null,null,null,null,null,"","","",""]
[null,null,null,null,null,null,"","","",""]
[null,null,null,null,null,null,"","","",""]
[null,null,null,null,null,null,"","","",""]
[null,null,null,null,null,null,"","","",""]
[null,null,null,null,null,null,"","","",""]
[null,null,null,null,null,null,"","","",""]
[null,null,null,null,null,null,"","","",""]
[null,null,null,null,null,null,"","","",""]
[null,null,null,null,null,null,"","","",""]
[null,null,null,null,null,null,"","","",""]
[null,null,null,null,null,null,"","","",""]
[null,null,null,null,null,null,"","","",""]
[null,null,null,null,null,null,"","","",""]
[null,null,null,null,null,null,"","","",""]
[null,null,null,null,null,null,"","","",""]
[null,null,null,null,null,null,"","","",""]
[null,null,null,null,null,null,"","","",""]
[null,null,null,null,null,null,"","","",""]
[null,null,null,null,null,null,"","","",""]
[null,null,null,null,null,null,"","","",""]
[null,null,null,null,null,null,"","","",""]
[null,null,null,null,null,null,"","","",""]
[null,null,null,null,null,null,"","","",""]
[null,null,null,null,null,null,"","","",""]
[null,null,null,null,null,null,"","","",""]
[null,null,null,null,null,null,"","","",""]
[null,null,null,null,null,null,"","","",""]
[null,null,null,null,null,null,"","","",""]
[null,null,null,null,null,null,"","","",""]
[null,null,null,null,null,null,"","","",""]
[null,null,null,null,null,null,"","","",""]
[null,null,null,null,null,null,"","","",""]
[null,null,null,null,null,null,"","","",""]
[null,null,null,null,null,null,"","","",""]
[null,null,null,null,null,null,"","","",""]
[null,null,null,null,null,null,"","","",""]
[null,null,null,null,null,null,"","","",""]
[null,null,null,null,null,null,"","","",""]
[null,null,null,null,null,null,{"$f":"IFERROR(FIND(\"・\",C198),\"\")","v":""},{"$f":"IFERROR(LEFT(C198,(G198-1)),\"\")","v":""},{"$f":"IFERROR(MID(C198,(G198+1),99),\"\")","v":""},{"$f":"SUBSTITUTE(SUBSTITUTE(D198,\"(\",\"\"),\")\",\"\")","v":""}]
[null,null,null,null,null,null,"","","",""]
[null,null,null,null,null,null,"","","",""]
[null,null,null,null,null,null,"","","",""]
[null,null,null,null,null,null,"","","",""]
[null,null,null,null,null,null,"","","",""]
[null,null,null,null,null,null,"","","",""]
[null,null,null,null,null,null,"","","",""]
[null,null,null,null,null,null,"","","",""]
[null,null,null,null,null,null,"","","",""]
[null,null,null,null,null,null,"","","",""]
[null,null,null,null,null,null,"","","",""]
[null,null,null,null,null,null,"","","",""]
[null,null,null,null,null,null,"","","",""]
[null,null,null,null,null,null,"","","",""]
[null,null,null,null,null,null,"","","",""]
[null,null,null,null,null,null,"","","",""]
[null,null,null,null,null,null,"","","",""]
[null,null,null,null,null,null,"","","",""]
[null,null,null,null,null,null,"","","",""]
[null,null,null,null,null,null,"","","",""]
[null,null,null,null,null,null,"","","",""]
[null,null,null,null,null,null,"","","",""]
[null,null,null,null,null,null,"","","",""]
[null,null,null,null,null,null,"","","",""]
[null,null,null,null,null,null,"","","",""]
[null,null,null,null,null,null,"","","",""]
[null,null,null,null,null,null,"","","",""]
[null,null,null,null,null,null,"","","",""]
[null,null,null,null,null,null,"","","",""]
[null,null,null,null,null,null,"","","",""]
[null,null,null,null,null,null,"","","",""]
[null,null,null,null,null,null,"","","",""]
[null,null,null,null,null,null,"","","",""]
[null,null,null,null,null,null,"","","",""]
[null,null,null,null,null,null,"","","",""]
[null,null,null,null,null,null,"","","",""]
[null,null,null,null,null,null,"","","",""]
[null,null,null,null,null,null,"","","",""]
[null,null,null,null,null,null,"","","",""]
[null,null,null,null,null,null,"","","",""]
[null,null,null,null,null,null,"","","",""]
[null,null,null,null,null,null,"","","",""]
[null,null,null,null,null,null,"","","",""]
[null,null,null,null,null,null,"","","",""]
[null,null,null,null,null,null,"","","",""]
[null,null,null,null,null,null,"","","",""]
[null,null,null,null,null,null,"","","",""]
[null,null,null,null,null,null,"","","",""]
[null,null,null,null,null,null,"","","",""]
[null,null,null,null,null,null,"","","",""]
[null,null,null,null,null,null,"","","",""]
[null,null,null,null,null,null,"","","",""]
[null,null,null,null,null,null,"","","",""]
[null,null,null,null,null,null,"","","",""]
[null,null,null,null,null,null,"","","",""]
[null,null,null,null,null,null,"","","",""]
[null,null,null,null,null,null,"","","",""]
[null,null,null,null,null,null,"","","",""]
[null,null,null,null,null,null,"","","",""]
[null,null,null,null,null,null,"","","",""]
[null,null,null,null,null,null,"","","",""]
[null,null,null,null,null,null,"","","",""]
[null,null,null,null,null,null,"","","",""]
[null,null,null,null,null,null,{"$f":"IFERROR(FIND(\"・\",C262),\"\")","v":""},{"$f":"IFERROR(LEFT(C262,(G262-1)),\"\")","v":""},{"$f":"IFERROR(MID(C262,(G262+1),99),\"\")","v":""},{"$f":"SUBSTITUTE(SUBSTITUTE(D262,\"(\",\"\"),\")\",\"\")","v":""}]
[null,null,null,null,null,null,"","","",""]
[null,null,null,null,null,null,"","","",""]
[null,null,null,null,null,null,"","","",""]
[null,null,null,null,null,null,"","","",""]
[null,null,null,null,null,null,"","","",""]
[null,null,null,null,null,null,"","","",""]
[null,null,null,null,null,null,"","","",""]
[null,null,null,null,null,null,"","","",""]
[null,null,null,null,null,null,"","","",""]
[null,null,null,null,null,null,"","","",""]
[null,null,null,null,null,null,"","","",""]
[null,null,null,null,null,null,"","","",""]
[null,null,null,null,null,null,"","","",""]
[null,null,null,null,null,null,"","","",""]
[null,null,null,null,null,null,"","","",""]
[null,null,null,null,null,null,"","","",""]
[null,null,null,null,null,null,"","","",""]
[null,null,null,null,null,null,"","","",""]
[null,null,null,null,null,null,"","","",""]
[null,null,null,null,null,null,"","","",""]
[null,null,null,null,null,null,"","","",""]
[null,null,null,null,null,null,"","","",""]
[null,null,null,null,null,null,"","","",""]
[null,null,null,null,null,null,"","","",""]
[null,null,null,null,null,null,"","","",""]
[null,null,null,null,null,null,"","","",""]
[null,null,null,null,null,null,"","","",""]
[null,null,null,null,null,null,"","","",""]
[null,null,null,null,null,null,"","","",""]
[null,null,null,null,null,null,"","","",""]
[null,null,null,null,null,null,"","","",""]
[null,null,null,null,null,null,"","","",""]
[null,null,null,null,null,null,"","","",""]
[null,null,null,null,null,null,"","","",""]
[null,null,null,null,null,null,"","","",""]
[null,null,null,null,null,null,"","","",""]
[null,null,null,null,null,null,"","","",""]
[null,null,null,null,null,null,"","","",""]
[null,null,null,null,null,null,"","","",""]
[null,null,null,null,null,null,"","","",""]
[null,null,null,null,null,null,"","","",""]
[null,null,null,null,null,null,"","","",""]
[null,null,null,null,null,null,"","","",""]
[null,null,null,null,null,null,"","","",""]
[null,null,null,null,null,null,"","","",""]
[null,null,null,null,null,null,"","","",""]
[null,null,null,null,null,null,"","","",""]
[null,null,null,null,null,null,"","","",""]
[null,null,null,null,null,null,"","","",""]
[null,null,null,null,null,null,"","","",""]
[null,null,null,null,null,null,"","","",""]

{"sheet":"採点票(作成画面)","index":1,"n_rows":314,"n_cols":28,"rows_kept":314,"cut":false,"hidden":false,"merged":[[0,0,1,1],[3,3,3,4],[19,3,19,4],[14,3,14,4],[15,3,15,4],[16,3,16,4],[17,3,17,4],[18,3,18,4],[9,3,9,4],[10,3,10,4],[11,3,11,4],[12,3,12,4],[13,3,13,4],[4,3,4,4],[5,3,5,4],[6,3,6,4],[7,3,7,4],[8,3,8,4],[75,5,75,13],[37,1,38,3],[37,4,38,4],[37,5,37,12],[22,4,35,4],[57,5,57,13],[58,4,71,4],[73,1,74,3],[73,4,74,4],[73,5,73,12],[130,4,143,4],[111,5,111,13],[112,4,125,4],[127,1,128,3],[127,4,128,4],[127,5,127,12],[129,5,129,13],[2,20,3,20],[0,2,1,4],[109,1,110,3],[109,4,110,4],[109,5,109,12],[91,1,92,3],[91,4,92,4],[91,5,91,12],[93,5,93,13],[94,4,107,4],[76,4,89,4],[39,5,39,13],[40,4,53,4],[55,1,56,3],[55,4,56,4],[55,5,55,12]]}
[null,null,"←【男女】選択"]
[]
[null,null,null,null,null,null,null,null,null,null,null,null,null,null,null,null,null,null,null,null,"審判\nNO.\n(入力)"]
[null,null,"コート番号\n（入力）","対戦時点\n(選択)",null,"NO.\n(入力)",null,null,null,null,null,null,null,"NO.\n(入力)",null,null,null,null,null,null,null,null,null,null,"プロNO","選手A","選手B","学校名"]
[null,1,null,null,null,null,{"$f":"IFERROR(VLOOKUP(F5,$Y$5:$AB$314,2,FALSE),\"\")","v":""},"・",{"$f":"IFERROR(VLOOKUP(F5,$Y$5:$AB$314,3,FALSE),\"\")","v":""},"（",{"$f":"IFERROR(VLOOKUP(F5,$Y$5:$AB$314,4,FALSE),\"\")","v":""},"）","－",null,{"$f":"IFERROR(VLOOKUP(N5,$Y$5:$AB$314,2,FALSE),\"\")","v":""},"・",{"$f":"IFERROR(VLOOKUP(N5,$Y$5:$AB$314,3,FALSE),\"\")","v":""},"（",{"$f":"IFERROR(VLOOKUP(N5,$Y$5:$AB$314,4,FALSE),\"\")","v":""},"）",null,{"$f":"IFERROR(VLOOKUP(U5,$Y$5:$AB$314,4,FALSE),\"\")","v":""},null,null,{"$f":"IF('出場ペア データ入力・貼付'!B4&'出場ペア データ入力・貼付'!E4=\"\",\"\",IF('出場ペア データ入力・貼付'!E4<>\"\",'出場ペア データ入力・貼付'!E4,'出場ペア データ入力・貼付'!B4))","v":""},{"$f":"IFERROR('出場ペア データ入力・貼付'!H4,\"\")","v":""},{"$f":"IFERROR('出場ペア データ入力・貼付'!I4,\"\")","v":""},{"$f":"IFERROR('出場ペア データ入力・貼付'!J4,\"\")","v":""}]
[null,2,null,null,null,null,{"$f":"IFERROR(VLOOKUP(F6,$Y$5:$AB$314,2,FALSE),\"\")","v":""},"・",{"$f":"IFERROR(VLOOKUP(F6,$Y$5:$AB$314,3,FALSE),\"\")","v":""},"（",{"$f":"IFERROR(VLOOKUP(F6,$Y$5:$AB$314,4,FALSE),\"\")","v":""},"）","－",null,{"$f":"IFERROR(VLOOKUP(N6,$Y$5:$AB$314,2,FALSE),\"\")","v":""},"・",{"$f":"IFERROR(VLOOKUP(N6,$Y$5:$AB$314,3,FALSE),\"\")","v":""},"（",{"$f":"IFERROR(VLOOKUP(N6,$Y$5:$AB$314,4,FALSE),\"\")","v":""},"）",null,{"$f":"IFERROR(VLOOKUP(U6,$Y$5:$AB$314,4,FALSE),\"\")","v":""},null,null,{"$f":"IF('出場ペア データ入力・貼付'!B5&'出場ペア データ入力・貼付'!E5=\"\",\"\",IF('出場ペア データ入力・貼付'!E5<>\"\",'出場ペア データ入力・貼付'!E5,'出場ペア データ入力・貼付'!B5))","v":""},{"$f":"IFERROR('出場ペア データ入力・貼付'!H5,\"\")","v":""},{"$f":"IFERROR('出場ペア データ入力・貼付'!I5,\"\")","v":""},{"$f":"IFERROR('出場ペア データ入力・貼付'!J5,\"\")","v":""}]
[null,3,null,null,null,null,"","・","","（","","）","－",null,"","・","","（","","）",null,"",null,null,{"$f":"IF('出場ペア データ入力・貼付'!B6&'出場ペア データ入力・貼付'!E6=\"\",\"\",IF('出場ペア データ入力・貼付'!E6<>\"\",'出場ペア データ入力・貼付'!E6,'出場ペア データ入力・貼付'!B6))","v":""},{"$f":"IFERROR('出場ペア データ入力・貼付'!H6,\"\")","v":""},{"$f":"IFERROR('出場ペア データ入力・貼付'!I6,\"\")","v":""},{"$f":"IFERROR('出場ペア データ入力・貼付'!J6,\"\")","v":""}]
[null,4,null,null,null,null,"","・","","（","","）","－",null,"","・","","（","","）",null,"",null,null,{"$f":"IF('出場ペア データ入力・貼付'!B7&'出場ペア データ入力・貼付'!E7=\"\",\"\",IF('出場ペア データ入力・貼付'!E7<>\"\",'出場ペア データ入力・貼付'!E7,'出場ペア データ入力・貼付'!B7))","v":""},{"$f":"IFERROR('出場ペア データ入力・貼付'!H7,\"\")","v":""},{"$f":"IFERROR('出場ペア データ入力・貼付'!I7,\"\")","v":""},{"$f":"IFERROR('出場ペア データ入力・貼付'!J7,\"\")","v":""}]
[null,5,null,null,null,null,"","・","","（","","）","－",null,"","・","","（","","）",null,"",null,null,{"$f":"IF('出場ペア データ入力・貼付'!B8&'出場ペア データ入力・貼付'!E8=\"\",\"\",IF('出場ペア データ入力・貼付'!E8<>\"\",'出場ペア データ入力・貼付'!E8,'出場ペア データ入力・貼付'!B8))","v":""},{"$f":"IFERROR('出場ペア データ入力・貼付'!H8,\"\")","v":""},{"$f":"IFERROR('出場ペア データ入力・貼付'!I8,\"\")","v":""},{"$f":"IFERROR('出場ペア データ入力・貼付'!J8,\"\")","v":""}]
[null,6,null,null,null,null,"","・","","（","","）","－",null,"","・","","（","","）",null,"",null,null,{"$f":"IF('出場ペア データ入力・貼付'!B9&'出場ペア データ入力・貼付'!E9=\"\",\"\",IF('出場ペア データ入力・貼付'!E9<>\"\",'出場ペア データ入力・貼付'!E9,'出場ペア データ入力・貼付'!B9))","v":""},{"$f":"IFERROR('出場ペア データ入力・貼付'!H9,\"\")","v":""},{"$f":"IFERROR('出場ペア データ入力・貼付'!I9,\"\")","v":""},{"$f":"IFERROR('出場ペア データ入力・貼付'!J9,\"\")","v":""}]
[null,7,null,null,null,null,"","・","","（","","）","－",null,"","・","","（","","）",null,"",null,null,{"$f":"IF('出場ペア データ入力・貼付'!B10&'出場ペア データ入力・貼付'!E10=\"\",\"\",IF('出場ペア データ入力・貼付'!E10<>\"\",'出場ペア データ入力・貼付'!E10,'出場ペア データ入力・貼付'!B10))","v":""},{"$f":"IFERROR('出場ペア データ入力・貼付'!H10,\"\")","v":""},{"$f":"IFERROR('出場ペア データ入力・貼付'!I10,\"\")","v":""},{"$f":"IFERROR('出場ペア データ入力・貼付'!J10,\"\")","v":""}]
[null,8,null,null,null,null,"","・","","（","","）","－",null,"","・","","（","","）",null,"",null,null,{"$f":"IF('出場ペア データ入力・貼付'!B11&'出場ペア データ入力・貼付'!E11=\"\",\"\",IF('出場ペア データ入力・貼付'!E11<>\"\",'出場ペア データ入力・貼付'!E11,'出場ペア データ入力・貼付'!B11))","v":""},{"$f":"IFERROR('出場ペア データ入力・貼付'!H11,\"\")","v":""},{"$f":"IFERROR('出場ペア データ入力・貼付'!I11,\"\")","v":""},{"$f":"IFERROR('出場ペア データ入力・貼付'!J11,\"\")","v":""}]
[null,9,null,null,null,null,"","・","","（","","）","－",null,"","・","","（","","）",null,"",null,null,{"$f":"IF('出場ペア データ入力・貼付'!B12&'出場ペア データ入力・貼付'!E12=\"\",\"\",IF('出場ペア データ入力・貼付'!E12<>\"\",'出場ペア データ入力・貼付'!E12,'出場ペア データ入力・貼付'!B12))","v":""},{"$f":"IFERROR('出場ペア データ入力・貼付'!H12,\"\")","v":""},{"$f":"IFERROR('出場ペア データ入力・貼付'!I12,\"\")","v":""},{"$f":"IFERROR('出場ペア データ入力・貼付'!J12,\"\")","v":""}]
[null,10,null,null,null,null,"","・","","（","","）","－",null,"","・","","（","","）",null,"",null,null,{"$f":"IF('出場ペア データ入力・貼付'!B13&'出場ペア データ入力・貼付'!E13=\"\",\"\",IF('出場ペア データ入力・貼付'!E13<>\"\",'出場ペア データ入力・貼付'!E13,'出場ペア データ入力・貼付'!B13))","v":""},{"$f":"IFERROR('出場ペア データ入力・貼付'!H13,\"\")","v":""},{"$f":"IFERROR('出場ペア データ入力・貼付'!I13,\"\")","v":""},{"$f":"IFERROR('出場ペア データ入力・貼付'!J13,\"\")","v":""}]
[null,11,null,null,null,null,"","・","","（","","）","－",null,"","・","","（","","）",null,"",null,null,{"$f":"IF('出場ペア データ入力・貼付'!B14&'出場ペア データ入力・貼付'!E14=\"\",\"\",IF('出場ペア データ入力・貼付'!E14<>\"\",'出場ペア データ入力・貼付'!E14,'出場ペア データ入力・貼付'!B14))","v":""},{"$f":"IFERROR('出場ペア データ入力・貼付'!H14,\"\")","v":""},{"$f":"IFERROR('出場ペア データ入力・貼付'!I14,\"\")","v":""},{"$f":"IFERROR('出場ペア データ入力・貼付'!J14,\"\")","v":""}]
[null,12,null,null,null,null,"","・","","（","","）","－",null,"","・","","（","","）",null,"",null,null,{"$f":"IF('出場ペア データ入力・貼付'!B15&'出場ペア データ入力・貼付'!E15=\"\",\"\",IF('出場ペア データ入力・貼付'!E15<>\"\",'出場ペア データ入力・貼付'!E15,'出場ペア データ入力・貼付'!B15))","v":""},{"$f":"IFERROR('出場ペア データ入力・貼付'!H15,\"\")","v":""},{"$f":"IFERROR('出場ペア データ入力・貼付'!I15,\"\")","v":""},{"$f":"IFERROR('出場ペア データ入力・貼付'!J15,\"\")","v":""}]
[null,13,null,null,null,null,"","・","","（","","）","－",null,"","・","","（","","）",null,"",null,null,{"$f":"IF('出場ペア データ入力・貼付'!B16&'出場ペア データ入力・貼付'!E16=\"\",\"\",IF('出場ペア データ入力・貼付'!E16<>\"\",'出場ペア データ入力・貼付'!E16,'出場ペア データ入力・貼付'!B16))","v":""},{"$f":"IFERROR('出場ペア データ入力・貼付'!H16,\"\")","v":""},{"$f":"IFERROR('出場ペア データ入力・貼付'!I16,\"\")","v":""},{"$f":"IFERROR('出場ペア データ入力・貼付'!J16,\"\")","v":""}]
[null,14,null,null,null,null,"","・","","（","","）","－",null,"","・","","（","","）",null,"",null,null,{"$f":"IF('出場ペア データ入力・貼付'!B17&'出場ペア データ入力・貼付'!E17=\"\",\"\",IF('出場ペア データ入力・貼付'!E17<>\"\",'出場ペア データ入力・貼付'!E17,'出場ペア データ入力・貼付'!B17))","v":""},{"$f":"IFERROR('出場ペア データ入力・貼付'!H17,\"\")","v":""},{"$f":"IFERROR('出場ペア データ入力・貼付'!I17,\"\")","v":""},{"$f":"IFERROR('出場ペア データ入力・貼付'!J17,\"\")","v":""}]
[null,15,null,null,null,null,"","・","","（","","）","－",null,"","・","","（","","）",null,"",null,null,{"$f":"IF('出場ペア データ入力・貼付'!B18&'出場ペア データ入力・貼付'!E18=\"\",\"\",IF('出場ペア データ入力・貼付'!E18<>\"\",'出場ペア データ入力・貼付'!E18,'出場ペア データ入力・貼付'!B18))","v":""},{"$f":"IFERROR('出場ペア データ入力・貼付'!H18,\"\")","v":""},{"$f":"IFERROR('出場ペア データ入力・貼付'!I18,\"\")","v":""},{"$f":"IFERROR('出場ペア データ入力・貼付'!J18,\"\")","v":""}]
[null,16,null,null,null,null,"","・","","（","","）","－",null,"","・","","（","","）",null,"",null,null,{"$f":"IF('出場ペア データ入力・貼付'!B19&'出場ペア データ入力・貼付'!E19=\"\",\"\",IF('出場ペア データ入力・貼付'!E19<>\"\",'出場ペア データ入力・貼付'!E19,'出場ペア データ入力・貼付'!B19))","v":""},{"$f":"IFERROR('出場ペア データ入力・貼付'!H19,\"\")","v":""},{"$f":"IFERROR('出場ペア データ入力・貼付'!I19,\"\")","v":""},{"$f":"IFERROR('出場ペア データ入力・貼付'!J19,\"\")","v":""}]
[null,null,null,null,null,null,null,null,null,null,null,null,null,null,null,null,null,null,null,null,null,null,null,null,{"$f":"IF('出場ペア データ入力・貼付'!B20&'出場ペア データ入力・貼付'!E20=\"\",\"\",IF('出場ペア データ入力・貼付'!E20<>\"\",'出場ペア データ入力・貼付'!E20,'出場ペア データ入力・貼付'!B20))","v":""},{"$f":"IFERROR('出場ペア データ入力・貼付'!H20,\"\")","v":""},{"$f":"IFERROR('出場ペア データ入力・貼付'!I20,\"\")","v":""},{"$f":"IFERROR('出場ペア データ入力・貼付'!J20,\"\")","v":""}]
[null,null,null,null,null,null,null,null,null,null,null,null,null,null,null,null,null,null,null,null,null,null,null,null,{"$f":"IF('出場ペア データ入力・貼付'!B21&'出場ペア データ入力・貼付'!E21=\"\",\"\",IF('出場ペア データ入力・貼付'!E21<>\"\",'出場ペア データ入力・貼付'!E21,'出場ペア データ入力・貼付'!B21))","v":""},{"$f":"IFERROR('出場ペア データ入力・貼付'!H21,\"\")","v":""},{"$f":"IFERROR('出場ペア データ入力・貼付'!I21,\"\")","v":""},{"$f":"IFERROR('出場ペア データ入力・貼付'!J21,\"\")","v":""}]
[null,null,null,null,null,null,null,null,null,null,null,null,null,null,null,null,null,null,null,null,null,null,null,null,{"$f":"IF('出場ペア データ入力・貼付'!B22&'出場ペア データ入力・貼付'!E22=\"\",\"\",IF('出場ペア データ入力・貼付'!E22<>\"\",'出場ペア データ入力・貼付'!E22,'出場ペア データ入力・貼付'!B22))","v":""},{"$f":"IFERROR('出場ペア データ入力・貼付'!H22,\"\")","v":""},{"$f":"IFERROR('出場ペア データ入力・貼付'!I22,\"\")","v":""},{"$f":"IFERROR('出場ペア データ入力・貼付'!J22,\"\")","v":""}]
[null,null,null,null,null,null,null,null,null,null,null,null,null,null,null,null,null,null,null,null,null,null,null,null,{"$f":"IF('出場ペア データ入力・貼付'!B23&'出場ペア データ入力・貼付'!E23=\"\",\"\",IF('出場ペア データ入力・貼付'!E23<>\"\",'出場ペア データ入力・貼付'!E23,'出場ペア データ入力・貼付'!B23))","v":""},{"$f":"IFERROR('出場ペア データ入力・貼付'!H23,\"\")","v":""},{"$f":"IFERROR('出場ペア データ入力・貼付'!I23,\"\")","v":""},{"$f":"IFERROR('出場ペア データ入力・貼付'!J23,\"\")","v":""}]
[null,null,null,null,null,null,null,null,null,null,null,null,null,null,null,null,null,null,null,null,null,null,null,null,{"$f":"IF('出場ペア データ入力・貼付'!B24&'出場ペア データ入力・貼付'!E24=\"\",\"\",IF('出場ペア データ入力・貼付'!E24<>\"\",'出場ペア データ入力・貼付'!E24,'出場ペア データ入力・貼付'!B24))","v":""},{"$f":"IFERROR('出場ペア データ入力・貼付'!H24,\"\")","v":""},{"$f":"IFERROR('出場ペア データ入力・貼付'!I24,\"\")","v":""},{"$f":"IFERROR('出場ペア データ入力・貼付'!J24,\"\")","v":""}]
[null,null,null,null,null,null,null,null,null,null,null,null,null,null,null,null,null,null,null,null,null,null,null,null,{"$f":"IF('出場ペア データ入力・貼付'!B25&'出場ペア データ入力・貼付'!E25=\"\",\"\",IF('出場ペア データ入力・貼付'!E25<>\"\",'出場ペア データ入力・貼付'!E25,'出場ペア データ入力・貼付'!B25))","v":""},{"$f":"IFERROR('出場ペア データ入力・貼付'!H25,\"\")","v":""},{"$f":"IFERROR('出場ペア データ入力・貼付'!I25,\"\")","v":""},{"$f":"IFERROR('出場ペア データ入力・貼付'!J25,\"\")","v":""}]
[null,null,null,null,null,null,null,null,null,null,null,null,null,null,null,null,null,null,null,null,null,null,null,null,{"$f":"IF('出場ペア データ入力・貼付'!B26&'出場ペア データ入力・貼付'!E26=\"\",\"\",IF('出場ペア データ入力・貼付'!E26<>\"\",'出場ペア データ入力・貼付'!E26,'出場ペア データ入力・貼付'!B26))","v":""},{"$f":"IFERROR('出場ペア データ入力・貼付'!H26,\"\")","v":""},{"$f":"IFERROR('出場ペア データ入力・貼付'!I26,\"\")","v":""},{"$f":"IFERROR('出場ペア データ入力・貼付'!J26,\"\")","v":""}]
[null,null,null,null,null,null,null,null,null,null,null,null,null,null,null,null,null,null,null,null,null,null,null,null,{"$f":"IF('出場ペア データ入力・貼付'!B27&'出場ペア データ入力・貼付'!E27=\"\",\"\",IF('出場ペア データ入力・貼付'!E27<>\"\",'出場ペア データ入力・貼付'!E27,'出場ペア データ入力・貼付'!B27))","v":""},{"$f":"IFERROR('出場ペア データ入力・貼付'!H27,\"\")","v":""},{"$f":"IFERROR('出場ペア データ入力・貼付'!I27,\"\")","v":""},{"$f":"IFERROR('出場ペア データ入力・貼付'!J27,\"\")","v":""}]
[null,null,null,null,null,null,null,null,null,null,null,null,null,null,null,null,null,null,null,null,null,null,null,null,{"$f":"IF('出場ペア データ入力・貼付'!B28&'出場ペア データ入力・貼付'!E28=\"\",\"\",IF('出場ペア データ入力・貼付'!E28<>\"\",'出場ペア データ入力・貼付'!E28,'出場ペア データ入力・貼付'!B28))","v":""},{"$f":"IFERROR('出場ペア データ入力・貼付'!H28,\"\")","v":""},{"$f":"IFERROR('出場ペア データ入力・貼付'!I28,\"\")","v":""},{"$f":"IFERROR('出場ペア データ入力・貼付'!J28,\"\")","v":""}]
[null,null,null,null,null,null,null,null,null,null,null,null,null,null,null,null,null,null,null,null,null,null,null,null,{"$f":"IF('出場ペア データ入力・貼付'!B29&'出場ペア データ入力・貼付'!E29=\"\",\"\",IF('出場ペア データ入力・貼付'!E29<>\"\",'出場ペア データ入力・貼付'!E29,'出場ペア データ入力・貼付'!B29))","v":""},{"$f":"IFERROR('出場ペア データ入力・貼付'!H29,\"\")","v":""},{"$f":"IFERROR('出場ペア データ入力・貼付'!I29,\"\")","v":""},{"$f":"IFERROR('出場ペア データ入力・貼付'!J29,\"\")","v":""}]
[null,null,null,null,null,null,null,null,null,null,null,null,null,null,null,null,null,null,null,null,null,null,null,null,{"$f":"IF('出場ペア データ入力・貼付'!B30&'出場ペア データ入力・貼付'!E30=\"\",\"\",IF('出場ペア データ入力・貼付'!E30<>\"\",'出場ペア データ入力・貼付'!E30,'出場ペア データ入力・貼付'!B30))","v":""},{"$f":"IFERROR('出場ペア データ入力・貼付'!H30,\"\")","v":""},{"$f":"IFERROR('出場ペア データ入力・貼付'!I30,\"\")","v":""},{"$f":"IFERROR('出場ペア データ入力・貼付'!J30,\"\")","v":""}]
[null,null,null,null,null,null,null,null,null,null,null,null,null,null,null,null,null,null,null,null,null,null,null,null,{"$f":"IF('出場ペア データ入力・貼付'!B31&'出場ペア データ入力・貼付'!E31=\"\",\"\",IF('出場ペア データ入力・貼付'!E31<>\"\",'出場ペア データ入力・貼付'!E31,'出場ペア データ入力・貼付'!B31))","v":""},{"$f":"IFERROR('出場ペア データ入力・貼付'!H31,\"\")","v":""},{"$f":"IFERROR('出場ペア データ入力・貼付'!I31,\"\")","v":""},{"$f":"IFERROR('出場ペア データ入力・貼付'!J31,\"\")","v":""}]
[null,null,null,null,null,null,null,null,null,null,null,null,null,null,null,null,null,null,null,null,null,null,null,null,{"$f":"IF('出場ペア データ入力・貼付'!B32&'出場ペア データ入力・貼付'!E32=\"\",\"\",IF('出場ペア データ入力・貼付'!E32<>\"\",'出場ペア データ入力・貼付'!E32,'出場ペア データ入力・貼付'!B32))","v":""},{"$f":"IFERROR('出場ペア データ入力・貼付'!H32,\"\")","v":""},{"$f":"IFERROR('出場ペア データ入力・貼付'!I32,\"\")","v":""},{"$f":"IFERROR('出場ペア データ入力・貼付'!J32,\"\")","v":""}]
[null,null,null,null,null,null,null,null,null,null,null,null,null,null,null,null,null,null,null,null,null,null,null,null,{"$f":"IF('出場ペア データ入力・貼付'!B33&'出場ペア データ入力・貼付'!E33=\"\",\"\",IF('出場ペア データ入力・貼付'!E33<>\"\",'出場ペア データ入力・貼付'!E33,'出場ペア データ入力・貼付'!B33))","v":""},{"$f":"IFERROR('出場ペア データ入力・貼付'!H33,\"\")","v":""},{"$f":"IFERROR('出場ペア データ入力・貼付'!I33,\"\")","v":""},{"$f":"IFERROR('出場ペア データ入力・貼付'!J33,\"\")","v":""}]
[null,null,null,null,null,null,null,null,null,null,null,null,null,null,null,null,null,null,null,null,null,null,null,null,{"$f":"IF('出場ペア データ入力・貼付'!B34&'出場ペア データ入力・貼付'!E34=\"\",\"\",IF('出場ペア データ入力・貼付'!E34<>\"\",'出場ペア データ入力・貼付'!E34,'出場ペア データ入力・貼付'!B34))","v":""},{"$f":"IFERROR('出場ペア データ入力・貼付'!H34,\"\")","v":""},{"$f":"IFERROR('出場ペア データ入力・貼付'!I34,\"\")","v":""},{"$f":"IFERROR('出場ペア データ入力・貼付'!J34,\"\")","v":""}]
[null,null,null,null,null,null,null,null,null,null,null,null,null,null,null,null,null,null,null,null,null,null,null,null,{"$f":"IF('出場ペア データ入力・貼付'!B35&'出場ペア データ入力・貼付'!E35=\"\",\"\",IF('出場ペア データ入力・貼付'!E35<>\"\",'出場ペア データ入力・貼付'!E35,'出場ペア データ入力・貼付'!B35))","v":""},{"$f":"IFERROR('出場ペア データ入力・貼付'!H35,\"\")","v":""},{"$f":"IFERROR('出場ペア データ入力・貼付'!I35,\"\")","v":""},{"$f":"IFERROR('出場ペア データ入力・貼付'!J35,\"\")","v":""}]
[null,null,null,null,null,null,null,null,null,null,null,null,null,null,null,null,null,null,null,null,null,null,null,null,{"$f":"IF('出場ペア データ入力・貼付'!B36&'出場ペア データ入力・貼付'!E36=\"\",\"\",IF('出場ペア データ入力・貼付'!E36<>\"\",'出場ペア データ入力・貼付'!E36,'出場ペア データ入力・貼付'!B36))","v":""},{"$f":"IFERROR('出場ペア データ入力・貼付'!H36,\"\")","v":""},{"$f":"IFERROR('出場ペア データ入力・貼付'!I36,\"\")","v":""},{"$f":"IFERROR('出場ペア データ入力・貼付'!J36,\"\")","v":""}]
[null,null,null,null,null,null,null,null,null,null,null,null,null,null,null,null,null,null,null,null,null,null,null,null,{"$f":"IF('出場ペア データ入力・貼付'!B37&'出場ペア データ入力・貼付'!E37=\"\",\"\",IF('出場ペア データ入力・貼付'!E37<>\"\",'出場ペア データ入力・貼付'!E37,'出場ペア データ入力・貼付'!B37))","v":""},{"$f":"IFERROR('出場ペア データ入力・貼付'!H37,\"\")","v":""},{"$f":"IFERROR('出場ペア データ入力・貼付'!I37,\"\")","v":""},{"$f":"IFERROR('出場ペア データ入力・貼付'!J37,\"\")","v":""}]
[null,null,null,null,null,null,null,null,null,null,null,null,null,null,null,null,null,null,null,null,null,null,null,null,{"$f":"IF('出場ペア データ入力・貼付'!B38&'出場ペア データ入力・貼付'!E38=\"\",\"\",IF('出場ペア データ入力・貼付'!E38<>\"\",'出場ペア データ入力・貼付'!E38,'出場ペア データ入力・貼付'!B38))","v":""},{"$f":"IFERROR('出場ペア データ入力・貼付'!H38,\"\")","v":""},{"$f":"IFERROR('出場ペア データ入力・貼付'!I38,\"\")","v":""},{"$f":"IFERROR('出場ペア データ入力・貼付'!J38,\"\")","v":""}]
[null,null,null,null,null,null,null,null,null,null,null,null,null,null,null,null,null,null,null,null,null,null,null,null,{"$f":"IF('出場ペア データ入力・貼付'!B39&'出場ペア データ入力・貼付'!E39=\"\",\"\",IF('出場ペア データ入力・貼付'!E39<>\"\",'出場ペア データ入力・貼付'!E39,'出場ペア データ入力・貼付'!B39))","v":""},{"$f":"IFERROR('出場ペア データ入力・貼付'!H39,\"\")","v":""},{"$f":"IFERROR('出場ペア データ入力・貼付'!I39,\"\")","v":""},{"$f":"IFERROR('出場ペア データ入力・貼付'!J39,\"\")","v":""}]
[null,null,null,null,null,null,null,null,null,null,null,null,null,null,null,null,null,null,null,null,null,null,null,null,{"$f":"IF('出場ペア データ入力・貼付'!B40&'出場ペア データ入力・貼付'!E40=\"\",\"\",IF('出場ペア データ入力・貼付'!E40<>\"\",'出場ペア データ入力・貼付'!E40,'出場ペア データ入力・貼付'!B40))","v":""},{"$f":"IFERROR('出場ペア データ入力・貼付'!H40,\"\")","v":""},{"$f":"IFERROR('出場ペア データ入力・貼付'!I40,\"\")","v":""},{"$f":"IFERROR('出場ペア データ入力・貼付'!J40,\"\")","v":""}]
[null,null,null,null,null,null,null,null,null,null,null,null,null,null,null,null,null,null,null,null,null,null,null,null,{"$f":"IF('出場ペア データ入力・貼付'!B41&'出場ペア データ入力・貼付'!E41=\"\",\"\",IF('出場ペア データ入力・貼付'!E41<>\"\",'出場ペア データ入力・貼付'!E41,'出場ペア データ入力・貼付'!B41))","v":""},{"$f":"IFERROR('出場ペア データ入力・貼付'!H41,\"\")","v":""},{"$f":"IFERROR('出場ペア データ入力・貼付'!I41,\"\")","v":""},{"$f":"IFERROR('出場ペア データ入力・貼付'!J41,\"\")","v":""}]
[null,null,null,null,null,null,null,null,null,null,null,null,null,null,null,null,null,null,null,null,null,null,null,null,{"$f":"IF('出場ペア データ入力・貼付'!B42&'出場ペア データ入力・貼付'!E42=\"\",\"\",IF('出場ペア データ入力・貼付'!E42<>\"\",'出場ペア データ入力・貼付'!E42,'出場ペア データ入力・貼付'!B42))","v":""},{"$f":"IFERROR('出場ペア データ入力・貼付'!H42,\"\")","v":""},{"$f":"IFERROR('出場ペア データ入力・貼付'!I42,\"\")","v":""},{"$f":"IFERROR('出場ペア データ入力・貼付'!J42,\"\")","v":""}]
[null,null,null,null,null,null,null,null,null,null,null,null,null,null,null,null,null,null,null,null,null,null,null,null,{"$f":"IF('出場ペア データ入力・貼付'!B43&'出場ペア データ入力・貼付'!E43=\"\",\"\",IF('出場ペア データ入力・貼付'!E43<>\"\",'出場ペア データ入力・貼付'!E43,'出場ペア データ入力・貼付'!B43))","v":""},{"$f":"IFERROR('出場ペア データ入力・貼付'!H43,\"\")","v":""},{"$f":"IFERROR('出場ペア データ入力・貼付'!I43,\"\")","v":""},{"$f":"IFERROR('出場ペア データ入力・貼付'!J43,\"\")","v":""}]
[null,null,null,null,null,null,null,null,null,null,null,null,null,null,null,null,null,null,null,null,null,null,null,null,{"$f":"IF('出場ペア データ入力・貼付'!B44&'出場ペア データ入力・貼付'!E44=\"\",\"\",IF('出場ペア データ入力・貼付'!E44<>\"\",'出場ペア データ入力・貼付'!E44,'出場ペア データ入力・貼付'!B44))","v":""},{"$f":"IFERROR('出場ペア データ入力・貼付'!H44,\"\")","v":""},{"$f":"IFERROR('出場ペア データ入力・貼付'!I44,\"\")","v":""},{"$f":"IFERROR('出場ペア データ入力・貼付'!J44,\"\")","v":""}]
[null,null,null,null,null,null,null,null,null,null,null,null,null,null,null,null,null,null,null,null,null,null,null,null,{"$f":"IF('出場ペア データ入力・貼付'!B45&'出場ペア データ入力・貼付'!E45=\"\",\"\",IF('出場ペア データ入力・貼付'!E45<>\"\",'出場ペア データ入力・貼付'!E45,'出場ペア データ入力・貼付'!B45))","v":""},{"$f":"IFERROR('出場ペア データ入力・貼付'!H45,\"\")","v":""},{"$f":"IFERROR('出場ペア データ入力・貼付'!I45,\"\")","v":""},{"$f":"IFERROR('出場ペア データ入力・貼付'!J45,\"\")","v":""}]
[null,null,null,null,null,null,null,null,null,null,null,null,null,null,null,null,null,null,null,null,null,null,null,null,{"$f":"IF('出場ペア データ入力・貼付'!B46&'出場ペア データ入力・貼付'!E46=\"\",\"\",IF('出場ペア データ入力・貼付'!E46<>\"\",'出場ペア データ入力・貼付'!E46,'出場ペア データ入力・貼付'!B46))","v":""},{"$f":"IFERROR('出場ペア データ入力・貼付'!H46,\"\")","v":""},{"$f":"IFERROR('出場ペア データ入力・貼付'!I46,\"\")","v":""},{"$f":"IFERROR('出場ペア データ入力・貼付'!J46,\"\")","v":""}]
[null,null,null,null,null,null,null,null,null,null,null,null,null,null,null,null,null,null,null,null,null,null,null,null,{"$f":"IF('出場ペア データ入力・貼付'!B47&'出場ペア データ入力・貼付'!E47=\"\",\"\",IF('出場ペア データ入力・貼付'!E47<>\"\",'出場ペア データ入力・貼付'!E47,'出場ペア データ入力・貼付'!B47))","v":""},{"$f":"IFERROR('出場ペア データ入力・貼付'!H47,\"\")","v":""},{"$f":"IFERROR('出場ペア データ入力・貼付'!I47,\"\")","v":""},{"$f":"IFERROR('出場ペア データ入力・貼付'!J47,\"\")","v":""}]
[null,null,null,null,null,null,null,null,null,null,null,null,null,null,null,null,null,null,null,null,null,null,null,null,{"$f":"IF('出場ペア データ入力・貼付'!B48&'出場ペア データ入力・貼付'!E48=\"\",\"\",IF('出場ペア データ入力・貼付'!E48<>\"\",'出場ペア データ入力・貼付'!E48,'出場ペア データ入力・貼付'!B48))","v":""},{"$f":"IFERROR('出場ペア データ入力・貼付'!H48,\"\")","v":""},{"$f":"IFERROR('出場ペア データ入力・貼付'!I48,\"\")","v":""},{"$f":"IFERROR('出場ペア データ入力・貼付'!J48,\"\")","v":""}]
[null,null,null,null,null,null,null,null,null,null,null,null,null,null,null,null,null,null,null,null,null,null,null,null,{"$f":"IF('出場ペア データ入力・貼付'!B49&'出場ペア データ入力・貼付'!E49=\"\",\"\",IF('出場ペア データ入力・貼付'!E49<>\"\",'出場ペア データ入力・貼付'!E49,'出場ペア データ入力・貼付'!B49))","v":""},{"$f":"IFERROR('出場ペア データ入力・貼付'!H49,\"\")","v":""},{"$f":"IFERROR('出場ペア データ入力・貼付'!I49,\"\")","v":""},{"$f":"IFERROR('出場ペア データ入力・貼付'!J49,\"\")","v":""}]
[null,null,null,null,null,null,null,null,null,null,null,null,null,null,null,null,null,null,null,null,null,null,null,null,{"$f":"IF('出場ペア データ入力・貼付'!B50&'出場ペア データ入力・貼付'!E50=\"\",\"\",IF('出場ペア データ入力・貼付'!E50<>\"\",'出場ペア データ入力・貼付'!E50,'出場ペア データ入力・貼付'!B50))","v":""},{"$f":"IFERROR('出場ペア データ入力・貼付'!H50,\"\")","v":""},{"$f":"IFERROR('出場ペア データ入力・貼付'!I50,\"\")","v":""},{"$f":"IFERROR('出場ペア データ入力・貼付'!J50,\"\")","v":""}]
[null,null,null,null,null,null,null,null,null,null,null,null,null,null,null,null,null,null,null,null,null,null,null,null,{"$f":"IF('出場ペア データ入力・貼付'!B51&'出場ペア データ入力・貼付'!E51=\"\",\"\",IF('出場ペア データ入力・貼付'!E51<>\"\",'出場ペア データ入力・貼付'!E51,'出場ペア データ入力・貼付'!B51))","v":""},{"$f":"IFERROR('出場ペア データ入力・貼付'!H51,\"\")","v":""},{"$f":"IFERROR('出場ペア データ入力・貼付'!I51,\"\")","v":""},{"$f":"IFERROR('出場ペア データ入力・貼付'!J51,\"\")","v":""}]
[null,null,null,null,null,null,null,null,null,null,null,null,null,null,null,null,null,null,null,null,null,null,null,null,{"$f":"IF('出場ペア データ入力・貼付'!B52&'出場ペア データ入力・貼付'!E52=\"\",\"\",IF('出場ペア データ入力・貼付'!E52<>\"\",'出場ペア データ入力・貼付'!E52,'出場ペア データ入力・貼付'!B52))","v":""},{"$f":"IFERROR('出場ペア データ入力・貼付'!H52,\"\")","v":""},{"$f":"IFERROR('出場ペア データ入力・貼付'!I52,\"\")","v":""},{"$f":"IFERROR('出場ペア データ入力・貼付'!J52,\"\")","v":""}]
[null,null,null,null,null,null,null,null,null,null,null,null,null,null,null,null,null,null,null,null,null,null,null,null,{"$f":"IF('出場ペア データ入力・貼付'!B53&'出場ペア データ入力・貼付'!E53=\"\",\"\",IF('出場ペア データ入力・貼付'!E53<>\"\",'出場ペア データ入力・貼付'!E53,'出場ペア データ入力・貼付'!B53))","v":""},{"$f":"IFERROR('出場ペア データ入力・貼付'!H53,\"\")","v":""},{"$f":"IFERROR('出場ペア データ入力・貼付'!I53,\"\")","v":""},{"$f":"IFERROR('出場ペア データ入力・貼付'!J53,\"\")","v":""}]
[null,null,null,null,null,null,null,null,null,null,null,null,null,null,null,null,null,null,null,null,null,null,null,null,{"$f":"IF('出場ペア データ入力・貼付'!B54&'出場ペア データ入力・貼付'!E54=\"\",\"\",IF('出場ペア データ入力・貼付'!E54<>\"\",'出場ペア データ入力・貼付'!E54,'出場ペア データ入力・貼付'!B54))","v":""},{"$f":"IFERROR('出場ペア データ入力・貼付'!H54,\"\")","v":""},{"$f":"IFERROR('出場ペア データ入力・貼付'!I54,\"\")","v":""},{"$f":"IFERROR('出場ペア データ入力・貼付'!J54,\"\")","v":""}]
[null,null,null,null,null,null,null,null,null,null,null,null,null,null,null,null,null,null,null,null,null,null,null,null,{"$f":"IF('出場ペア データ入力・貼付'!B55&'出場ペア データ入力・貼付'!E55=\"\",\"\",IF('出場ペア データ入力・貼付'!E55<>\"\",'出場ペア データ入力・貼付'!E55,'出場ペア データ入力・貼付'!B55))","v":""},{"$f":"IFERROR('出場ペア データ入力・貼付'!H55,\"\")","v":""},{"$f":"IFERROR('出場ペア データ入力・貼付'!I55,\"\")","v":""},{"$f":"IFERROR('出場ペア データ入力・貼付'!J55,\"\")","v":""}]
[null,null,null,null,null,null,null,null,null,null,null,null,null,null,null,null,null,null,null,null,null,null,null,null,{"$f":"IF('出場ペア データ入力・貼付'!B56&'出場ペア データ入力・貼付'!E56=\"\",\"\",IF('出場ペア データ入力・貼付'!E56<>\"\",'出場ペア データ入力・貼付'!E56,'出場ペア データ入力・貼付'!B56))","v":""},{"$f":"IFERROR('出場ペア データ入力・貼付'!H56,\"\")","v":""},{"$f":"IFERROR('出場ペア データ入力・貼付'!I56,\"\")","v":""},{"$f":"IFERROR('出場ペア データ入力・貼付'!J56,\"\")","v":""}]
[null,null,null,null,null,null,null,null,null,null,null,null,null,null,null,null,null,null,null,null,null,null,null,null,{"$f":"IF('出場ペア データ入力・貼付'!B57&'出場ペア データ入力・貼付'!E57=\"\",\"\",IF('出場ペア データ入力・貼付'!E57<>\"\",'出場ペア データ入力・貼付'!E57,'出場ペア データ入力・貼付'!B57))","v":""},{"$f":"IFERROR('出場ペア データ入力・貼付'!H57,\"\")","v":""},{"$f":"IFERROR('出場ペア データ入力・貼付'!I57,\"\")","v":""},{"$f":"IFERROR('出場ペア データ入力・貼付'!J57,\"\")","v":""}]
[null,null,null,null,null,null,null,null,null,null,null,null,null,null,null,null,null,null,null,null,null,null,null,null,{"$f":"IF('出場ペア データ入力・貼付'!B58&'出場ペア データ入力・貼付'!E58=\"\",\"\",IF('出場ペア データ入力・貼付'!E58<>\"\",'出場ペア データ入力・貼付'!E58,'出場ペア データ入力・貼付'!B58))","v":""},{"$f":"IFERROR('出場ペア データ入力・貼付'!H58,\"\")","v":""},{"$f":"IFERROR('出場ペア データ入力・貼付'!I58,\"\")","v":""},{"$f":"IFERROR('出場ペア データ入力・貼付'!J58,\"\")","v":""}]
[null,null,null,null,null,null,null,null,null,null,null,null,null,null,null,null,null,null,null,null,null,null,null,null,{"$f":"IF('出場ペア データ入力・貼付'!B59&'出場ペア データ入力・貼付'!E59=\"\",\"\",IF('出場ペア データ入力・貼付'!E59<>\"\",'出場ペア データ入力・貼付'!E59,'出場ペア データ入力・貼付'!B59))","v":""},{"$f":"IFERROR('出場ペア データ入力・貼付'!H59,\"\")","v":""},{"$f":"IFERROR('出場ペア データ入力・貼付'!I59,\"\")","v":""},{"$f":"IFERROR('出場ペア データ入力・貼付'!J59,\"\")","v":""}]
[null,null,null,null,null,null,null,null,null,null,null,null,null,null,null,null,null,null,null,null,null,null,null,null,{"$f":"IF('出場ペア データ入力・貼付'!B60&'出場ペア データ入力・貼付'!E60=\"\",\"\",IF('出場ペア データ入力・貼付'!E60<>\"\",'出場ペア データ入力・貼付'!E60,'出場ペア データ入力・貼付'!B60))","v":""},{"$f":"IFERROR('出場ペア データ入力・貼付'!H60,\"\")","v":""},{"$f":"IFERROR('出場ペア データ入力・貼付'!I60,\"\")","v":""},{"$f":"IFERROR('出場ペア データ入力・貼付'!J60,\"\")","v":""}]
[null,null,null,null,null,null,null,null,null,null,null,null,null,null,null,null,null,null,null,null,null,null,null,null,{"$f":"IF('出場ペア データ入力・貼付'!B61&'出場ペア データ入力・貼付'!E61=\"\",\"\",IF('出場ペア データ入力・貼付'!E61<>\"\",'出場ペア データ入力・貼付'!E61,'出場ペア データ入力・貼付'!B61))","v":""},{"$f":"IFERROR('出場ペア データ入力・貼付'!H61,\"\")","v":""},{"$f":"IFERROR('出場ペア データ入力・貼付'!I61,\"\")","v":""},{"$f":"IFERROR('出場ペア データ入力・貼付'!J61,\"\")","v":""}]
[null,null,null,null,null,null,null,null,null,null,null,null,null,null,null,null,null,null,null,null,null,null,null,null,{"$f":"IF('出場ペア データ入力・貼付'!B62&'出場ペア データ入力・貼付'!E62=\"\",\"\",IF('出場ペア データ入力・貼付'!E62<>\"\",'出場ペア データ入力・貼付'!E62,'出場ペア データ入力・貼付'!B62))","v":""},{"$f":"IFERROR('出場ペア データ入力・貼付'!H62,\"\")","v":""},{"$f":"IFERROR('出場ペア データ入力・貼付'!I62,\"\")","v":""},{"$f":"IFERROR('出場ペア データ入力・貼付'!J62,\"\")","v":""}]
[null,null,null,null,null,null,null,null,null,null,null,null,null,null,null,null,null,null,null,null,null,null,null,null,{"$f":"IF('出場ペア データ入力・貼付'!B63&'出場ペア データ入力・貼付'!E63=\"\",\"\",IF('出場ペア データ入力・貼付'!E63<>\"\",'出場ペア データ入力・貼付'!E63,'出場ペア データ入力・貼付'!B63))","v":""},{"$f":"IFERROR('出場ペア データ入力・貼付'!H63,\"\")","v":""},{"$f":"IFERROR('出場ペア データ入力・貼付'!I63,\"\")","v":""},{"$f":"IFERROR('出場ペア データ入力・貼付'!J63,\"\")","v":""}]
[null,null,null,null,null,null,null,null,null,null,null,null,null,null,null,null,null,null,null,null,null,null,null,null,{"$f":"IF('出場ペア データ入力・貼付'!B64&'出場ペア データ入力・貼付'!E64=\"\",\"\",IF('出場ペア データ入力・貼付'!E64<>\"\",'出場ペア データ入力・貼付'!E64,'出場ペア データ入力・貼付'!B64))","v":""},{"$f":"IFERROR('出場ペア データ入力・貼付'!H64,\"\")","v":""},{"$f":"IFERROR('出場ペア データ入力・貼付'!I64,\"\")","v":""},{"$f":"IFERROR('出場ペア データ入力・貼付'!J64,\"\")","v":""}]
[null,null,null,null,null,null,null,null,null,null,null,null,null,null,null,null,null,null,null,null,null,null,null,null,{"$f":"IF('出場ペア データ入力・貼付'!B65&'出場ペア データ入力・貼付'!E65=\"\",\"\",IF('出場ペア データ入力・貼付'!E65<>\"\",'出場ペア データ入力・貼付'!E65,'出場ペア データ入力・貼付'!B65))","v":""},{"$f":"IFERROR('出場ペア データ入力・貼付'!H65,\"\")","v":""},{"$f":"IFERROR('出場ペア データ入力・貼付'!I65,\"\")","v":""},{"$f":"IFERROR('出場ペア データ入力・貼付'!J65,\"\")","v":""}]
[null,null,null,null,null,null,null,null,null,null,null,null,null,null,null,null,null,null,null,null,null,null,null,null,{"$f":"IF('出場ペア データ入力・貼付'!B66&'出場ペア データ入力・貼付'!E66=\"\",\"\",IF('出場ペア データ入力・貼付'!E66<>\"\",'出場ペア データ入力・貼付'!E66,'出場ペア データ入力・貼付'!B66))","v":""},{"$f":"IFERROR('出場ペア データ入力・貼付'!H66,\"\")","v":""},{"$f":"IFERROR('出場ペア データ入力・貼付'!I66,\"\")","v":""},{"$f":"IFERROR('出場ペア データ入力・貼付'!J66,\"\")","v":""}]
[null,null,null,null,null,null,null,null,null,null,null,null,null,null,null,null,null,null,null,null,null,null,null,null,{"$f":"IF('出場ペア データ入力・貼付'!B67&'出場ペア データ入力・貼付'!E67=\"\",\"\",IF('出場ペア データ入力・貼付'!E67<>\"\",'出場ペア データ入力・貼付'!E67,'出場ペア データ入力・貼付'!B67))","v":""},{"$f":"IFERROR('出場ペア データ入力・貼付'!H67,\"\")","v":""},{"$f":"IFERROR('出場ペア データ入力・貼付'!I67,\"\")","v":""},{"$f":"IFERROR('出場ペア データ入力・貼付'!J67,\"\")","v":""}]
[null,null,null,null,null,null,null,null,null,null,null,null,null,null,null,null,null,null,null,null,null,null,null,null,{"$f":"IF('出場ペア データ入力・貼付'!B68&'出場ペア データ入力・貼付'!E68=\"\",\"\",IF('出場ペア データ入力・貼付'!E68<>\"\",'出場ペア データ入力・貼付'!E68,'出場ペア データ入力・貼付'!B68))","v":""},{"$f":"IFERROR('出場ペア データ入力・貼付'!H68,\"\")","v":""},{"$f":"IFERROR('出場ペア データ入力・貼付'!I68,\"\")","v":""},{"$f":"IFERROR('出場ペア データ入力・貼付'!J68,\"\")","v":""}]
[null,null,null,null,null,null,null,null,null,null,null,null,null,null,null,null,null,null,null,null,null,null,null,null,{"$f":"IF('出場ペア データ入力・貼付'!B69&'出場ペア データ入力・貼付'!E69=\"\",\"\",IF('出場ペア データ入力・貼付'!E69<>\"\",'出場ペア データ入力・貼付'!E69,'出場ペア データ入力・貼付'!B69))","v":""},{"$f":"IFERROR('出場ペア データ入力・貼付'!H69,\"\")","v":""},{"$f":"IFERROR('出場ペア データ入力・貼付'!I69,\"\")","v":""},{"$f":"IFERROR('出場ペア データ入力・貼付'!J69,\"\")","v":""}]
[null,null,null,null,null,null,null,null,null,null,null,null,null,null,null,null,null,null,null,null,null,null,null,null,{"$f":"IF('出場ペア データ入力・貼付'!B70&'出場ペア データ入力・貼付'!E70=\"\",\"\",IF('出場ペア データ入力・貼付'!E70<>\"\",'出場ペア データ入力・貼付'!E70,'出場ペア データ入力・貼付'!B70))","v":""},{"$f":"IFERROR('出場ペア データ入力・貼付'!H70,\"\")","v":""},{"$f":"IFERROR('出場ペア データ入力・貼付'!I70,\"\")","v":""},{"$f":"IFERROR('出場ペア データ入力・貼付'!J70,\"\")","v":""}]
[null,null,null,null,null,null,null,null,null,null,null,null,null,null,null,null,null,null,null,null,null,null,null,null,{"$f":"IF('出場ペア データ入力・貼付'!B71&'出場ペア データ入力・貼付'!E71=\"\",\"\",IF('出場ペア データ入力・貼付'!E71<>\"\",'出場ペア データ入力・貼付'!E71,'出場ペア データ入力・貼付'!B71))","v":""},{"$f":"IFERROR('出場ペア データ入力・貼付'!H71,\"\")","v":""},{"$f":"IFERROR('出場ペア データ入力・貼付'!I71,\"\")","v":""},{"$f":"IFERROR('出場ペア データ入力・貼付'!J71,\"\")","v":""}]
[null,null,null,null,null,null,null,null,null,null,null,null,null,null,null,null,null,null,null,null,null,null,null,null,{"$f":"IF('出場ペア データ入力・貼付'!B72&'出場ペア データ入力・貼付'!E72=\"\",\"\",IF('出場ペア データ入力・貼付'!E72<>\"\",'出場ペア データ入力・貼付'!E72,'出場ペア データ入力・貼付'!B72))","v":""},{"$f":"IFERROR('出場ペア データ入力・貼付'!H72,\"\")","v":""},{"$f":"IFERROR('出場ペア データ入力・貼付'!I72,\"\")","v":""},{"$f":"IFERROR('出場ペア データ入力・貼付'!J72,\"\")","v":""}]
[null,null,null,null,null,null,null,null,null,null,null,null,null,null,null,null,null,null,null,null,null,null,null,null,{"$f":"IF('出場ペア データ入力・貼付'!B73&'出場ペア データ入力・貼付'!E73=\"\",\"\",IF('出場ペア データ入力・貼付'!E73<>\"\",'出場ペア データ入力・貼付'!E73,'出場ペア データ入力・貼付'!B73))","v":""},{"$f":"IFERROR('出場ペア データ入力・貼付'!H73,\"\")","v":""},{"$f":"IFERROR('出場ペア データ入力・貼付'!I73,\"\")","v":""},{"$f":"IFERROR('出場ペア データ入力・貼付'!J73,\"\")","v":""}]
[null,null,null,null,null,null,null,null,null,null,null,null,null,null,null,null,null,null,null,null,null,null,null,null,{"$f":"IF('出場ペア データ入力・貼付'!B74&'出場ペア データ入力・貼付'!E74=\"\",\"\",IF('出場ペア データ入力・貼付'!E74<>\"\",'出場ペア データ入力・貼付'!E74,'出場ペア データ入力・貼付'!B74))","v":""},{"$f":"IFERROR('出場ペア データ入力・貼付'!H74,\"\")","v":""},{"$f":"IFERROR('出場ペア データ入力・貼付'!I74,\"\")","v":""},{"$f":"IFERROR('出場ペア データ入力・貼付'!J74,\"\")","v":""}]
[null,null,null,null,null,null,null,null,null,null,null,null,null,null,null,null,null,null,null,null,null,null,null,null,{"$f":"IF('出場ペア データ入力・貼付'!B75&'出場ペア データ入力・貼付'!E75=\"\",\"\",IF('出場ペア データ入力・貼付'!E75<>\"\",'出場ペア データ入力・貼付'!E75,'出場ペア データ入力・貼付'!B75))","v":""},{"$f":"IFERROR('出場ペア データ入力・貼付'!H75,\"\")","v":""},{"$f":"IFERROR('出場ペア データ入力・貼付'!I75,\"\")","v":""},{"$f":"IFERROR('出場ペア データ入力・貼付'!J75,\"\")","v":""}]
[null,null,null,null,null,null,null,null,null,null,null,null,null,null,null,null,null,null,null,null,null,null,null,null,{"$f":"IF('出場ペア データ入力・貼付'!B76&'出場ペア データ入力・貼付'!E76=\"\",\"\",IF('出場ペア データ入力・貼付'!E76<>\"\",'出場ペア データ入力・貼付'!E76,'出場ペア データ入力・貼付'!B76))","v":""},{"$f":"IFERROR('出場ペア データ入力・貼付'!H76,\"\")","v":""},{"$f":"IFERROR('出場ペア データ入力・貼付'!I76,\"\")","v":""},{"$f":"IFERROR('出場ペア データ入力・貼付'!J76,\"\")","v":""}]
[null,null,null,null,null,null,null,null,null,null,null,null,null,null,null,null,null,null,null,null,null,null,null,null,{"$f":"IF('出場ペア データ入力・貼付'!B77&'出場ペア データ入力・貼付'!E77=\"\",\"\",IF('出場ペア データ入力・貼付'!E77<>\"\",'出場ペア データ入力・貼付'!E77,'出場ペア データ入力・貼付'!B77))","v":""},{"$f":"IFERROR('出場ペア データ入力・貼付'!H77,\"\")","v":""},{"$f":"IFERROR('出場ペア データ入力・貼付'!I77,\"\")","v":""},{"$f":"IFERROR('出場ペア データ入力・貼付'!J77,\"\")","v":""}]
[null,null,null,null,null,null,null,null,null,null,null,null,null,null,null,null,null,null,null,null,null,null,null,null,{"$f":"IF('出場ペア データ入力・貼付'!B78&'出場ペア データ入力・貼付'!E78=\"\",\"\",IF('出場ペア データ入力・貼付'!E78<>\"\",'出場ペア データ入力・貼付'!E78,'出場ペア データ入力・貼付'!B78))","v":""},{"$f":"IFERROR('出場ペア データ入力・貼付'!H78,\"\")","v":""},{"$f":"IFERROR('出場ペア データ入力・貼付'!I78,\"\")","v":""},{"$f":"IFERROR('出場ペア データ入力・貼付'!J78,\"\")","v":""}]
[null,null,null,null,null,null,null,null,null,null,null,null,null,null,null,null,null,null,null,null,null,null,null,null,{"$f":"IF('出場ペア データ入力・貼付'!B79&'出場ペア データ入力・貼付'!E79=\"\",\"\",IF('出場ペア データ入力・貼付'!E79<>\"\",'出場ペア データ入力・貼付'!E79,'出場ペア データ入力・貼付'!B79))","v":""},{"$f":"IFERROR('出場ペア データ入力・貼付'!H79,\"\")","v":""},{"$f":"IFERROR('出場ペア データ入力・貼付'!I79,\"\")","v":""},{"$f":"IFERROR('出場ペア データ入力・貼付'!J79,\"\")","v":""}]
[null,null,null,null,null,null,null,null,null,null,null,null,null,null,null,null,null,null,null,null,null,null,null,null,{"$f":"IF('出場ペア データ入力・貼付'!B80&'出場ペア データ入力・貼付'!E80=\"\",\"\",IF('出場ペア データ入力・貼付'!E80<>\"\",'出場ペア データ入力・貼付'!E80,'出場ペア データ入力・貼付'!B80))","v":""},{"$f":"IFERROR('出場ペア データ入力・貼付'!H80,\"\")","v":""},{"$f":"IFERROR('出場ペア データ入力・貼付'!I80,\"\")","v":""},{"$f":"IFERROR('出場ペア データ入力・貼付'!J80,\"\")","v":""}]
[null,null,null,null,null,null,null,null,null,null,null,null,null,null,null,null,null,null,null,null,null,null,null,null,{"$f":"IF('出場ペア データ入力・貼付'!B81&'出場ペア データ入力・貼付'!E81=\"\",\"\",IF('出場ペア データ入力・貼付'!E81<>\"\",'出場ペア データ入力・貼付'!E81,'出場ペア データ入力・貼付'!B81))","v":""},{"$f":"IFERROR('出場ペア データ入力・貼付'!H81,\"\")","v":""},{"$f":"IFERROR('出場ペア データ入力・貼付'!I81,\"\")","v":""},{"$f":"IFERROR('出場ペア データ入力・貼付'!J81,\"\")","v":""}]
[null,null,null,null,null,null,null,null,null,null,null,null,null,null,null,null,null,null,null,null,null,null,null,null,{"$f":"IF('出場ペア データ入力・貼付'!B82&'出場ペア データ入力・貼付'!E82=\"\",\"\",IF('出場ペア データ入力・貼付'!E82<>\"\",'出場ペア データ入力・貼付'!E82,'出場ペア データ入力・貼付'!B82))","v":""},{"$f":"IFERROR('出場ペア データ入力・貼付'!H82,\"\")","v":""},{"$f":"IFERROR('出場ペア データ入力・貼付'!I82,\"\")","v":""},{"$f":"IFERROR('出場ペア データ入力・貼付'!J82,\"\")","v":""}]
[null,null,null,null,null,null,null,null,null,null,null,null,null,null,null,null,null,null,null,null,null,null,null,null,{"$f":"IF('出場ペア データ入力・貼付'!B83&'出場ペア データ入力・貼付'!E83=\"\",\"\",IF('出場ペア データ入力・貼付'!E83<>\"\",'出場ペア データ入力・貼付'!E83,'出場ペア データ入力・貼付'!B83))","v":""},{"$f":"IFERROR('出場ペア データ入力・貼付'!H83,\"\")","v":""},{"$f":"IFERROR('出場ペア データ入力・貼付'!I83,\"\")","v":""},{"$f":"IFERROR('出場ペア データ入力・貼付'!J83,\"\")","v":""}]
[null,null,null,null,null,null,null,null,null,null,null,null,null,null,null,null,null,null,null,null,null,null,null,null,{"$f":"IF('出場ペア データ入力・貼付'!B84&'出場ペア データ入力・貼付'!E84=\"\",\"\",IF('出場ペア データ入力・貼付'!E84<>\"\",'出場ペア データ入力・貼付'!E84,'出場ペア データ入力・貼付'!B84))","v":""},{"$f":"IFERROR('出場ペア データ入力・貼付'!H84,\"\")","v":""},{"$f":"IFERROR('出場ペア データ入力・貼付'!I84,\"\")","v":""},{"$f":"IFERROR('出場ペア データ入力・貼付'!J84,\"\")","v":""}]
[null,null,null,null,null,null,null,null,null,null,null,null,null,null,null,null,null,null,null,null,null,null,null,null,{"$f":"IF('出場ペア データ入力・貼付'!B85&'出場ペア データ入力・貼付'!E85=\"\",\"\",IF('出場ペア データ入力・貼付'!E85<>\"\",'出場ペア データ入力・貼付'!E85,'出場ペア データ入力・貼付'!B85))","v":""},{"$f":"IFERROR('出場ペア データ入力・貼付'!H85,\"\")","v":""},{"$f":"IFERROR('出場ペア データ入力・貼付'!I85,\"\")","v":""},{"$f":"IFERROR('出場ペア データ入力・貼付'!J85,\"\")","v":""}]
[null,null,null,null,null,null,null,null,null,null,null,null,null,null,null,null,null,null,null,null,null,null,null,null,{"$f":"IF('出場ペア データ入力・貼付'!B86&'出場ペア データ入力・貼付'!E86=\"\",\"\",IF('出場ペア データ入力・貼付'!E86<>\"\",'出場ペア データ入力・貼付'!E86,'出場ペア データ入力・貼付'!B86))","v":""},{"$f":"IFERROR('出場ペア データ入力・貼付'!H86,\"\")","v":""},{"$f":"IFERROR('出場ペア データ入力・貼付'!I86,\"\")","v":""},{"$f":"IFERROR('出場ペア データ入力・貼付'!J86,\"\")","v":""}]
[null,null,null,null,null,null,null,null,null,null,null,null,null,null,null,null,null,null,null,null,null,null,null,null,{"$f":"IF('出場ペア データ入力・貼付'!B87&'出場ペア データ入力・貼付'!E87=\"\",\"\",IF('出場ペア データ入力・貼付'!E87<>\"\",'出場ペア データ入力・貼付'!E87,'出場ペア データ入力・貼付'!B87))","v":""},{"$f":"IFERROR('出場ペア データ入力・貼付'!H87,\"\")","v":""},{"$f":"IFERROR('出場ペア データ入力・貼付'!I87,\"\")","v":""},{"$f":"IFERROR('出場ペア データ入力・貼付'!J87,\"\")","v":""}]
[null,null,null,null,null,null,null,null,null,null,null,null,null,null,null,null,null,null,null,null,null,null,null,null,{"$f":"IF('出場ペア データ入力・貼付'!B88&'出場ペア データ入力・貼付'!E88=\"\",\"\",IF('出場ペア データ入力・貼付'!E88<>\"\",'出場ペア データ入力・貼付'!E88,'出場ペア データ入力・貼付'!B88))","v":""},{"$f":"IFERROR('出場ペア データ入力・貼付'!H88,\"\")","v":""},{"$f":"IFERROR('出場ペア データ入力・貼付'!I88,\"\")","v":""},{"$f":"IFERROR('出場ペア データ入力・貼付'!J88,\"\")","v":""}]
[null,null,null,null,null,null,null,null,null,null,null,null,null,null,null,null,null,null,null,null,null,null,null,null,{"$f":"IF('出場ペア データ入力・貼付'!B89&'出場ペア データ入力・貼付'!E89=\"\",\"\",IF('出場ペア データ入力・貼付'!E89<>\"\",'出場ペア データ入力・貼付'!E89,'出場ペア データ入力・貼付'!B89))","v":""},{"$f":"IFERROR('出場ペア データ入力・貼付'!H89,\"\")","v":""},{"$f":"IFERROR('出場ペア データ入力・貼付'!I89,\"\")","v":""},{"$f":"IFERROR('出場ペア データ入力・貼付'!J89,\"\")","v":""}]
[null,null,null,null,null,null,null,null,null,null,null,null,null,null,null,null,null,null,null,null,null,null,null,null,{"$f":"IF('出場ペア データ入力・貼付'!B90&'出場ペア データ入力・貼付'!E90=\"\",\"\",IF('出場ペア データ入力・貼付'!E90<>\"\",'出場ペア データ入力・貼付'!E90,'出場ペア データ入力・貼付'!B90))","v":""},{"$f":"IFERROR('出場ペア データ入力・貼付'!H90,\"\")","v":""},{"$f":"IFERROR('出場ペア データ入力・貼付'!I90,\"\")","v":""},{"$f":"IFERROR('出場ペア データ入力・貼付'!J90,\"\")","v":""}]
[null,null,null,null,null,null,null,null,null,null,null,null,null,null,null,null,null,null,null,null,null,null,null,null,{"$f":"IF('出場ペア データ入力・貼付'!B91&'出場ペア データ入力・貼付'!E91=\"\",\"\",IF('出場ペア データ入力・貼付'!E91<>\"\",'出場ペア データ入力・貼付'!E91,'出場ペア データ入力・貼付'!B91))","v":""},{"$f":"IFERROR('出場ペア データ入力・貼付'!H91,\"\")","v":""},{"$f":"IFERROR('出場ペア データ入力・貼付'!I91,\"\")","v":""},{"$f":"IFERROR('出場ペア データ入力・貼付'!J91,\"\")","v":""}]
[null,null,null,null,null,null,null,null,null,null,null,null,null,null,null,null,null,null,null,null,null,null,null,null,{"$f":"IF('出場ペア データ入力・貼付'!B92&'出場ペア データ入力・貼付'!E92=\"\",\"\",IF('出場ペア データ入力・貼付'!E92<>\"\",'出場ペア データ入力・貼付'!E92,'出場ペア データ入力・貼付'!B92))","v":""},{"$f":"IFERROR('出場ペア データ入力・貼付'!H92,\"\")","v":""},{"$f":"IFERROR('出場ペア データ入力・貼付'!I92,\"\")","v":""},{"$f":"IFERROR('出場ペア データ入力・貼付'!J92,\"\")","v":""}]
[null,null,null,null,null,null,null,null,null,null,null,null,null,null,null,null,null,null,null,null,null,null,null,null,{"$f":"IF('出場ペア データ入力・貼付'!B93&'出場ペア データ入力・貼付'!E93=\"\",\"\",IF('出場ペア データ入力・貼付'!E93<>\"\",'出場ペア データ入力・貼付'!E93,'出場ペア データ入力・貼付'!B93))","v":""},{"$f":"IFERROR('出場ペア データ入力・貼付'!H93,\"\")","v":""},{"$f":"IFERROR('出場ペア データ入力・貼付'!I93,\"\")","v":""},{"$f":"IFERROR('出場ペア データ入力・貼付'!J93,\"\")","v":""}]
[null,null,null,null,null,null,null,null,null,null,null,null,null,null,null,null,null,null,null,null,null,null,null,null,{"$f":"IF('出場ペア データ入力・貼付'!B94&'出場ペア データ入力・貼付'!E94=\"\",\"\",IF('出場ペア データ入力・貼付'!E94<>\"\",'出場ペア データ入力・貼付'!E94,'出場ペア データ入力・貼付'!B94))","v":""},{"$f":"IFERROR('出場ペア データ入力・貼付'!H94,\"\")","v":""},{"$f":"IFERROR('出場ペア データ入力・貼付'!I94,\"\")","v":""},{"$f":"IFERROR('出場ペア データ入力・貼付'!J94,\"\")","v":""}]
[null,null,null,null,null,null,null,null,null,null,null,null,null,null,null,null,null,null,null,null,null,null,null,null,{"$f":"IF('出場ペア データ入力・貼付'!B95&'出場ペア データ入力・貼付'!E95=\"\",\"\",IF('出場ペア データ入力・貼付'!E95<>\"\",'出場ペア データ入力・貼付'!E95,'出場ペア データ入力・貼付'!B95))","v":""},{"$f":"IFERROR('出場ペア データ入力・貼付'!H95,\"\")","v":""},{"$f":"IFERROR('出場ペア データ入力・貼付'!I95,\"\")","v":""},{"$f":"IFERROR('出場ペア データ入力・貼付'!J95,\"\")","v":""}]
[null,null,null,null,null,null,null,null,null,null,null,null,null,null,null,null,null,null,null,null,null,null,null,null,{"$f":"IF('出場ペア データ入力・貼付'!B96&'出場ペア データ入力・貼付'!E96=\"\",\"\",IF('出場ペア データ入力・貼付'!E96<>\"\",'出場ペア データ入力・貼付'!E96,'出場ペア データ入力・貼付'!B96))","v":""},{"$f":"IFERROR('出場ペア データ入力・貼付'!H96,\"\")","v":""},{"$f":"IFERROR('出場ペア データ入力・貼付'!I96,\"\")","v":""},{"$f":"IFERROR('出場ペア データ入力・貼付'!J96,\"\")","v":""}]
[null,null,null,null,null,null,null,null,null,null,null,null,null,null,null,null,null,null,null,null,null,null,null,null,{"$f":"IF('出場ペア データ入力・貼付'!B97&'出場ペア データ入力・貼付'!E97=\"\",\"\",IF('出場ペア データ入力・貼付'!E97<>\"\",'出場ペア データ入力・貼付'!E97,'出場ペア データ入力・貼付'!B97))","v":""},{"$f":"IFERROR('出場ペア データ入力・貼付'!H97,\"\")","v":""},{"$f":"IFERROR('出場ペア データ入力・貼付'!I97,\"\")","v":""},{"$f":"IFERROR('出場ペア データ入力・貼付'!J97,\"\")","v":""}]
[null,null,null,null,null,null,null,null,null,null,null,null,null,null,null,null,null,null,null,null,null,null,null,null,{"$f":"IF('出場ペア データ入力・貼付'!B98&'出場ペア データ入力・貼付'!E98=\"\",\"\",IF('出場ペア データ入力・貼付'!E98<>\"\",'出場ペア データ入力・貼付'!E98,'出場ペア データ入力・貼付'!B98))","v":""},{"$f":"IFERROR('出場ペア データ入力・貼付'!H98,\"\")","v":""},{"$f":"IFERROR('出場ペア データ入力・貼付'!I98,\"\")","v":""},{"$f":"IFERROR('出場ペア データ入力・貼付'!J98,\"\")","v":""}]
[null,null,null,null,null,null,null,null,null,null,null,null,null,null,null,null,null,null,null,null,null,null,null,null,{"$f":"IF('出場ペア データ入力・貼付'!B99&'出場ペア データ入力・貼付'!E99=\"\",\"\",IF('出場ペア データ入力・貼付'!E99<>\"\",'出場ペア データ入力・貼付'!E99,'出場ペア データ入力・貼付'!B99))","v":""},{"$f":"IFERROR('出場ペア データ入力・貼付'!H99,\"\")","v":""},{"$f":"IFERROR('出場ペア データ入力・貼付'!I99,\"\")","v":""},{"$f":"IFERROR('出場ペア データ入力・貼付'!J99,\"\")","v":""}]
[null,null,null,null,null,null,null,null,null,null,null,null,null,null,null,null,null,null,null,null,null,null,null,null,{"$f":"IF('出場ペア データ入力・貼付'!B100&'出場ペア データ入力・貼付'!E100=\"\",\"\",IF('出場ペア データ入力・貼付'!E100<>\"\",'出場ペア データ入力・貼付'!E100,'出場ペア データ入力・貼付'!B100))","v":""},{"$f":"IFERROR('出場ペア データ入力・貼付'!H100,\"\")","v":""},{"$f":"IFERROR('出場ペア データ入力・貼付'!I100,\"\")","v":""},{"$f":"IFERROR('出場ペア データ入力・貼付'!J100,\"\")","v":""}]
[null,null,null,null,null,null,null,null,null,null,null,null,null,null,null,null,null,null,null,null,null,null,null,null,{"$f":"IF('出場ペア データ入力・貼付'!B101&'出場ペア データ入力・貼付'!E101=\"\",\"\",IF('出場ペア データ入力・貼付'!E101<>\"\",'出場ペア データ入力・貼付'!E101,'出場ペア データ入力・貼付'!B101))","v":""},{"$f":"IFERROR('出場ペア データ入力・貼付'!H101,\"\")","v":""},{"$f":"IFERROR('出場ペア データ入力・貼付'!I101,\"\")","v":""},{"$f":"IFERROR('出場ペア データ入力・貼付'!J101,\"\")","v":""}]
[null,null,null,null,null,null,null,null,null,null,null,null,null,null,null,null,null,null,null,null,null,null,null,null,{"$f":"IF('出場ペア データ入力・貼付'!B102&'出場ペア データ入力・貼付'!E102=\"\",\"\",IF('出場ペア データ入力・貼付'!E102<>\"\",'出場ペア データ入力・貼付'!E102,'出場ペア データ入力・貼付'!B102))","v":""},{"$f":"IFERROR('出場ペア データ入力・貼付'!H102,\"\")","v":""},{"$f":"IFERROR('出場ペア データ入力・貼付'!I102,\"\")","v":""},{"$f":"IFERROR('出場ペア データ入力・貼付'!J102,\"\")","v":""}]
[null,null,null,null,null,null,null,null,null,null,null,null,null,null,null,null,null,null,null,null,null,null,null,null,{"$f":"IF('出場ペア データ入力・貼付'!B103&'出場ペア データ入力・貼付'!E103=\"\",\"\",IF('出場ペア データ入力・貼付'!E103<>\"\",'出場ペア データ入力・貼付'!E103,'出場ペア データ入力・貼付'!B103))","v":""},{"$f":"IFERROR('出場ペア データ入力・貼付'!H103,\"\")","v":""},{"$f":"IFERROR('出場ペア データ入力・貼付'!I103,\"\")","v":""},{"$f":"IFERROR('出場ペア データ入力・貼付'!J103,\"\")","v":""}]
[null,null,null,null,null,null,null,null,null,null,null,null,null,null,null,null,null,null,null,null,null,null,null,null,{"$f":"IF('出場ペア データ入力・貼付'!B104&'出場ペア データ入力・貼付'!E104=\"\",\"\",IF('出場ペア データ入力・貼付'!E104<>\"\",'出場ペア データ入力・貼付'!E104,'出場ペア データ入力・貼付'!B104))","v":""},{"$f":"IFERROR('出場ペア データ入力・貼付'!H104,\"\")","v":""},{"$f":"IFERROR('出場ペア データ入力・貼付'!I104,\"\")","v":""},{"$f":"IFERROR('出場ペア データ入力・貼付'!J104,\"\")","v":""}]
[null,null,null,null,null,null,null,null,null,null,null,null,null,null,null,null,null,null,null,null,null,null,null,null,{"$f":"IF('出場ペア データ入力・貼付'!B105&'出場ペア データ入力・貼付'!E105=\"\",\"\",IF('出場ペア データ入力・貼付'!E105<>\"\",'出場ペア データ入力・貼付'!E105,'出場ペア データ入力・貼付'!B105))","v":""},{"$f":"IFERROR('出場ペア データ入力・貼付'!H105,\"\")","v":""},{"$f":"IFERROR('出場ペア データ入力・貼付'!I105,\"\")","v":""},{"$f":"IFERROR('出場ペア データ入力・貼付'!J105,\"\")","v":""}]
[null,null,null,null,null,null,null,null,null,null,null,null,null,null,null,null,null,null,null,null,null,null,null,null,{"$f":"IF('出場ペア データ入力・貼付'!B106&'出場ペア データ入力・貼付'!E106=\"\",\"\",IF('出場ペア データ入力・貼付'!E106<>\"\",'出場ペア データ入力・貼付'!E106,'出場ペア データ入力・貼付'!B106))","v":""},{"$f":"IFERROR('出場ペア データ入力・貼付'!H106,\"\")","v":""},{"$f":"IFERROR('出場ペア データ入力・貼付'!I106,\"\")","v":""},{"$f":"IFERROR('出場ペア データ入力・貼付'!J106,\"\")","v":""}]
[null,null,null,null,null,null,null,null,null,null,null,null,null,null,null,null,null,null,null,null,null,null,null,null,{"$f":"IF('出場ペア データ入力・貼付'!B107&'出場ペア データ入力・貼付'!E107=\"\",\"\",IF('出場ペア データ入力・貼付'!E107<>\"\",'出場ペア データ入力・貼付'!E107,'出場ペア データ入力・貼付'!B107))","v":""},{"$f":"IFERROR('出場ペア データ入力・貼付'!H107,\"\")","v":""},{"$f":"IFERROR('出場ペア データ入力・貼付'!I107,\"\")","v":""},{"$f":"IFERROR('出場ペア データ入力・貼付'!J107,\"\")","v":""}]
[null,null,null,null,null,null,null,null,null,null,null,null,null,null,null,null,null,null,null,null,null,null,null,null,{"$f":"IF('出場ペア データ入力・貼付'!B108&'出場ペア データ入力・貼付'!E108=\"\",\"\",IF('出場ペア データ入力・貼付'!E108<>\"\",'出場ペア データ入力・貼付'!E108,'出場ペア データ入力・貼付'!B108))","v":""},{"$f":"IFERROR('出場ペア データ入力・貼付'!H108,\"\")","v":""},{"$f":"IFERROR('出場ペア データ入力・貼付'!I108,\"\")","v":""},{"$f":"IFERROR('出場ペア データ入力・貼付'!J108,\"\")","v":""}]
[null,null,null,null,null,null,null,null,null,null,null,null,null,null,null,null,null,null,null,null,null,null,null,null,{"$f":"IF('出場ペア データ入力・貼付'!B109&'出場ペア データ入力・貼付'!E109=\"\",\"\",IF('出場ペア データ入力・貼付'!E109<>\"\",'出場ペア データ入力・貼付'!E109,'出場ペア データ入力・貼付'!B109))","v":""},{"$f":"IFERROR('出場ペア データ入力・貼付'!H109,\"\")","v":""},{"$f":"IFERROR('出場ペア データ入力・貼付'!I109,\"\")","v":""},{"$f":"IFERROR('出場ペア データ入力・貼付'!J109,\"\")","v":""}]
[null,null,null,null,null,null,null,null,null,null,null,null,null,null,null,null,null,null,null,null,null,null,null,null,{"$f":"IF('出場ペア データ入力・貼付'!B110&'出場ペア データ入力・貼付'!E110=\"\",\"\",IF('出場ペア データ入力・貼付'!E110<>\"\",'出場ペア データ入力・貼付'!E110,'出場ペア データ入力・貼付'!B110))","v":""},{"$f":"IFERROR('出場ペア データ入力・貼付'!H110,\"\")","v":""},{"$f":"IFERROR('出場ペア データ入力・貼付'!I110,\"\")","v":""},{"$f":"IFERROR('出場ペア データ入力・貼付'!J110,\"\")","v":""}]
[null,null,null,null,null,null,null,null,null,null,null,null,null,null,null,null,null,null,null,null,null,null,null,null,{"$f":"IF('出場ペア データ入力・貼付'!B111&'出場ペア データ入力・貼付'!E111=\"\",\"\",IF('出場ペア データ入力・貼付'!E111<>\"\",'出場ペア データ入力・貼付'!E111,'出場ペア データ入力・貼付'!B111))","v":""},{"$f":"IFERROR('出場ペア データ入力・貼付'!H111,\"\")","v":""},{"$f":"IFERROR('出場ペア データ入力・貼付'!I111,\"\")","v":""},{"$f":"IFERROR('出場ペア データ入力・貼付'!J111,\"\")","v":""}]
[null,null,null,null,null,null,null,null,null,null,null,null,null,null,null,null,null,null,null,null,null,null,null,null,{"$f":"IF('出場ペア データ入力・貼付'!B112&'出場ペア データ入力・貼付'!E112=\"\",\"\",IF('出場ペア データ入力・貼付'!E112<>\"\",'出場ペア データ入力・貼付'!E112,'出場ペア データ入力・貼付'!B112))","v":""},{"$f":"IFERROR('出場ペア データ入力・貼付'!H112,\"\")","v":""},{"$f":"IFERROR('出場ペア データ入力・貼付'!I112,\"\")","v":""},{"$f":"IFERROR('出場ペア データ入力・貼付'!J112,\"\")","v":""}]
[null,null,null,null,null,null,null,null,null,null,null,null,null,null,null,null,null,null,null,null,null,null,null,null,{"$f":"IF('出場ペア データ入力・貼付'!B113&'出場ペア データ入力・貼付'!E113=\"\",\"\",IF('出場ペア データ入力・貼付'!E113<>\"\",'出場ペア データ入力・貼付'!E113,'出場ペア データ入力・貼付'!B113))","v":""},{"$f":"IFERROR('出場ペア データ入力・貼付'!H113,\"\")","v":""},{"$f":"IFERROR('出場ペア データ入力・貼付'!I113,\"\")","v":""},{"$f":"IFERROR('出場ペア データ入力・貼付'!J113,\"\")","v":""}]
[null,null,null,null,null,null,null,null,null,null,null,null,null,null,null,null,null,null,null,null,null,null,null,null,{"$f":"IF('出場ペア データ入力・貼付'!B114&'出場ペア データ入力・貼付'!E114=\"\",\"\",IF('出場ペア データ入力・貼付'!E114<>\"\",'出場ペア データ入力・貼付'!E114,'出場ペア データ入力・貼付'!B114))","v":""},{"$f":"IFERROR('出場ペア データ入力・貼付'!H114,\"\")","v":""},{"$f":"IFERROR('出場ペア データ入力・貼付'!I114,\"\")","v":""},{"$f":"IFERROR('出場ペア データ入力・貼付'!J114,\"\")","v":""}]
[null,null,null,null,null,null,null,null,null,null,null,null,null,null,null,null,null,null,null,null,null,null,null,null,{"$f":"IF('出場ペア データ入力・貼付'!B115&'出場ペア データ入力・貼付'!E115=\"\",\"\",IF('出場ペア データ入力・貼付'!E115<>\"\",'出場ペア データ入力・貼付'!E115,'出場ペア データ入力・貼付'!B115))","v":""},{"$f":"IFERROR('出場ペア データ入力・貼付'!H115,\"\")","v":""},{"$f":"IFERROR('出場ペア データ入力・貼付'!I115,\"\")","v":""},{"$f":"IFERROR('出場ペア データ入力・貼付'!J115,\"\")","v":""}]
[null,null,null,null,null,null,null,null,null,null,null,null,null,null,null,null,null,null,null,null,null,null,null,null,{"$f":"IF('出場ペア データ入力・貼付'!B116&'出場ペア データ入力・貼付'!E116=\"\",\"\",IF('出場ペア データ入力・貼付'!E116<>\"\",'出場ペア データ入力・貼付'!E116,'出場ペア データ入力・貼付'!B116))","v":""},{"$f":"IFERROR('出場ペア データ入力・貼付'!H116,\"\")","v":""},{"$f":"IFERROR('出場ペア データ入力・貼付'!I116,\"\")","v":""},{"$f":"IFERROR('出場ペア データ入力・貼付'!J116,\"\")","v":""}]
[null,null,null,null,null,null,null,null,null,null,null,null,null,null,null,null,null,null,null,null,null,null,null,null,{"$f":"IF('出場ペア データ入力・貼付'!B117&'出場ペア データ入力・貼付'!E117=\"\",\"\",IF('出場ペア データ入力・貼付'!E117<>\"\",'出場ペア データ入力・貼付'!E117,'出場ペア データ入力・貼付'!B117))","v":""},{"$f":"IFERROR('出場ペア データ入力・貼付'!H117,\"\")","v":""},{"$f":"IFERROR('出場ペア データ入力・貼付'!I117,\"\")","v":""},{"$f":"IFERROR('出場ペア データ入力・貼付'!J117,\"\")","v":""}]
[null,null,null,null,null,null,null,null,null,null,null,null,null,null,null,null,null,null,null,null,null,null,null,null,{"$f":"IF('出場ペア データ入力・貼付'!B118&'出場ペア データ入力・貼付'!E118=\"\",\"\",IF('出場ペア データ入力・貼付'!E118<>\"\",'出場ペア データ入力・貼付'!E118,'出場ペア データ入力・貼付'!B118))","v":""},{"$f":"IFERROR('出場ペア データ入力・貼付'!H118,\"\")","v":""},{"$f":"IFERROR('出場ペア データ入力・貼付'!I118,\"\")","v":""},{"$f":"IFERROR('出場ペア データ入力・貼付'!J118,\"\")","v":""}]
[null,null,null,null,null,null,null,null,null,null,null,null,null,null,null,null,null,null,null,null,null,null,null,null,{"$f":"IF('出場ペア データ入力・貼付'!B119&'出場ペア データ入力・貼付'!E119=\"\",\"\",IF('出場ペア データ入力・貼付'!E119<>\"\",'出場ペア データ入力・貼付'!E119,'出場ペア データ入力・貼付'!B119))","v":""},{"$f":"IFERROR('出場ペア データ入力・貼付'!H119,\"\")","v":""},{"$f":"IFERROR('出場ペア データ入力・貼付'!I119,\"\")","v":""},{"$f":"IFERROR('出場ペア データ入力・貼付'!J119,\"\")","v":""}]
[null,null,null,null,null,null,null,null,null,null,null,null,null,null,null,null,null,null,null,null,null,null,null,null,{"$f":"IF('出場ペア データ入力・貼付'!B120&'出場ペア データ入力・貼付'!E120=\"\",\"\",IF('出場ペア データ入力・貼付'!E120<>\"\",'出場ペア データ入力・貼付'!E120,'出場ペア データ入力・貼付'!B120))","v":""},{"$f":"IFERROR('出場ペア データ入力・貼付'!H120,\"\")","v":""},{"$f":"IFERROR('出場ペア データ入力・貼付'!I120,\"\")","v":""},{"$f":"IFERROR('出場ペア データ入力・貼付'!J120,\"\")","v":""}]
[null,null,null,null,null,null,null,null,null,null,null,null,null,null,null,null,null,null,null,null,null,null,null,null,{"$f":"IF('出場ペア データ入力・貼付'!B121&'出場ペア データ入力・貼付'!E121=\"\",\"\",IF('出場ペア データ入力・貼付'!E121<>\"\",'出場ペア データ入力・貼付'!E121,'出場ペア データ入力・貼付'!B121))","v":""},{"$f":"IFERROR('出場ペア データ入力・貼付'!H121,\"\")","v":""},{"$f":"IFERROR('出場ペア データ入力・貼付'!I121,\"\")","v":""},{"$f":"IFERROR('出場ペア データ入力・貼付'!J121,\"\")","v":""}]
[null,null,null,null,null,null,null,null,null,null,null,null,null,null,null,null,null,null,null,null,null,null,null,null,{"$f":"IF('出場ペア データ入力・貼付'!B122&'出場ペア データ入力・貼付'!E122=\"\",\"\",IF('出場ペア データ入力・貼付'!E122<>\"\",'出場ペア データ入力・貼付'!E122,'出場ペア データ入力・貼付'!B122))","v":""},{"$f":"IFERROR('出場ペア データ入力・貼付'!H122,\"\")","v":""},{"$f":"IFERROR('出場ペア データ入力・貼付'!I122,\"\")","v":""},{"$f":"IFERROR('出場ペア データ入力・貼付'!J122,\"\")","v":""}]
[null,null,null,null,null,null,null,null,null,null,null,null,null,null,null,null,null,null,null,null,null,null,null,null,{"$f":"IF('出場ペア データ入力・貼付'!B123&'出場ペア データ入力・貼付'!E123=\"\",\"\",IF('出場ペア データ入力・貼付'!E123<>\"\",'出場ペア データ入力・貼付'!E123,'出場ペア データ入力・貼付'!B123))","v":""},{"$f":"IFERROR('出場ペア データ入力・貼付'!H123,\"\")","v":""},{"$f":"IFERROR('出場ペア データ入力・貼付'!I123,\"\")","v":""},{"$f":"IFERROR('出場ペア データ入力・貼付'!J123,\"\")","v":""}]
[null,null,null,null,null,null,null,null,null,null,null,null,null,null,null,null,null,null,null,null,null,null,null,null,{"$f":"IF('出場ペア データ入力・貼付'!B124&'出場ペア データ入力・貼付'!E124=\"\",\"\",IF('出場ペア データ入力・貼付'!E124<>\"\",'出場ペア データ入力・貼付'!E124,'出場ペア データ入力・貼付'!B124))","v":""},{"$f":"IFERROR('出場ペア データ入力・貼付'!H124,\"\")","v":""},{"$f":"IFERROR('出場ペア データ入力・貼付'!I124,\"\")","v":""},{"$f":"IFERROR('出場ペア データ入力・貼付'!J124,\"\")","v":""}]
[null,null,null,null,null,null,null,null,null,null,null,null,null,null,null,null,null,null,null,null,null,null,null,null,{"$f":"IF('出場ペア データ入力・貼付'!B125&'出場ペア データ入力・貼付'!E125=\"\",\"\",IF('出場ペア データ入力・貼付'!E125<>\"\",'出場ペア データ入力・貼付'!E125,'出場ペア データ入力・貼付'!B125))","v":""},{"$f":"IFERROR('出場ペア データ入力・貼付'!H125,\"\")","v":""},{"$f":"IFERROR('出場ペア データ入力・貼付'!I125,\"\")","v":""},{"$f":"IFERROR('出場ペア データ入力・貼付'!J125,\"\")","v":""}]
[null,null,null,null,null,null,null,null,null,null,null,null,null,null,null,null,null,null,null,null,null,null,null,null,{"$f":"IF('出場ペア データ入力・貼付'!B126&'出場ペア データ入力・貼付'!E126=\"\",\"\",IF('出場ペア データ入力・貼付'!E126<>\"\",'出場ペア データ入力・貼付'!E126,'出場ペア データ入力・貼付'!B126))","v":""},{"$f":"IFERROR('出場ペア データ入力・貼付'!H126,\"\")","v":""},{"$f":"IFERROR('出場ペア データ入力・貼付'!I126,\"\")","v":""},{"$f":"IFERROR('出場ペア データ入力・貼付'!J126,\"\")","v":""}]
[null,null,null,null,null,null,null,null,null,null,null,null,null,null,null,null,null,null,null,null,null,null,null,null,{"$f":"IF('出場ペア データ入力・貼付'!B127&'出場ペア データ入力・貼付'!E127=\"\",\"\",IF('出場ペア データ入力・貼付'!E127<>\"\",'出場ペア データ入力・貼付'!E127,'出場ペア データ入力・貼付'!B127))","v":""},{"$f":"IFERROR('出場ペア データ入力・貼付'!H127,\"\")","v":""},{"$f":"IFERROR('出場ペア データ入力・貼付'!I127,\"\")","v":""},{"$f":"IFERROR('出場ペア データ入力・貼付'!J127,\"\")","v":""}]
[null,null,null,null,null,null,null,null,null,null,null,null,null,null,null,null,null,null,null,null,null,null,null,null,{"$f":"IF('出場ペア データ入力・貼付'!B128&'出場ペア データ入力・貼付'!E128=\"\",\"\",IF('出場ペア データ入力・貼付'!E128<>\"\",'出場ペア データ入力・貼付'!E128,'出場ペア データ入力・貼付'!B128))","v":""},{"$f":"IFERROR('出場ペア データ入力・貼付'!H128,\"\")","v":""},{"$f":"IFERROR('出場ペア データ入力・貼付'!I128,\"\")","v":""},{"$f":"IFERROR('出場ペア データ入力・貼付'!J128,\"\")","v":""}]
[null,null,null,null,null,null,null,null,null,null,null,null,null,null,null,null,null,null,null,null,null,null,null,null,{"$f":"IF('出場ペア データ入力・貼付'!B129&'出場ペア データ入力・貼付'!E129=\"\",\"\",IF('出場ペア データ入力・貼付'!E129<>\"\",'出場ペア データ入力・貼付'!E129,'出場ペア データ入力・貼付'!B129))","v":""},{"$f":"IFERROR('出場ペア データ入力・貼付'!H129,\"\")","v":""},{"$f":"IFERROR('出場ペア データ入力・貼付'!I129,\"\")","v":""},{"$f":"IFERROR('出場ペア データ入力・貼付'!J129,\"\")","v":""}]
[null,null,null,null,null,null,null,null,null,null,null,null,null,null,null,null,null,null,null,null,null,null,null,null,{"$f":"IF('出場ペア データ入力・貼付'!B130&'出場ペア データ入力・貼付'!E130=\"\",\"\",IF('出場ペア データ入力・貼付'!E130<>\"\",'出場ペア データ入力・貼付'!E130,'出場ペア データ入力・貼付'!B130))","v":""},{"$f":"IFERROR('出場ペア データ入力・貼付'!H130,\"\")","v":""},{"$f":"IFERROR('出場ペア データ入力・貼付'!I130,\"\")","v":""},{"$f":"IFERROR('出場ペア データ入力・貼付'!J130,\"\")","v":""}]
[null,null,null,null,null,null,null,null,null,null,null,null,null,null,null,null,null,null,null,null,null,null,null,null,{"$f":"IF('出場ペア データ入力・貼付'!B131&'出場ペア データ入力・貼付'!E131=\"\",\"\",IF('出場ペア データ入力・貼付'!E131<>\"\",'出場ペア データ入力・貼付'!E131,'出場ペア データ入力・貼付'!B131))","v":""},{"$f":"IFERROR('出場ペア データ入力・貼付'!H131,\"\")","v":""},{"$f":"IFERROR('出場ペア データ入力・貼付'!I131,\"\")","v":""},{"$f":"IFERROR('出場ペア データ入力・貼付'!J131,\"\")","v":""}]
[null,null,null,null,null,null,null,null,null,null,null,null,null,null,null,null,null,null,null,null,null,null,null,null,{"$f":"IF('出場ペア データ入力・貼付'!B132&'出場ペア データ入力・貼付'!E132=\"\",\"\",IF('出場ペア データ入力・貼付'!E132<>\"\",'出場ペア データ入力・貼付'!E132,'出場ペア データ入力・貼付'!B132))","v":""},{"$f":"IFERROR('出場ペア データ入力・貼付'!H132,\"\")","v":""},{"$f":"IFERROR('出場ペア データ入力・貼付'!I132,\"\")","v":""},{"$f":"IFERROR('出場ペア データ入力・貼付'!J132,\"\")","v":""}]
[null,null,null,null,null,null,null,null,null,null,null,null,null,null,null,null,null,null,null,null,null,null,null,null,{"$f":"IF('出場ペア データ入力・貼付'!B133&'出場ペア データ入力・貼付'!E133=\"\",\"\",IF('出場ペア データ入力・貼付'!E133<>\"\",'出場ペア データ入力・貼付'!E133,'出場ペア データ入力・貼付'!B133))","v":""},{"$f":"IFERROR('出場ペア データ入力・貼付'!H133,\"\")","v":""},{"$f":"IFERROR('出場ペア データ入力・貼付'!I133,\"\")","v":""},{"$f":"IFERROR('出場ペア データ入力・貼付'!J133,\"\")","v":""}]
[null,null,null,null,null,null,null,null,null,null,null,null,null,null,null,null,null,null,null,null,null,null,null,null,{"$f":"IF('出場ペア データ入力・貼付'!B134&'出場ペア データ入力・貼付'!E134=\"\",\"\",IF('出場ペア データ入力・貼付'!E134<>\"\",'出場ペア データ入力・貼付'!E134,'出場ペア データ入力・貼付'!B134))","v":""},{"$f":"IFERROR('出場ペア データ入力・貼付'!H134,\"\")","v":""},{"$f":"IFERROR('出場ペア データ入力・貼付'!I134,\"\")","v":""},{"$f":"IFERROR('出場ペア データ入力・貼付'!J134,\"\")","v":""}]
[null,null,null,null,null,null,null,null,null,null,null,null,null,null,null,null,null,null,null,null,null,null,null,null,{"$f":"IF('出場ペア データ入力・貼付'!B135&'出場ペア データ入力・貼付'!E135=\"\",\"\",IF('出場ペア データ入力・貼付'!E135<>\"\",'出場ペア データ入力・貼付'!E135,'出場ペア データ入力・貼付'!B135))","v":""},{"$f":"IFERROR('出場ペア データ入力・貼付'!H135,\"\")","v":""},{"$f":"IFERROR('出場ペア データ入力・貼付'!I135,\"\")","v":""},{"$f":"IFERROR('出場ペア データ入力・貼付'!J135,\"\")","v":""}]
[null,null,null,null,null,null,null,null,null,null,null,null,null,null,null,null,null,null,null,null,null,null,null,null,{"$f":"IF('出場ペア データ入力・貼付'!B136&'出場ペア データ入力・貼付'!E136=\"\",\"\",IF('出場ペア データ入力・貼付'!E136<>\"\",'出場ペア データ入力・貼付'!E136,'出場ペア データ入力・貼付'!B136))","v":""},{"$f":"IFERROR('出場ペア データ入力・貼付'!H136,\"\")","v":""},{"$f":"IFERROR('出場ペア データ入力・貼付'!I136,\"\")","v":""},{"$f":"IFERROR('出場ペア データ入力・貼付'!J136,\"\")","v":""}]
[null,null,null,null,null,null,null,null,null,null,null,null,null,null,null,null,null,null,null,null,null,null,null,null,{"$f":"IF('出場ペア データ入力・貼付'!B137&'出場ペア データ入力・貼付'!E137=\"\",\"\",IF('出場ペア データ入力・貼付'!E137<>\"\",'出場ペア データ入力・貼付'!E137,'出場ペア データ入力・貼付'!B137))","v":""},{"$f":"IFERROR('出場ペア データ入力・貼付'!H137,\"\")","v":""},{"$f":"IFERROR('出場ペア データ入力・貼付'!I137,\"\")","v":""},{"$f":"IFERROR('出場ペア データ入力・貼付'!J137,\"\")","v":""}]
[null,null,null,null,null,null,null,null,null,null,null,null,null,null,null,null,null,null,null,null,null,null,null,null,{"$f":"IF('出場ペア データ入力・貼付'!B138&'出場ペア データ入力・貼付'!E138=\"\",\"\",IF('出場ペア データ入力・貼付'!E138<>\"\",'出場ペア データ入力・貼付'!E138,'出場ペア データ入力・貼付'!B138))","v":""},{"$f":"IFERROR('出場ペア データ入力・貼付'!H138,\"\")","v":""},{"$f":"IFERROR('出場ペア データ入力・貼付'!I138,\"\")","v":""},{"$f":"IFERROR('出場ペア データ入力・貼付'!J138,\"\")","v":""}]
[null,null,null,null,null,null,null,null,null,null,null,null,null,null,null,null,null,null,null,null,null,null,null,null,{"$f":"IF('出場ペア データ入力・貼付'!B139&'出場ペア データ入力・貼付'!E139=\"\",\"\",IF('出場ペア データ入力・貼付'!E139<>\"\",'出場ペア データ入力・貼付'!E139,'出場ペア データ入力・貼付'!B139))","v":""},{"$f":"IFERROR('出場ペア データ入力・貼付'!H139,\"\")","v":""},{"$f":"IFERROR('出場ペア データ入力・貼付'!I139,\"\")","v":""},{"$f":"IFERROR('出場ペア データ入力・貼付'!J139,\"\")","v":""}]
[null,null,null,null,null,null,null,null,null,null,null,null,null,null,null,null,null,null,null,null,null,null,null,null,{"$f":"IF('出場ペア データ入力・貼付'!B140&'出場ペア データ入力・貼付'!E140=\"\",\"\",IF('出場ペア データ入力・貼付'!E140<>\"\",'出場ペア データ入力・貼付'!E140,'出場ペア データ入力・貼付'!B140))","v":""},{"$f":"IFERROR('出場ペア データ入力・貼付'!H140,\"\")","v":""},{"$f":"IFERROR('出場ペア データ入力・貼付'!I140,\"\")","v":""},{"$f":"IFERROR('出場ペア データ入力・貼付'!J140,\"\")","v":""}]
[null,null,null,null,null,null,null,null,null,null,null,null,null,null,null,null,null,null,null,null,null,null,null,null,{"$f":"IF('出場ペア データ入力・貼付'!B141&'出場ペア データ入力・貼付'!E141=\"\",\"\",IF('出場ペア データ入力・貼付'!E141<>\"\",'出場ペア データ入力・貼付'!E141,'出場ペア データ入力・貼付'!B141))","v":""},{"$f":"IFERROR('出場ペア データ入力・貼付'!H141,\"\")","v":""},{"$f":"IFERROR('出場ペア データ入力・貼付'!I141,\"\")","v":""},{"$f":"IFERROR('出場ペア データ入力・貼付'!J141,\"\")","v":""}]
[null,null,null,null,null,null,null,null,null,null,null,null,null,null,null,null,null,null,null,null,null,null,null,null,{"$f":"IF('出場ペア データ入力・貼付'!B142&'出場ペア データ入力・貼付'!E142=\"\",\"\",IF('出場ペア データ入力・貼付'!E142<>\"\",'出場ペア データ入力・貼付'!E142,'出場ペア データ入力・貼付'!B142))","v":""},{"$f":"IFERROR('出場ペア データ入力・貼付'!H142,\"\")","v":""},{"$f":"IFERROR('出場ペア データ入力・貼付'!I142,\"\")","v":""},{"$f":"IFERROR('出場ペア データ入力・貼付'!J142,\"\")","v":""}]
[null,null,null,null,null,null,null,null,null,null,null,null,null,null,null,null,null,null,null,null,null,null,null,null,{"$f":"IF('出場ペア データ入力・貼付'!B143&'出場ペア データ入力・貼付'!E143=\"\",\"\",IF('出場ペア データ入力・貼付'!E143<>\"\",'出場ペア データ入力・貼付'!E143,'出場ペア データ入力・貼付'!B143))","v":""},{"$f":"IFERROR('出場ペア データ入力・貼付'!H143,\"\")","v":""},{"$f":"IFERROR('出場ペア データ入力・貼付'!I143,\"\")","v":""},{"$f":"IFERROR('出場ペア データ入力・貼付'!J143,\"\")","v":""}]
[null,null,null,null,null,null,null,null,null,null,null,null,null,null,null,null,null,null,null,null,null,null,null,null,{"$f":"IF('出場ペア データ入力・貼付'!B144&'出場ペア データ入力・貼付'!E144=\"\",\"\",IF('出場ペア データ入力・貼付'!E144<>\"\",'出場ペア データ入力・貼付'!E144,'出場ペア データ入力・貼付'!B144))","v":""},{"$f":"IFERROR('出場ペア データ入力・貼付'!H144,\"\")","v":""},{"$f":"IFERROR('出場ペア データ入力・貼付'!I144,\"\")","v":""},{"$f":"IFERROR('出場ペア データ入力・貼付'!J144,\"\")","v":""}]
[null,null,null,null,null,null,null,null,null,null,null,null,null,null,null,null,null,null,null,null,null,null,null,null,{"$f":"IF('出場ペア データ入力・貼付'!B145&'出場ペア データ入力・貼付'!E145=\"\",\"\",IF('出場ペア データ入力・貼付'!E145<>\"\",'出場ペア データ入力・貼付'!E145,'出場ペア データ入力・貼付'!B145))","v":""},{"$f":"IFERROR('出場ペア データ入力・貼付'!H145,\"\")","v":""},{"$f":"IFERROR('出場ペア データ入力・貼付'!I145,\"\")","v":""},{"$f":"IFERROR('出場ペア データ入力・貼付'!J145,\"\")","v":""}]
[null,null,null,null,null,null,null,null,null,null,null,null,null,null,null,null,null,null,null,null,null,null,null,null,{"$f":"IF('出場ペア データ入力・貼付'!B146&'出場ペア データ入力・貼付'!E146=\"\",\"\",IF('出場ペア データ入力・貼付'!E146<>\"\",'出場ペア データ入力・貼付'!E146,'出場ペア データ入力・貼付'!B146))","v":""},{"$f":"IFERROR('出場ペア データ入力・貼付'!H146,\"\")","v":""},{"$f":"IFERROR('出場ペア データ入力・貼付'!I146,\"\")","v":""},{"$f":"IFERROR('出場ペア データ入力・貼付'!J146,\"\")","v":""}]
[null,null,null,null,null,null,null,null,null,null,null,null,null,null,null,null,null,null,null,null,null,null,null,null,{"$f":"IF('出場ペア データ入力・貼付'!B147&'出場ペア データ入力・貼付'!E147=\"\",\"\",IF('出場ペア データ入力・貼付'!E147<>\"\",'出場ペア データ入力・貼付'!E147,'出場ペア データ入力・貼付'!B147))","v":""},{"$f":"IFERROR('出場ペア データ入力・貼付'!H147,\"\")","v":""},{"$f":"IFERROR('出場ペア データ入力・貼付'!I147,\"\")","v":""},{"$f":"IFERROR('出場ペア データ入力・貼付'!J147,\"\")","v":""}]
[null,null,null,null,null,null,null,null,null,null,null,null,null,null,null,null,null,null,null,null,null,null,null,null,{"$f":"IF('出場ペア データ入力・貼付'!B148&'出場ペア データ入力・貼付'!E148=\"\",\"\",IF('出場ペア データ入力・貼付'!E148<>\"\",'出場ペア データ入力・貼付'!E148,'出場ペア データ入力・貼付'!B148))","v":""},{"$f":"IFERROR('出場ペア データ入力・貼付'!H148,\"\")","v":""},{"$f":"IFERROR('出場ペア データ入力・貼付'!I148,\"\")","v":""},{"$f":"IFERROR('出場ペア データ入力・貼付'!J148,\"\")","v":""}]
[null,null,null,null,null,null,null,null,null,null,null,null,null,null,null,null,null,null,null,null,null,null,null,null,{"$f":"IF('出場ペア データ入力・貼付'!B149&'出場ペア データ入力・貼付'!E149=\"\",\"\",IF('出場ペア データ入力・貼付'!E149<>\"\",'出場ペア データ入力・貼付'!E149,'出場ペア データ入力・貼付'!B149))","v":""},{"$f":"IFERROR('出場ペア データ入力・貼付'!H149,\"\")","v":""},{"$f":"IFERROR('出場ペア データ入力・貼付'!I149,\"\")","v":""},{"$f":"IFERROR('出場ペア データ入力・貼付'!J149,\"\")","v":""}]
[null,null,null,null,null,null,null,null,null,null,null,null,null,null,null,null,null,null,null,null,null,null,null,null,{"$f":"IF('出場ペア データ入力・貼付'!B150&'出場ペア データ入力・貼付'!E150=\"\",\"\",IF('出場ペア データ入力・貼付'!E150<>\"\",'出場ペア データ入力・貼付'!E150,'出場ペア データ入力・貼付'!B150))","v":""},{"$f":"IFERROR('出場ペア データ入力・貼付'!H150,\"\")","v":""},{"$f":"IFERROR('出場ペア データ入力・貼付'!I150,\"\")","v":""},{"$f":"IFERROR('出場ペア データ入力・貼付'!J150,\"\")","v":""}]
[null,null,null,null,null,null,null,null,null,null,null,null,null,null,null,null,null,null,null,null,null,null,null,null,{"$f":"IF('出場ペア データ入力・貼付'!B151&'出場ペア データ入力・貼付'!E151=\"\",\"\",IF('出場ペア データ入力・貼付'!E151<>\"\",'出場ペア データ入力・貼付'!E151,'出場ペア データ入力・貼付'!B151))","v":""},{"$f":"IFERROR('出場ペア データ入力・貼付'!H151,\"\")","v":""},{"$f":"IFERROR('出場ペア データ入力・貼付'!I151,\"\")","v":""},{"$f":"IFERROR('出場ペア データ入力・貼付'!J151,\"\")","v":""}]
[null,null,null,null,null,null,null,null,null,null,null,null,null,null,null,null,null,null,null,null,null,null,null,null,{"$f":"IF('出場ペア データ入力・貼付'!B152&'出場ペア データ入力・貼付'!E152=\"\",\"\",IF('出場ペア データ入力・貼付'!E152<>\"\",'出場ペア データ入力・貼付'!E152,'出場ペア データ入力・貼付'!B152))","v":""},{"$f":"IFERROR('出場ペア データ入力・貼付'!H152,\"\")","v":""},{"$f":"IFERROR('出場ペア データ入力・貼付'!I152,\"\")","v":""},{"$f":"IFERROR('出場ペア データ入力・貼付'!J152,\"\")","v":""}]
[null,null,null,null,null,null,null,null,null,null,null,null,null,null,null,null,null,null,null,null,null,null,null,null,{"$f":"IF('出場ペア データ入力・貼付'!B153&'出場ペア データ入力・貼付'!E153=\"\",\"\",IF('出場ペア データ入力・貼付'!E153<>\"\",'出場ペア データ入力・貼付'!E153,'出場ペア データ入力・貼付'!B153))","v":""},{"$f":"IFERROR('出場ペア データ入力・貼付'!H153,\"\")","v":""},{"$f":"IFERROR('出場ペア データ入力・貼付'!I153,\"\")","v":""},{"$f":"IFERROR('出場ペア データ入力・貼付'!J153,\"\")","v":""}]
[null,null,null,null,null,null,null,null,null,null,null,null,null,null,null,null,null,null,null,null,null,null,null,null,{"$f":"IF('出場ペア データ入力・貼付'!B154&'出場ペア データ入力・貼付'!E154=\"\",\"\",IF('出場ペア データ入力・貼付'!E154<>\"\",'出場ペア データ入力・貼付'!E154,'出場ペア データ入力・貼付'!B154))","v":""},{"$f":"IFERROR('出場ペア データ入力・貼付'!H154,\"\")","v":""},{"$f":"IFERROR('出場ペア データ入力・貼付'!I154,\"\")","v":""},{"$f":"IFERROR('出場ペア データ入力・貼付'!J154,\"\")","v":""}]
[null,null,null,null,null,null,null,null,null,null,null,null,null,null,null,null,null,null,null,null,null,null,null,null,{"$f":"IF('出場ペア データ入力・貼付'!B155&'出場ペア データ入力・貼付'!E155=\"\",\"\",IF('出場ペア データ入力・貼付'!E155<>\"\",'出場ペア データ入力・貼付'!E155,'出場ペア データ入力・貼付'!B155))","v":""},{"$f":"IFERROR('出場ペア データ入力・貼付'!H155,\"\")","v":""},{"$f":"IFERROR('出場ペア データ入力・貼付'!I155,\"\")","v":""},{"$f":"IFERROR('出場ペア データ入力・貼付'!J155,\"\")","v":""}]
[null,null,null,null,null,null,null,null,null,null,null,null,null,null,null,null,null,null,null,null,null,null,null,null,{"$f":"IF('出場ペア データ入力・貼付'!B156&'出場ペア データ入力・貼付'!E156=\"\",\"\",IF('出場ペア データ入力・貼付'!E156<>\"\",'出場ペア データ入力・貼付'!E156,'出場ペア データ入力・貼付'!B156))","v":""},{"$f":"IFERROR('出場ペア データ入力・貼付'!H156,\"\")","v":""},{"$f":"IFERROR('出場ペア データ入力・貼付'!I156,\"\")","v":""},{"$f":"IFERROR('出場ペア データ入力・貼付'!J156,\"\")","v":""}]
[null,null,null,null,null,null,null,null,null,null,null,null,null,null,null,null,null,null,null,null,null,null,null,null,{"$f":"IF('出場ペア データ入力・貼付'!B157&'出場ペア データ入力・貼付'!E157=\"\",\"\",IF('出場ペア データ入力・貼付'!E157<>\"\",'出場ペア データ入力・貼付'!E157,'出場ペア データ入力・貼付'!B157))","v":""},{"$f":"IFERROR('出場ペア データ入力・貼付'!H157,\"\")","v":""},{"$f":"IFERROR('出場ペア データ入力・貼付'!I157,\"\")","v":""},{"$f":"IFERROR('出場ペア データ入力・貼付'!J157,\"\")","v":""}]
[null,null,null,null,null,null,null,null,null,null,null,null,null,null,null,null,null,null,null,null,null,null,null,null,{"$f":"IF('出場ペア データ入力・貼付'!B158&'出場ペア データ入力・貼付'!E158=\"\",\"\",IF('出場ペア データ入力・貼付'!E158<>\"\",'出場ペア データ入力・貼付'!E158,'出場ペア データ入力・貼付'!B158))","v":""},{"$f":"IFERROR('出場ペア データ入力・貼付'!H158,\"\")","v":""},{"$f":"IFERROR('出場ペア データ入力・貼付'!I158,\"\")","v":""},{"$f":"IFERROR('出場ペア データ入力・貼付'!J158,\"\")","v":""}]
[null,null,null,null,null,null,null,null,null,null,null,null,null,null,null,null,null,null,null,null,null,null,null,null,{"$f":"IF('出場ペア データ入力・貼付'!B159&'出場ペア データ入力・貼付'!E159=\"\",\"\",IF('出場ペア データ入力・貼付'!E159<>\"\",'出場ペア データ入力・貼付'!E159,'出場ペア データ入力・貼付'!B159))","v":""},{"$f":"IFERROR('出場ペア データ入力・貼付'!H159,\"\")","v":""},{"$f":"IFERROR('出場ペア データ入力・貼付'!I159,\"\")","v":""},{"$f":"IFERROR('出場ペア データ入力・貼付'!J159,\"\")","v":""}]
[null,null,null,null,null,null,null,null,null,null,null,null,null,null,null,null,null,null,null,null,null,null,null,null,{"$f":"IF('出場ペア データ入力・貼付'!B160&'出場ペア データ入力・貼付'!E160=\"\",\"\",IF('出場ペア データ入力・貼付'!E160<>\"\",'出場ペア データ入力・貼付'!E160,'出場ペア データ入力・貼付'!B160))","v":""},{"$f":"IFERROR('出場ペア データ入力・貼付'!H160,\"\")","v":""},{"$f":"IFERROR('出場ペア データ入力・貼付'!I160,\"\")","v":""},{"$f":"IFERROR('出場ペア データ入力・貼付'!J160,\"\")","v":""}]
[null,null,null,null,null,null,null,null,null,null,null,null,null,null,null,null,null,null,null,null,null,null,null,null,{"$f":"IF('出場ペア データ入力・貼付'!B161&'出場ペア データ入力・貼付'!E161=\"\",\"\",IF('出場ペア データ入力・貼付'!E161<>\"\",'出場ペア データ入力・貼付'!E161,'出場ペア データ入力・貼付'!B161))","v":""},{"$f":"IFERROR('出場ペア データ入力・貼付'!H161,\"\")","v":""},{"$f":"IFERROR('出場ペア データ入力・貼付'!I161,\"\")","v":""},{"$f":"IFERROR('出場ペア データ入力・貼付'!J161,\"\")","v":""}]
[null,null,null,null,null,null,null,null,null,null,null,null,null,null,null,null,null,null,null,null,null,null,null,null,{"$f":"IF('出場ペア データ入力・貼付'!B162&'出場ペア データ入力・貼付'!E162=\"\",\"\",IF('出場ペア データ入力・貼付'!E162<>\"\",'出場ペア データ入力・貼付'!E162,'出場ペア データ入力・貼付'!B162))","v":""},{"$f":"IFERROR('出場ペア データ入力・貼付'!H162,\"\")","v":""},{"$f":"IFERROR('出場ペア データ入力・貼付'!I162,\"\")","v":""},{"$f":"IFERROR('出場ペア データ入力・貼付'!J162,\"\")","v":""}]
[null,null,null,null,null,null,null,null,null,null,null,null,null,null,null,null,null,null,null,null,null,null,null,null,{"$f":"IF('出場ペア データ入力・貼付'!B163&'出場ペア データ入力・貼付'!E163=\"\",\"\",IF('出場ペア データ入力・貼付'!E163<>\"\",'出場ペア データ入力・貼付'!E163,'出場ペア データ入力・貼付'!B163))","v":""},{"$f":"IFERROR('出場ペア データ入力・貼付'!H163,\"\")","v":""},{"$f":"IFERROR('出場ペア データ入力・貼付'!I163,\"\")","v":""},{"$f":"IFERROR('出場ペア データ入力・貼付'!J163,\"\")","v":""}]
[null,null,null,null,null,null,null,null,null,null,null,null,null,null,null,null,null,null,null,null,null,null,null,null,{"$f":"IF('出場ペア データ入力・貼付'!B164&'出場ペア データ入力・貼付'!E164=\"\",\"\",IF('出場ペア データ入力・貼付'!E164<>\"\",'出場ペア データ入力・貼付'!E164,'出場ペア データ入力・貼付'!B164))","v":""},{"$f":"IFERROR('出場ペア データ入力・貼付'!H164,\"\")","v":""},{"$f":"IFERROR('出場ペア データ入力・貼付'!I164,\"\")","v":""},{"$f":"IFERROR('出場ペア データ入力・貼付'!J164,\"\")","v":""}]
[null,null,null,null,null,null,null,null,null,null,null,null,null,null,null,null,null,null,null,null,null,null,null,null,{"$f":"IF('出場ペア データ入力・貼付'!B165&'出場ペア データ入力・貼付'!E165=\"\",\"\",IF('出場ペア データ入力・貼付'!E165<>\"\",'出場ペア データ入力・貼付'!E165,'出場ペア データ入力・貼付'!B165))","v":""},{"$f":"IFERROR('出場ペア データ入力・貼付'!H165,\"\")","v":""},{"$f":"IFERROR('出場ペア データ入力・貼付'!I165,\"\")","v":""},{"$f":"IFERROR('出場ペア データ入力・貼付'!J165,\"\")","v":""}]
[null,null,null,null,null,null,null,null,null,null,null,null,null,null,null,null,null,null,null,null,null,null,null,null,{"$f":"IF('出場ペア データ入力・貼付'!B166&'出場ペア データ入力・貼付'!E166=\"\",\"\",IF('出場ペア データ入力・貼付'!E166<>\"\",'出場ペア データ入力・貼付'!E166,'出場ペア データ入力・貼付'!B166))","v":""},{"$f":"IFERROR('出場ペア データ入力・貼付'!H166,\"\")","v":""},{"$f":"IFERROR('出場ペア データ入力・貼付'!I166,\"\")","v":""},{"$f":"IFERROR('出場ペア データ入力・貼付'!J166,\"\")","v":""}]
[null,null,null,null,null,null,null,null,null,null,null,null,null,null,null,null,null,null,null,null,null,null,null,null,{"$f":"IF('出場ペア データ入力・貼付'!B167&'出場ペア データ入力・貼付'!E167=\"\",\"\",IF('出場ペア データ入力・貼付'!E167<>\"\",'出場ペア データ入力・貼付'!E167,'出場ペア データ入力・貼付'!B167))","v":""},{"$f":"IFERROR('出場ペア データ入力・貼付'!H167,\"\")","v":""},{"$f":"IFERROR('出場ペア データ入力・貼付'!I167,\"\")","v":""},{"$f":"IFERROR('出場ペア データ入力・貼付'!J167,\"\")","v":""}]
[null,null,null,null,null,null,null,null,null,null,null,null,null,null,null,null,null,null,null,null,null,null,null,null,{"$f":"IF('出場ペア データ入力・貼付'!B168&'出場ペア データ入力・貼付'!E168=\"\",\"\",IF('出場ペア データ入力・貼付'!E168<>\"\",'出場ペア データ入力・貼付'!E168,'出場ペア データ入力・貼付'!B168))","v":""},{"$f":"IFERROR('出場ペア データ入力・貼付'!H168,\"\")","v":""},{"$f":"IFERROR('出場ペア データ入力・貼付'!I168,\"\")","v":""},{"$f":"IFERROR('出場ペア データ入力・貼付'!J168,\"\")","v":""}]
[null,null,null,null,null,null,null,null,null,null,null,null,null,null,null,null,null,null,null,null,null,null,null,null,{"$f":"IF('出場ペア データ入力・貼付'!B169&'出場ペア データ入力・貼付'!E169=\"\",\"\",IF('出場ペア データ入力・貼付'!E169<>\"\",'出場ペア データ入力・貼付'!E169,'出場ペア データ入力・貼付'!B169))","v":""},{"$f":"IFERROR('出場ペア データ入力・貼付'!H169,\"\")","v":""},{"$f":"IFERROR('出場ペア データ入力・貼付'!I169,\"\")","v":""},{"$f":"IFERROR('出場ペア データ入力・貼付'!J169,\"\")","v":""}]
[null,null,null,null,null,null,null,null,null,null,null,null,null,null,null,null,null,null,null,null,null,null,null,null,{"$f":"IF('出場ペア データ入力・貼付'!B170&'出場ペア データ入力・貼付'!E170=\"\",\"\",IF('出場ペア データ入力・貼付'!E170<>\"\",'出場ペア データ入力・貼付'!E170,'出場ペア データ入力・貼付'!B170))","v":""},{"$f":"IFERROR('出場ペア データ入力・貼付'!H170,\"\")","v":""},{"$f":"IFERROR('出場ペア データ入力・貼付'!I170,\"\")","v":""},{"$f":"IFERROR('出場ペア データ入力・貼付'!J170,\"\")","v":""}]
[null,null,null,null,null,null,null,null,null,null,null,null,null,null,null,null,null,null,null,null,null,null,null,null,{"$f":"IF('出場ペア データ入力・貼付'!B171&'出場ペア データ入力・貼付'!E171=\"\",\"\",IF('出場ペア データ入力・貼付'!E171<>\"\",'出場ペア データ入力・貼付'!E171,'出場ペア データ入力・貼付'!B171))","v":""},{"$f":"IFERROR('出場ペア データ入力・貼付'!H171,\"\")","v":""},{"$f":"IFERROR('出場ペア データ入力・貼付'!I171,\"\")","v":""},{"$f":"IFERROR('出場ペア データ入力・貼付'!J171,\"\")","v":""}]
[null,null,null,null,null,null,null,null,null,null,null,null,null,null,null,null,null,null,null,null,null,null,null,null,{"$f":"IF('出場ペア データ入力・貼付'!B172&'出場ペア データ入力・貼付'!E172=\"\",\"\",IF('出場ペア データ入力・貼付'!E172<>\"\",'出場ペア データ入力・貼付'!E172,'出場ペア データ入力・貼付'!B172))","v":""},{"$f":"IFERROR('出場ペア データ入力・貼付'!H172,\"\")","v":""},{"$f":"IFERROR('出場ペア データ入力・貼付'!I172,\"\")","v":""},{"$f":"IFERROR('出場ペア データ入力・貼付'!J172,\"\")","v":""}]
[null,null,null,null,null,null,null,null,null,null,null,null,null,null,null,null,null,null,null,null,null,null,null,null,{"$f":"IF('出場ペア データ入力・貼付'!B173&'出場ペア データ入力・貼付'!E173=\"\",\"\",IF('出場ペア データ入力・貼付'!E173<>\"\",'出場ペア データ入力・貼付'!E173,'出場ペア データ入力・貼付'!B173))","v":""},{"$f":"IFERROR('出場ペア データ入力・貼付'!H173,\"\")","v":""},{"$f":"IFERROR('出場ペア データ入力・貼付'!I173,\"\")","v":""},{"$f":"IFERROR('出場ペア データ入力・貼付'!J173,\"\")","v":""}]
[null,null,null,null,null,null,null,null,null,null,null,null,null,null,null,null,null,null,null,null,null,null,null,null,{"$f":"IF('出場ペア データ入力・貼付'!B174&'出場ペア データ入力・貼付'!E174=\"\",\"\",IF('出場ペア データ入力・貼付'!E174<>\"\",'出場ペア データ入力・貼付'!E174,'出場ペア データ入力・貼付'!B174))","v":""},{"$f":"IFERROR('出場ペア データ入力・貼付'!H174,\"\")","v":""},{"$f":"IFERROR('出場ペア データ入力・貼付'!I174,\"\")","v":""},{"$f":"IFERROR('出場ペア データ入力・貼付'!J174,\"\")","v":""}]
[null,null,null,null,null,null,null,null,null,null,null,null,null,null,null,null,null,null,null,null,null,null,null,null,{"$f":"IF('出場ペア データ入力・貼付'!B175&'出場ペア データ入力・貼付'!E175=\"\",\"\",IF('出場ペア データ入力・貼付'!E175<>\"\",'出場ペア データ入力・貼付'!E175,'出場ペア データ入力・貼付'!B175))","v":""},{"$f":"IFERROR('出場ペア データ入力・貼付'!H175,\"\")","v":""},{"$f":"IFERROR('出場ペア データ入力・貼付'!I175,\"\")","v":""},{"$f":"IFERROR('出場ペア データ入力・貼付'!J175,\"\")","v":""}]
[null,null,null,null,null,null,null,null,null,null,null,null,null,null,null,null,null,null,null,null,null,null,null,null,{"$f":"IF('出場ペア データ入力・貼付'!B176&'出場ペア データ入力・貼付'!E176=\"\",\"\",IF('出場ペア データ入力・貼付'!E176<>\"\",'出場ペア データ入力・貼付'!E176,'出場ペア データ入力・貼付'!B176))","v":""},{"$f":"IFERROR('出場ペア データ入力・貼付'!H176,\"\")","v":""},{"$f":"IFERROR('出場ペア データ入力・貼付'!I176,\"\")","v":""},{"$f":"IFERROR('出場ペア データ入力・貼付'!J176,\"\")","v":""}]
[null,null,null,null,null,null,null,null,null,null,null,null,null,null,null,null,null,null,null,null,null,null,null,null,{"$f":"IF('出場ペア データ入力・貼付'!B177&'出場ペア データ入力・貼付'!E177=\"\",\"\",IF('出場ペア データ入力・貼付'!E177<>\"\",'出場ペア データ入力・貼付'!E177,'出場ペア データ入力・貼付'!B177))","v":""},{"$f":"IFERROR('出場ペア データ入力・貼付'!H177,\"\")","v":""},{"$f":"IFERROR('出場ペア データ入力・貼付'!I177,\"\")","v":""},{"$f":"IFERROR('出場ペア データ入力・貼付'!J177,\"\")","v":""}]
[null,null,null,null,null,null,null,null,null,null,null,null,null,null,null,null,null,null,null,null,null,null,null,null,{"$f":"IF('出場ペア データ入力・貼付'!B178&'出場ペア データ入力・貼付'!E178=\"\",\"\",IF('出場ペア データ入力・貼付'!E178<>\"\",'出場ペア データ入力・貼付'!E178,'出場ペア データ入力・貼付'!B178))","v":""},{"$f":"IFERROR('出場ペア データ入力・貼付'!H178,\"\")","v":""},{"$f":"IFERROR('出場ペア データ入力・貼付'!I178,\"\")","v":""},{"$f":"IFERROR('出場ペア データ入力・貼付'!J178,\"\")","v":""}]
[null,null,null,null,null,null,null,null,null,null,null,null,null,null,null,null,null,null,null,null,null,null,null,null,{"$f":"IF('出場ペア データ入力・貼付'!B179&'出場ペア データ入力・貼付'!E179=\"\",\"\",IF('出場ペア データ入力・貼付'!E179<>\"\",'出場ペア データ入力・貼付'!E179,'出場ペア データ入力・貼付'!B179))","v":""},{"$f":"IFERROR('出場ペア データ入力・貼付'!H179,\"\")","v":""},{"$f":"IFERROR('出場ペア データ入力・貼付'!I179,\"\")","v":""},{"$f":"IFERROR('出場ペア データ入力・貼付'!J179,\"\")","v":""}]
[null,null,null,null,null,null,null,null,null,null,null,null,null,null,null,null,null,null,null,null,null,null,null,null,{"$f":"IF('出場ペア データ入力・貼付'!B180&'出場ペア データ入力・貼付'!E180=\"\",\"\",IF('出場ペア データ入力・貼付'!E180<>\"\",'出場ペア データ入力・貼付'!E180,'出場ペア データ入力・貼付'!B180))","v":""},{"$f":"IFERROR('出場ペア データ入力・貼付'!H180,\"\")","v":""},{"$f":"IFERROR('出場ペア データ入力・貼付'!I180,\"\")","v":""},{"$f":"IFERROR('出場ペア データ入力・貼付'!J180,\"\")","v":""}]
[null,null,null,null,null,null,null,null,null,null,null,null,null,null,null,null,null,null,null,null,null,null,null,null,{"$f":"IF('出場ペア データ入力・貼付'!B181&'出場ペア データ入力・貼付'!E181=\"\",\"\",IF('出場ペア データ入力・貼付'!E181<>\"\",'出場ペア データ入力・貼付'!E181,'出場ペア データ入力・貼付'!B181))","v":""},{"$f":"IFERROR('出場ペア データ入力・貼付'!H181,\"\")","v":""},{"$f":"IFERROR('出場ペア データ入力・貼付'!I181,\"\")","v":""},{"$f":"IFERROR('出場ペア データ入力・貼付'!J181,\"\")","v":""}]
[null,null,null,null,null,null,null,null,null,null,null,null,null,null,null,null,null,null,null,null,null,null,null,null,{"$f":"IF('出場ペア データ入力・貼付'!B182&'出場ペア データ入力・貼付'!E182=\"\",\"\",IF('出場ペア データ入力・貼付'!E182<>\"\",'出場ペア データ入力・貼付'!E182,'出場ペア データ入力・貼付'!B182))","v":""},{"$f":"IFERROR('出場ペア データ入力・貼付'!H182,\"\")","v":""},{"$f":"IFERROR('出場ペア データ入力・貼付'!I182,\"\")","v":""},{"$f":"IFERROR('出場ペア データ入力・貼付'!J182,\"\")","v":""}]
[null,null,null,null,null,null,null,null,null,null,null,null,null,null,null,null,null,null,null,null,null,null,null,null,{"$f":"IF('出場ペア データ入力・貼付'!B183&'出場ペア データ入力・貼付'!E183=\"\",\"\",IF('出場ペア データ入力・貼付'!E183<>\"\",'出場ペア データ入力・貼付'!E183,'出場ペア データ入力・貼付'!B183))","v":""},{"$f":"IFERROR('出場ペア データ入力・貼付'!H183,\"\")","v":""},{"$f":"IFERROR('出場ペア データ入力・貼付'!I183,\"\")","v":""},{"$f":"IFERROR('出場ペア データ入力・貼付'!J183,\"\")","v":""}]
[null,null,null,null,null,null,null,null,null,null,null,null,null,null,null,null,null,null,null,null,null,null,null,null,{"$f":"IF('出場ペア データ入力・貼付'!B184&'出場ペア データ入力・貼付'!E184=\"\",\"\",IF('出場ペア データ入力・貼付'!E184<>\"\",'出場ペア データ入力・貼付'!E184,'出場ペア データ入力・貼付'!B184))","v":""},{"$f":"IFERROR('出場ペア データ入力・貼付'!H184,\"\")","v":""},{"$f":"IFERROR('出場ペア データ入力・貼付'!I184,\"\")","v":""},{"$f":"IFERROR('出場ペア データ入力・貼付'!J184,\"\")","v":""}]
[null,null,null,null,null,null,null,null,null,null,null,null,null,null,null,null,null,null,null,null,null,null,null,null,{"$f":"IF('出場ペア データ入力・貼付'!B185&'出場ペア データ入力・貼付'!E185=\"\",\"\",IF('出場ペア データ入力・貼付'!E185<>\"\",'出場ペア データ入力・貼付'!E185,'出場ペア データ入力・貼付'!B185))","v":""},{"$f":"IFERROR('出場ペア データ入力・貼付'!H185,\"\")","v":""},{"$f":"IFERROR('出場ペア データ入力・貼付'!I185,\"\")","v":""},{"$f":"IFERROR('出場ペア データ入力・貼付'!J185,\"\")","v":""}]
[null,null,null,null,null,null,null,null,null,null,null,null,null,null,null,null,null,null,null,null,null,null,null,null,{"$f":"IF('出場ペア データ入力・貼付'!B186&'出場ペア データ入力・貼付'!E186=\"\",\"\",IF('出場ペア データ入力・貼付'!E186<>\"\",'出場ペア データ入力・貼付'!E186,'出場ペア データ入力・貼付'!B186))","v":""},{"$f":"IFERROR('出場ペア データ入力・貼付'!H186,\"\")","v":""},{"$f":"IFERROR('出場ペア データ入力・貼付'!I186,\"\")","v":""},{"$f":"IFERROR('出場ペア データ入力・貼付'!J186,\"\")","v":""}]
[null,null,null,null,null,null,null,null,null,null,null,null,null,null,null,null,null,null,null,null,null,null,null,null,{"$f":"IF('出場ペア データ入力・貼付'!B187&'出場ペア データ入力・貼付'!E187=\"\",\"\",IF('出場ペア データ入力・貼付'!E187<>\"\",'出場ペア データ入力・貼付'!E187,'出場ペア データ入力・貼付'!B187))","v":""},{"$f":"IFERROR('出場ペア データ入力・貼付'!H187,\"\")","v":""},{"$f":"IFERROR('出場ペア データ入力・貼付'!I187,\"\")","v":""},{"$f":"IFERROR('出場ペア データ入力・貼付'!J187,\"\")","v":""}]
[null,null,null,null,null,null,null,null,null,null,null,null,null,null,null,null,null,null,null,null,null,null,null,null,{"$f":"IF('出場ペア データ入力・貼付'!B188&'出場ペア データ入力・貼付'!E188=\"\",\"\",IF('出場ペア データ入力・貼付'!E188<>\"\",'出場ペア データ入力・貼付'!E188,'出場ペア データ入力・貼付'!B188))","v":""},{"$f":"IFERROR('出場ペア データ入力・貼付'!H188,\"\")","v":""},{"$f":"IFERROR('出場ペア データ入力・貼付'!I188,\"\")","v":""},{"$f":"IFERROR('出場ペア データ入力・貼付'!J188,\"\")","v":""}]
[null,null,null,null,null,null,null,null,null,null,null,null,null,null,null,null,null,null,null,null,null,null,null,null,{"$f":"IF('出場ペア データ入力・貼付'!B189&'出場ペア データ入力・貼付'!E189=\"\",\"\",IF('出場ペア データ入力・貼付'!E189<>\"\",'出場ペア データ入力・貼付'!E189,'出場ペア データ入力・貼付'!B189))","v":""},{"$f":"IFERROR('出場ペア データ入力・貼付'!H189,\"\")","v":""},{"$f":"IFERROR('出場ペア データ入力・貼付'!I189,\"\")","v":""},{"$f":"IFERROR('出場ペア データ入力・貼付'!J189,\"\")","v":""}]
[null,null,null,null,null,null,null,null,null,null,null,null,null,null,null,null,null,null,null,null,null,null,null,null,{"$f":"IF('出場ペア データ入力・貼付'!B190&'出場ペア データ入力・貼付'!E190=\"\",\"\",IF('出場ペア データ入力・貼付'!E190<>\"\",'出場ペア データ入力・貼付'!E190,'出場ペア データ入力・貼付'!B190))","v":""},{"$f":"IFERROR('出場ペア データ入力・貼付'!H190,\"\")","v":""},{"$f":"IFERROR('出場ペア データ入力・貼付'!I190,\"\")","v":""},{"$f":"IFERROR('出場ペア データ入力・貼付'!J190,\"\")","v":""}]
[null,null,null,null,null,null,null,null,null,null,null,null,null,null,null,null,null,null,null,null,null,null,null,null,{"$f":"IF('出場ペア データ入力・貼付'!B191&'出場ペア データ入力・貼付'!E191=\"\",\"\",IF('出場ペア データ入力・貼付'!E191<>\"\",'出場ペア データ入力・貼付'!E191,'出場ペア データ入力・貼付'!B191))","v":""},{"$f":"IFERROR('出場ペア データ入力・貼付'!H191,\"\")","v":""},{"$f":"IFERROR('出場ペア データ入力・貼付'!I191,\"\")","v":""},{"$f":"IFERROR('出場ペア データ入力・貼付'!J191,\"\")","v":""}]
[null,null,null,null,null,null,null,null,null,null,null,null,null,null,null,null,null,null,null,null,null,null,null,null,{"$f":"IF('出場ペア データ入力・貼付'!B192&'出場ペア データ入力・貼付'!E192=\"\",\"\",IF('出場ペア データ入力・貼付'!E192<>\"\",'出場ペア データ入力・貼付'!E192,'出場ペア データ入力・貼付'!B192))","v":""},{"$f":"IFERROR('出場ペア データ入力・貼付'!H192,\"\")","v":""},{"$f":"IFERROR('出場ペア データ入力・貼付'!I192,\"\")","v":""},{"$f":"IFERROR('出場ペア データ入力・貼付'!J192,\"\")","v":""}]
[null,null,null,null,null,null,null,null,null,null,null,null,null,null,null,null,null,null,null,null,null,null,null,null,{"$f":"IF('出場ペア データ入力・貼付'!B193&'出場ペア データ入力・貼付'!E193=\"\",\"\",IF('出場ペア データ入力・貼付'!E193<>\"\",'出場ペア データ入力・貼付'!E193,'出場ペア データ入力・貼付'!B193))","v":""},{"$f":"IFERROR('出場ペア データ入力・貼付'!H193,\"\")","v":""},{"$f":"IFERROR('出場ペア データ入力・貼付'!I193,\"\")","v":""},{"$f":"IFERROR('出場ペア データ入力・貼付'!J193,\"\")","v":""}]
[null,null,null,null,null,null,null,null,null,null,null,null,null,null,null,null,null,null,null,null,null,null,null,null,{"$f":"IF('出場ペア データ入力・貼付'!B194&'出場ペア データ入力・貼付'!E194=\"\",\"\",IF('出場ペア データ入力・貼付'!E194<>\"\",'出場ペア データ入力・貼付'!E194,'出場ペア データ入力・貼付'!B194))","v":""},{"$f":"IFERROR('出場ペア データ入力・貼付'!H194,\"\")","v":""},{"$f":"IFERROR('出場ペア データ入力・貼付'!I194,\"\")","v":""},{"$f":"IFERROR('出場ペア データ入力・貼付'!J194,\"\")","v":""}]
[null,null,null,null,null,null,null,null,null,null,null,null,null,null,null,null,null,null,null,null,null,null,null,null,{"$f":"IF('出場ペア データ入力・貼付'!B195&'出場ペア データ入力・貼付'!E195=\"\",\"\",IF('出場ペア データ入力・貼付'!E195<>\"\",'出場ペア データ入力・貼付'!E195,'出場ペア データ入力・貼付'!B195))","v":""},{"$f":"IFERROR('出場ペア データ入力・貼付'!H195,\"\")","v":""},{"$f":"IFERROR('出場ペア データ入力・貼付'!I195,\"\")","v":""},{"$f":"IFERROR('出場ペア データ入力・貼付'!J195,\"\")","v":""}]
["男子",null,null,null,null,null,null,null,null,null,null,null,null,null,null,null,null,null,null,null,null,null,null,null,{"$f":"IF('出場ペア データ入力・貼付'!B196&'出場ペア データ入力・貼付'!E196=\"\",\"\",IF('出場ペア データ入力・貼付'!E196<>\"\",'出場ペア データ入力・貼付'!E196,'出場ペア データ入力・貼付'!B196))","v":""},{"$f":"IFERROR('出場ペア データ入力・貼付'!H196,\"\")","v":""},{"$f":"IFERROR('出場ペア データ入力・貼付'!I196,\"\")","v":""},{"$f":"IFERROR('出場ペア データ入力・貼付'!J196,\"\")","v":""}]
["女子",null,null,null,null,null,null,null,null,null,null,null,null,null,null,null,null,null,null,null,null,null,null,null,{"$f":"IF('出場ペア データ入力・貼付'!B197&'出場ペア データ入力・貼付'!E197=\"\",\"\",IF('出場ペア データ入力・貼付'!E197<>\"\",'出場ペア データ入力・貼付'!E197,'出場ペア データ入力・貼付'!B197))","v":""},{"$f":"IFERROR('出場ペア データ入力・貼付'!H197,\"\")","v":""},{"$f":"IFERROR('出場ペア データ入力・貼付'!I197,\"\")","v":""},{"$f":"IFERROR('出場ペア データ入力・貼付'!J197,\"\")","v":""}]
[null,null,null,null,null,null,null,null,null,null,null,null,null,null,null,null,null,null,null,null,null,null,null,null,{"$f":"IF('出場ペア データ入力・貼付'!B198&'出場ペア データ入力・貼付'!E198=\"\",\"\",IF('出場ペア データ入力・貼付'!E198<>\"\",'出場ペア データ入力・貼付'!E198,'出場ペア データ入力・貼付'!B198))","v":""},{"$f":"IFERROR('出場ペア データ入力・貼付'!H198,\"\")","v":""},{"$f":"IFERROR('出場ペア データ入力・貼付'!I198,\"\")","v":""},{"$f":"IFERROR('出場ペア データ入力・貼付'!J198,\"\")","v":""}]
[null,null,null,null,null,null,null,null,null,null,null,null,null,null,null,null,null,null,null,null,null,null,null,null,{"$f":"IF('出場ペア データ入力・貼付'!B199&'出場ペア データ入力・貼付'!E199=\"\",\"\",IF('出場ペア データ入力・貼付'!E199<>\"\",'出場ペア データ入力・貼付'!E199,'出場ペア データ入力・貼付'!B199))","v":""},{"$f":"IFERROR('出場ペア データ入力・貼付'!H199,\"\")","v":""},{"$f":"IFERROR('出場ペア データ入力・貼付'!I199,\"\")","v":""},{"$f":"IFERROR('出場ペア データ入力・貼付'!J199,\"\")","v":""}]
["第  １  回戦",null,null,null,null,null,null,null,null,null,null,null,null,null,null,null,null,null,null,null,null,null,null,null,{"$f":"IF('出場ペア データ入力・貼付'!B200&'出場ペア データ入力・貼付'!E200=\"\",\"\",IF('出場ペア データ入力・貼付'!E200<>\"\",'出場ペア データ入力・貼付'!E200,'出場ペア データ入力・貼付'!B200))","v":""},{"$f":"IFERROR('出場ペア データ入力・貼付'!H200,\"\")","v":""},{"$f":"IFERROR('出場ペア データ入力・貼付'!I200,\"\")","v":""},{"$f":"IFERROR('出場ペア データ入力・貼付'!J200,\"\")","v":""}]
["第  ２  回戦",null,null,null,null,null,null,null,null,null,null,null,null,null,null,null,null,null,null,null,null,null,null,null,{"$f":"IF('出場ペア データ入力・貼付'!B201&'出場ペア データ入力・貼付'!E201=\"\",\"\",IF('出場ペア データ入力・貼付'!E201<>\"\",'出場ペア データ入力・貼付'!E201,'出場ペア データ入力・貼付'!B201))","v":""},{"$f":"IFERROR('出場ペア データ入力・貼付'!H201,\"\")","v":""},{"$f":"IFERROR('出場ペア データ入力・貼付'!I201,\"\")","v":""},{"$f":"IFERROR('出場ペア データ入力・貼付'!J201,\"\")","v":""}]
["第  ３  回戦",null,null,null,null,null,null,null,null,null,null,null,null,null,null,null,null,null,null,null,null,null,null,null,{"$f":"IF('出場ペア データ入力・貼付'!B202&'出場ペア データ入力・貼付'!E202=\"\",\"\",IF('出場ペア データ入力・貼付'!E202<>\"\",'出場ペア データ入力・貼付'!E202,'出場ペア データ入力・貼付'!B202))","v":""},{"$f":"IFERROR('出場ペア データ入力・貼付'!H202,\"\")","v":""},{"$f":"IFERROR('出場ペア データ入力・貼付'!I202,\"\")","v":""},{"$f":"IFERROR('出場ペア データ入力・貼付'!J202,\"\")","v":""}]
["第  ４  回戦",null,null,null,null,null,null,null,null,null,null,null,null,null,null,null,null,null,null,null,null,null,null,null,{"$f":"IF('出場ペア データ入力・貼付'!B203&'出場ペア データ入力・貼付'!E203=\"\",\"\",IF('出場ペア データ入力・貼付'!E203<>\"\",'出場ペア データ入力・貼付'!E203,'出場ペア データ入力・貼付'!B203))","v":""},{"$f":"IFERROR('出場ペア データ入力・貼付'!H203,\"\")","v":""},{"$f":"IFERROR('出場ペア データ入力・貼付'!I203,\"\")","v":""},{"$f":"IFERROR('出場ペア データ入力・貼付'!J203,\"\")","v":""}]
["第  ５  回戦",null,null,null,null,null,null,null,null,null,null,null,null,null,null,null,null,null,null,null,null,null,null,null,{"$f":"IF('出場ペア データ入力・貼付'!B204&'出場ペア データ入力・貼付'!E204=\"\",\"\",IF('出場ペア データ入力・貼付'!E204<>\"\",'出場ペア データ入力・貼付'!E204,'出場ペア データ入力・貼付'!B204))","v":""},{"$f":"IFERROR('出場ペア データ入力・貼付'!H204,\"\")","v":""},{"$f":"IFERROR('出場ペア データ入力・貼付'!I204,\"\")","v":""},{"$f":"IFERROR('出場ペア データ入力・貼付'!J204,\"\")","v":""}]
["第  ６  回戦 ",null,null,null,null,null,null,null,null,null,null,null,null,null,null,null,null,null,null,null,null,null,null,null,{"$f":"IF('出場ペア データ入力・貼付'!B205&'出場ペア データ入力・貼付'!E205=\"\",\"\",IF('出場ペア データ入力・貼付'!E205<>\"\",'出場ペア データ入力・貼付'!E205,'出場ペア データ入力・貼付'!B205))","v":""},{"$f":"IFERROR('出場ペア データ入力・貼付'!H205,\"\")","v":""},{"$f":"IFERROR('出場ペア データ入力・貼付'!I205,\"\")","v":""},{"$f":"IFERROR('出場ペア データ入力・貼付'!J205,\"\")","v":""}]
["準 々 決 勝",null,null,null,null,null,null,null,null,null,null,null,null,null,null,null,null,null,null,null,null,null,null,null,{"$f":"IF('出場ペア データ入力・貼付'!B206&'出場ペア データ入力・貼付'!E206=\"\",\"\",IF('出場ペア データ入力・貼付'!E206<>\"\",'出場ペア データ入力・貼付'!E206,'出場ペア データ入力・貼付'!B206))","v":""},{"$f":"IFERROR('出場ペア データ入力・貼付'!H206,\"\")","v":""},{"$f":"IFERROR('出場ペア データ入力・貼付'!I206,\"\")","v":""},{"$f":"IFERROR('出場ペア データ入力・貼付'!J206,\"\")","v":""}]
["準 決 勝",null,null,null,null,null,null,null,null,null,null,null,null,null,null,null,null,null,null,null,null,null,null,null,{"$f":"IF('出場ペア データ入力・貼付'!B207&'出場ペア データ入力・貼付'!E207=\"\",\"\",IF('出場ペア データ入力・貼付'!E207<>\"\",'出場ペア データ入力・貼付'!E207,'出場ペア データ入力・貼付'!B207))","v":""},{"$f":"IFERROR('出場ペア データ入力・貼付'!H207,\"\")","v":""},{"$f":"IFERROR('出場ペア データ入力・貼付'!I207,\"\")","v":""},{"$f":"IFERROR('出場ペア データ入力・貼付'!J207,\"\")","v":""}]
["決  勝",null,null,null,null,null,null,null,null,null,null,null,null,null,null,null,null,null,null,null,null,null,null,null,{"$f":"IF('出場ペア データ入力・貼付'!B208&'出場ペア データ入力・貼付'!E208=\"\",\"\",IF('出場ペア データ入力・貼付'!E208<>\"\",'出場ペア データ入力・貼付'!E208,'出場ペア データ入力・貼付'!B208))","v":""},{"$f":"IFERROR('出場ペア データ入力・貼付'!H208,\"\")","v":""},{"$f":"IFERROR('出場ペア データ入力・貼付'!I208,\"\")","v":""},{"$f":"IFERROR('出場ペア データ入力・貼付'!J208,\"\")","v":""}]
[null,null,null,null,null,null,null,null,null,null,null,null,null,null,null,null,null,null,null,null,null,null,null,null,{"$f":"IF('出場ペア データ入力・貼付'!B209&'出場ペア データ入力・貼付'!E209=\"\",\"\",IF('出場ペア データ入力・貼付'!E209<>\"\",'出場ペア データ入力・貼付'!E209,'出場ペア データ入力・貼付'!B209))","v":""},{"$f":"IFERROR('出場ペア データ入力・貼付'!H209,\"\")","v":""},{"$f":"IFERROR('出場ペア データ入力・貼付'!I209,\"\")","v":""},{"$f":"IFERROR('出場ペア データ入力・貼付'!J209,\"\")","v":""}]
[null,null,null,null,null,null,null,null,null,null,null,null,null,null,null,null,null,null,null,null,null,null,null,null,{"$f":"IF('出場ペア データ入力・貼付'!B210&'出場ペア データ入力・貼付'!E210=\"\",\"\",IF('出場ペア データ入力・貼付'!E210<>\"\",'出場ペア データ入力・貼付'!E210,'出場ペア データ入力・貼付'!B210))","v":""},{"$f":"IFERROR('出場ペア データ入力・貼付'!H210,\"\")","v":""},{"$f":"IFERROR('出場ペア データ入力・貼付'!I210,\"\")","v":""},{"$f":"IFERROR('出場ペア データ入力・貼付'!J210,\"\")","v":""}]
[null,null,null,null,null,null,null,null,null,null,null,null,null,null,null,null,null,null,null,null,null,null,null,null,{"$f":"IF('出場ペア データ入力・貼付'!B211&'出場ペア データ入力・貼付'!E211=\"\",\"\",IF('出場ペア データ入力・貼付'!E211<>\"\",'出場ペア データ入力・貼付'!E211,'出場ペア データ入力・貼付'!B211))","v":""},{"$f":"IFERROR('出場ペア データ入力・貼付'!H211,\"\")","v":""},{"$f":"IFERROR('出場ペア データ入力・貼付'!I211,\"\")","v":""},{"$f":"IFERROR('出場ペア データ入力・貼付'!J211,\"\")","v":""}]
[null,null,null,null,null,null,null,null,null,null,null,null,null,null,null,null,null,null,null,null,null,null,null,null,{"$f":"IF('出場ペア データ入力・貼付'!B212&'出場ペア データ入力・貼付'!E212=\"\",\"\",IF('出場ペア データ入力・貼付'!E212<>\"\",'出場ペア データ入力・貼付'!E212,'出場ペア データ入力・貼付'!B212))","v":""},{"$f":"IFERROR('出場ペア データ入力・貼付'!H212,\"\")","v":""},{"$f":"IFERROR('出場ペア データ入力・貼付'!I212,\"\")","v":""},{"$f":"IFERROR('出場ペア データ入力・貼付'!J212,\"\")","v":""}]
[null,null,null,null,null,null,null,null,null,null,null,null,null,null,null,null,null,null,null,null,null,null,null,null,{"$f":"IF('出場ペア データ入力・貼付'!B213&'出場ペア データ入力・貼付'!E213=\"\",\"\",IF('出場ペア データ入力・貼付'!E213<>\"\",'出場ペア データ入力・貼付'!E213,'出場ペア データ入力・貼付'!B213))","v":""},{"$f":"IFERROR('出場ペア データ入力・貼付'!H213,\"\")","v":""},{"$f":"IFERROR('出場ペア データ入力・貼付'!I213,\"\")","v":""},{"$f":"IFERROR('出場ペア データ入力・貼付'!J213,\"\")","v":""}]
[null,null,null,null,null,null,null,null,null,null,null,null,null,null,null,null,null,null,null,null,null,null,null,null,{"$f":"IF('出場ペア データ入力・貼付'!B214&'出場ペア データ入力・貼付'!E214=\"\",\"\",IF('出場ペア データ入力・貼付'!E214<>\"\",'出場ペア データ入力・貼付'!E214,'出場ペア データ入力・貼付'!B214))","v":""},{"$f":"IFERROR('出場ペア データ入力・貼付'!H214,\"\")","v":""},{"$f":"IFERROR('出場ペア データ入力・貼付'!I214,\"\")","v":""},{"$f":"IFERROR('出場ペア データ入力・貼付'!J214,\"\")","v":""}]
[null,null,null,null,null,null,null,null,null,null,null,null,null,null,null,null,null,null,null,null,null,null,null,null,{"$f":"IF('出場ペア データ入力・貼付'!B215&'出場ペア データ入力・貼付'!E215=\"\",\"\",IF('出場ペア データ入力・貼付'!E215<>\"\",'出場ペア データ入力・貼付'!E215,'出場ペア データ入力・貼付'!B215))","v":""},{"$f":"IFERROR('出場ペア データ入力・貼付'!H215,\"\")","v":""},{"$f":"IFERROR('出場ペア データ入力・貼付'!I215,\"\")","v":""},{"$f":"IFERROR('出場ペア データ入力・貼付'!J215,\"\")","v":""}]
[null,null,null,null,null,null,null,null,null,null,null,null,null,null,null,null,null,null,null,null,null,null,null,null,{"$f":"IF('出場ペア データ入力・貼付'!B216&'出場ペア データ入力・貼付'!E216=\"\",\"\",IF('出場ペア データ入力・貼付'!E216<>\"\",'出場ペア データ入力・貼付'!E216,'出場ペア データ入力・貼付'!B216))","v":""},{"$f":"IFERROR('出場ペア データ入力・貼付'!H216,\"\")","v":""},{"$f":"IFERROR('出場ペア データ入力・貼付'!I216,\"\")","v":""},{"$f":"IFERROR('出場ペア データ入力・貼付'!J216,\"\")","v":""}]
[null,null,null,null,null,null,null,null,null,null,null,null,null,null,null,null,null,null,null,null,null,null,null,null,{"$f":"IF('出場ペア データ入力・貼付'!B217&'出場ペア データ入力・貼付'!E217=\"\",\"\",IF('出場ペア データ入力・貼付'!E217<>\"\",'出場ペア データ入力・貼付'!E217,'出場ペア データ入力・貼付'!B217))","v":""},{"$f":"IFERROR('出場ペア データ入力・貼付'!H217,\"\")","v":""},{"$f":"IFERROR('出場ペア データ入力・貼付'!I217,\"\")","v":""},{"$f":"IFERROR('出場ペア データ入力・貼付'!J217,\"\")","v":""}]
[null,null,null,null,null,null,null,null,null,null,null,null,null,null,null,null,null,null,null,null,null,null,null,null,{"$f":"IF('出場ペア データ入力・貼付'!B218&'出場ペア データ入力・貼付'!E218=\"\",\"\",IF('出場ペア データ入力・貼付'!E218<>\"\",'出場ペア データ入力・貼付'!E218,'出場ペア データ入力・貼付'!B218))","v":""},{"$f":"IFERROR('出場ペア データ入力・貼付'!H218,\"\")","v":""},{"$f":"IFERROR('出場ペア データ入力・貼付'!I218,\"\")","v":""},{"$f":"IFERROR('出場ペア データ入力・貼付'!J218,\"\")","v":""}]
[null,null,null,null,null,null,null,null,null,null,null,null,null,null,null,null,null,null,null,null,null,null,null,null,{"$f":"IF('出場ペア データ入力・貼付'!B219&'出場ペア データ入力・貼付'!E219=\"\",\"\",IF('出場ペア データ入力・貼付'!E219<>\"\",'出場ペア データ入力・貼付'!E219,'出場ペア データ入力・貼付'!B219))","v":""},{"$f":"IFERROR('出場ペア データ入力・貼付'!H219,\"\")","v":""},{"$f":"IFERROR('出場ペア データ入力・貼付'!I219,\"\")","v":""},{"$f":"IFERROR('出場ペア データ入力・貼付'!J219,\"\")","v":""}]
[null,null,null,null,null,null,null,null,null,null,null,null,null,null,null,null,null,null,null,null,null,null,null,null,{"$f":"IF('出場ペア データ入力・貼付'!B220&'出場ペア データ入力・貼付'!E220=\"\",\"\",IF('出場ペア データ入力・貼付'!E220<>\"\",'出場ペア データ入力・貼付'!E220,'出場ペア データ入力・貼付'!B220))","v":""},{"$f":"IFERROR('出場ペア データ入力・貼付'!H220,\"\")","v":""},{"$f":"IFERROR('出場ペア データ入力・貼付'!I220,\"\")","v":""},{"$f":"IFERROR('出場ペア データ入力・貼付'!J220,\"\")","v":""}]
[null,null,null,null,null,null,null,null,null,null,null,null,null,null,null,null,null,null,null,null,null,null,null,null,{"$f":"IF('出場ペア データ入力・貼付'!B221&'出場ペア データ入力・貼付'!E221=\"\",\"\",IF('出場ペア データ入力・貼付'!E221<>\"\",'出場ペア データ入力・貼付'!E221,'出場ペア データ入力・貼付'!B221))","v":""},{"$f":"IFERROR('出場ペア データ入力・貼付'!H221,\"\")","v":""},{"$f":"IFERROR('出場ペア データ入力・貼付'!I221,\"\")","v":""},{"$f":"IFERROR('出場ペア データ入力・貼付'!J221,\"\")","v":""}]
[null,null,null,null,null,null,null,null,null,null,null,null,null,null,null,null,null,null,null,null,null,null,null,null,{"$f":"IF('出場ペア データ入力・貼付'!B222&'出場ペア データ入力・貼付'!E222=\"\",\"\",IF('出場ペア データ入力・貼付'!E222<>\"\",'出場ペア データ入力・貼付'!E222,'出場ペア データ入力・貼付'!B222))","v":""},{"$f":"IFERROR('出場ペア データ入力・貼付'!H222,\"\")","v":""},{"$f":"IFERROR('出場ペア データ入力・貼付'!I222,\"\")","v":""},{"$f":"IFERROR('出場ペア データ入力・貼付'!J222,\"\")","v":""}]
[null,null,null,null,null,null,null,null,null,null,null,null,null,null,null,null,null,null,null,null,null,null,null,null,{"$f":"IF('出場ペア データ入力・貼付'!B223&'出場ペア データ入力・貼付'!E223=\"\",\"\",IF('出場ペア データ入力・貼付'!E223<>\"\",'出場ペア データ入力・貼付'!E223,'出場ペア データ入力・貼付'!B223))","v":""},{"$f":"IFERROR('出場ペア データ入力・貼付'!H223,\"\")","v":""},{"$f":"IFERROR('出場ペア データ入力・貼付'!I223,\"\")","v":""},{"$f":"IFERROR('出場ペア データ入力・貼付'!J223,\"\")","v":""}]
[null,null,null,null,null,null,null,null,null,null,null,null,null,null,null,null,null,null,null,null,null,null,null,null,{"$f":"IF('出場ペア データ入力・貼付'!B224&'出場ペア データ入力・貼付'!E224=\"\",\"\",IF('出場ペア データ入力・貼付'!E224<>\"\",'出場ペア データ入力・貼付'!E224,'出場ペア データ入力・貼付'!B224))","v":""},{"$f":"IFERROR('出場ペア データ入力・貼付'!H224,\"\")","v":""},{"$f":"IFERROR('出場ペア データ入力・貼付'!I224,\"\")","v":""},{"$f":"IFERROR('出場ペア データ入力・貼付'!J224,\"\")","v":""}]
[null,null,null,null,null,null,null,null,null,null,null,null,null,null,null,null,null,null,null,null,null,null,null,null,{"$f":"IF('出場ペア データ入力・貼付'!B225&'出場ペア データ入力・貼付'!E225=\"\",\"\",IF('出場ペア データ入力・貼付'!E225<>\"\",'出場ペア データ入力・貼付'!E225,'出場ペア データ入力・貼付'!B225))","v":""},{"$f":"IFERROR('出場ペア データ入力・貼付'!H225,\"\")","v":""},{"$f":"IFERROR('出場ペア データ入力・貼付'!I225,\"\")","v":""},{"$f":"IFERROR('出場ペア データ入力・貼付'!J225,\"\")","v":""}]
[null,null,null,null,null,null,null,null,null,null,null,null,null,null,null,null,null,null,null,null,null,null,null,null,{"$f":"IF('出場ペア データ入力・貼付'!B226&'出場ペア データ入力・貼付'!E226=\"\",\"\",IF('出場ペア データ入力・貼付'!E226<>\"\",'出場ペア データ入力・貼付'!E226,'出場ペア データ入力・貼付'!B226))","v":""},{"$f":"IFERROR('出場ペア データ入力・貼付'!H226,\"\")","v":""},{"$f":"IFERROR('出場ペア データ入力・貼付'!I226,\"\")","v":""},{"$f":"IFERROR('出場ペア データ入力・貼付'!J226,\"\")","v":""}]
[null,null,null,null,null,null,null,null,null,null,null,null,null,null,null,null,null,null,null,null,null,null,null,null,{"$f":"IF('出場ペア データ入力・貼付'!B227&'出場ペア データ入力・貼付'!E227=\"\",\"\",IF('出場ペア データ入力・貼付'!E227<>\"\",'出場ペア データ入力・貼付'!E227,'出場ペア データ入力・貼付'!B227))","v":""},{"$f":"IFERROR('出場ペア データ入力・貼付'!H227,\"\")","v":""},{"$f":"IFERROR('出場ペア データ入力・貼付'!I227,\"\")","v":""},{"$f":"IFERROR('出場ペア データ入力・貼付'!J227,\"\")","v":""}]
[null,null,null,null,null,null,null,null,null,null,null,null,null,null,null,null,null,null,null,null,null,null,null,null,{"$f":"IF('出場ペア データ入力・貼付'!B228&'出場ペア データ入力・貼付'!E228=\"\",\"\",IF('出場ペア データ入力・貼付'!E228<>\"\",'出場ペア データ入力・貼付'!E228,'出場ペア データ入力・貼付'!B228))","v":""},{"$f":"IFERROR('出場ペア データ入力・貼付'!H228,\"\")","v":""},{"$f":"IFERROR('出場ペア データ入力・貼付'!I228,\"\")","v":""},{"$f":"IFERROR('出場ペア データ入力・貼付'!J228,\"\")","v":""}]
[null,null,null,null,null,null,null,null,null,null,null,null,null,null,null,null,null,null,null,null,null,null,null,null,{"$f":"IF('出場ペア データ入力・貼付'!B229&'出場ペア データ入力・貼付'!E229=\"\",\"\",IF('出場ペア データ入力・貼付'!E229<>\"\",'出場ペア データ入力・貼付'!E229,'出場ペア データ入力・貼付'!B229))","v":""},{"$f":"IFERROR('出場ペア データ入力・貼付'!H229,\"\")","v":""},{"$f":"IFERROR('出場ペア データ入力・貼付'!I229,\"\")","v":""},{"$f":"IFERROR('出場ペア データ入力・貼付'!J229,\"\")","v":""}]
[null,null,null,null,null,null,null,null,null,null,null,null,null,null,null,null,null,null,null,null,null,null,null,null,{"$f":"IF('出場ペア データ入力・貼付'!B230&'出場ペア データ入力・貼付'!E230=\"\",\"\",IF('出場ペア データ入力・貼付'!E230<>\"\",'出場ペア データ入力・貼付'!E230,'出場ペア データ入力・貼付'!B230))","v":""},{"$f":"IFERROR('出場ペア データ入力・貼付'!H230,\"\")","v":""},{"$f":"IFERROR('出場ペア データ入力・貼付'!I230,\"\")","v":""},{"$f":"IFERROR('出場ペア データ入力・貼付'!J230,\"\")","v":""}]
[null,null,null,null,null,null,null,null,null,null,null,null,null,null,null,null,null,null,null,null,null,null,null,null,{"$f":"IF('出場ペア データ入力・貼付'!B231&'出場ペア データ入力・貼付'!E231=\"\",\"\",IF('出場ペア データ入力・貼付'!E231<>\"\",'出場ペア データ入力・貼付'!E231,'出場ペア データ入力・貼付'!B231))","v":""},{"$f":"IFERROR('出場ペア データ入力・貼付'!H231,\"\")","v":""},{"$f":"IFERROR('出場ペア データ入力・貼付'!I231,\"\")","v":""},{"$f":"IFERROR('出場ペア データ入力・貼付'!J231,\"\")","v":""}]
[null,null,null,null,null,null,null,null,null,null,null,null,null,null,null,null,null,null,null,null,null,null,null,null,{"$f":"IF('出場ペア データ入力・貼付'!B232&'出場ペア データ入力・貼付'!E232=\"\",\"\",IF('出場ペア データ入力・貼付'!E232<>\"\",'出場ペア データ入力・貼付'!E232,'出場ペア データ入力・貼付'!B232))","v":""},{"$f":"IFERROR('出場ペア データ入力・貼付'!H232,\"\")","v":""},{"$f":"IFERROR('出場ペア データ入力・貼付'!I232,\"\")","v":""},{"$f":"IFERROR('出場ペア データ入力・貼付'!J232,\"\")","v":""}]
[null,null,null,null,null,null,null,null,null,null,null,null,null,null,null,null,null,null,null,null,null,null,null,null,{"$f":"IF('出場ペア データ入力・貼付'!B233&'出場ペア データ入力・貼付'!E233=\"\",\"\",IF('出場ペア データ入力・貼付'!E233<>\"\",'出場ペア データ入力・貼付'!E233,'出場ペア データ入力・貼付'!B233))","v":""},{"$f":"IFERROR('出場ペア データ入力・貼付'!H233,\"\")","v":""},{"$f":"IFERROR('出場ペア データ入力・貼付'!I233,\"\")","v":""},{"$f":"IFERROR('出場ペア データ入力・貼付'!J233,\"\")","v":""}]
[null,null,null,null,null,null,null,null,null,null,null,null,null,null,null,null,null,null,null,null,null,null,null,null,{"$f":"IF('出場ペア データ入力・貼付'!B234&'出場ペア データ入力・貼付'!E234=\"\",\"\",IF('出場ペア データ入力・貼付'!E234<>\"\",'出場ペア データ入力・貼付'!E234,'出場ペア データ入力・貼付'!B234))","v":""},{"$f":"IFERROR('出場ペア データ入力・貼付'!H234,\"\")","v":""},{"$f":"IFERROR('出場ペア データ入力・貼付'!I234,\"\")","v":""},{"$f":"IFERROR('出場ペア データ入力・貼付'!J234,\"\")","v":""}]
[null,null,null,null,null,null,null,null,null,null,null,null,null,null,null,null,null,null,null,null,null,null,null,null,{"$f":"IF('出場ペア データ入力・貼付'!B235&'出場ペア データ入力・貼付'!E235=\"\",\"\",IF('出場ペア データ入力・貼付'!E235<>\"\",'出場ペア データ入力・貼付'!E235,'出場ペア データ入力・貼付'!B235))","v":""},{"$f":"IFERROR('出場ペア データ入力・貼付'!H235,\"\")","v":""},{"$f":"IFERROR('出場ペア データ入力・貼付'!I235,\"\")","v":""},{"$f":"IFERROR('出場ペア データ入力・貼付'!J235,\"\")","v":""}]
[null,null,null,null,null,null,null,null,null,null,null,null,null,null,null,null,null,null,null,null,null,null,null,null,{"$f":"IF('出場ペア データ入力・貼付'!B236&'出場ペア データ入力・貼付'!E236=\"\",\"\",IF('出場ペア データ入力・貼付'!E236<>\"\",'出場ペア データ入力・貼付'!E236,'出場ペア データ入力・貼付'!B236))","v":""},{"$f":"IFERROR('出場ペア データ入力・貼付'!H236,\"\")","v":""},{"$f":"IFERROR('出場ペア データ入力・貼付'!I236,\"\")","v":""},{"$f":"IFERROR('出場ペア データ入力・貼付'!J236,\"\")","v":""}]
[null,null,null,null,null,null,null,null,null,null,null,null,null,null,null,null,null,null,null,null,null,null,null,null,{"$f":"IF('出場ペア データ入力・貼付'!B237&'出場ペア データ入力・貼付'!E237=\"\",\"\",IF('出場ペア データ入力・貼付'!E237<>\"\",'出場ペア データ入力・貼付'!E237,'出場ペア データ入力・貼付'!B237))","v":""},{"$f":"IFERROR('出場ペア データ入力・貼付'!H237,\"\")","v":""},{"$f":"IFERROR('出場ペア データ入力・貼付'!I237,\"\")","v":""},{"$f":"IFERROR('出場ペア データ入力・貼付'!J237,\"\")","v":""}]
[null,null,null,null,null,null,null,null,null,null,null,null,null,null,null,null,null,null,null,null,null,null,null,null,{"$f":"IF('出場ペア データ入力・貼付'!B238&'出場ペア データ入力・貼付'!E238=\"\",\"\",IF('出場ペア データ入力・貼付'!E238<>\"\",'出場ペア データ入力・貼付'!E238,'出場ペア データ入力・貼付'!B238))","v":""},{"$f":"IFERROR('出場ペア データ入力・貼付'!H238,\"\")","v":""},{"$f":"IFERROR('出場ペア データ入力・貼付'!I238,\"\")","v":""},{"$f":"IFERROR('出場ペア データ入力・貼付'!J238,\"\")","v":""}]
[null,null,null,null,null,null,null,null,null,null,null,null,null,null,null,null,null,null,null,null,null,null,null,null,{"$f":"IF('出場ペア データ入力・貼付'!B239&'出場ペア データ入力・貼付'!E239=\"\",\"\",IF('出場ペア データ入力・貼付'!E239<>\"\",'出場ペア データ入力・貼付'!E239,'出場ペア データ入力・貼付'!B239))","v":""},{"$f":"IFERROR('出場ペア データ入力・貼付'!H239,\"\")","v":""},{"$f":"IFERROR('出場ペア データ入力・貼付'!I239,\"\")","v":""},{"$f":"IFERROR('出場ペア データ入力・貼付'!J239,\"\")","v":""}]
[null,null,null,null,null,null,null,null,null,null,null,null,null,null,null,null,null,null,null,null,null,null,null,null,{"$f":"IF('出場ペア データ入力・貼付'!B240&'出場ペア データ入力・貼付'!E240=\"\",\"\",IF('出場ペア データ入力・貼付'!E240<>\"\",'出場ペア データ入力・貼付'!E240,'出場ペア データ入力・貼付'!B240))","v":""},{"$f":"IFERROR('出場ペア データ入力・貼付'!H240,\"\")","v":""},{"$f":"IFERROR('出場ペア データ入力・貼付'!I240,\"\")","v":""},{"$f":"IFERROR('出場ペア データ入力・貼付'!J240,\"\")","v":""}]
[null,null,null,null,null,null,null,null,null,null,null,null,null,null,null,null,null,null,null,null,null,null,null,null,{"$f":"IF('出場ペア データ入力・貼付'!B241&'出場ペア データ入力・貼付'!E241=\"\",\"\",IF('出場ペア データ入力・貼付'!E241<>\"\",'出場ペア データ入力・貼付'!E241,'出場ペア データ入力・貼付'!B241))","v":""},{"$f":"IFERROR('出場ペア データ入力・貼付'!H241,\"\")","v":""},{"$f":"IFERROR('出場ペア データ入力・貼付'!I241,\"\")","v":""},{"$f":"IFERROR('出場ペア データ入力・貼付'!J241,\"\")","v":""}]
[null,null,null,null,null,null,null,null,null,null,null,null,null,null,null,null,null,null,null,null,null,null,null,null,{"$f":"IF('出場ペア データ入力・貼付'!B242&'出場ペア データ入力・貼付'!E242=\"\",\"\",IF('出場ペア データ入力・貼付'!E242<>\"\",'出場ペア データ入力・貼付'!E242,'出場ペア データ入力・貼付'!B242))","v":""},{"$f":"IFERROR('出場ペア データ入力・貼付'!H242,\"\")","v":""},{"$f":"IFERROR('出場ペア データ入力・貼付'!I242,\"\")","v":""},{"$f":"IFERROR('出場ペア データ入力・貼付'!J242,\"\")","v":""}]
[null,null,null,null,null,null,null,null,null,null,null,null,null,null,null,null,null,null,null,null,null,null,null,null,{"$f":"IF('出場ペア データ入力・貼付'!B243&'出場ペア データ入力・貼付'!E243=\"\",\"\",IF('出場ペア データ入力・貼付'!E243<>\"\",'出場ペア データ入力・貼付'!E243,'出場ペア データ入力・貼付'!B243))","v":""},{"$f":"IFERROR('出場ペア データ入力・貼付'!H243,\"\")","v":""},{"$f":"IFERROR('出場ペア データ入力・貼付'!I243,\"\")","v":""},{"$f":"IFERROR('出場ペア データ入力・貼付'!J243,\"\")","v":""}]
[null,null,null,null,null,null,null,null,null,null,null,null,null,null,null,null,null,null,null,null,null,null,null,null,{"$f":"IF('出場ペア データ入力・貼付'!B244&'出場ペア データ入力・貼付'!E244=\"\",\"\",IF('出場ペア データ入力・貼付'!E244<>\"\",'出場ペア データ入力・貼付'!E244,'出場ペア データ入力・貼付'!B244))","v":""},{"$f":"IFERROR('出場ペア データ入力・貼付'!H244,\"\")","v":""},{"$f":"IFERROR('出場ペア データ入力・貼付'!I244,\"\")","v":""},{"$f":"IFERROR('出場ペア データ入力・貼付'!J244,\"\")","v":""}]
[null,null,null,null,null,null,null,null,null,null,null,null,null,null,null,null,null,null,null,null,null,null,null,null,{"$f":"IF('出場ペア データ入力・貼付'!B245&'出場ペア データ入力・貼付'!E245=\"\",\"\",IF('出場ペア データ入力・貼付'!E245<>\"\",'出場ペア データ入力・貼付'!E245,'出場ペア データ入力・貼付'!B245))","v":""},{"$f":"IFERROR('出場ペア データ入力・貼付'!H245,\"\")","v":""},{"$f":"IFERROR('出場ペア データ入力・貼付'!I245,\"\")","v":""},{"$f":"IFERROR('出場ペア データ入力・貼付'!J245,\"\")","v":""}]
[null,null,null,null,null,null,null,null,null,null,null,null,null,null,null,null,null,null,null,null,null,null,null,null,{"$f":"IF('出場ペア データ入力・貼付'!B246&'出場ペア データ入力・貼付'!E246=\"\",\"\",IF('出場ペア データ入力・貼付'!E246<>\"\",'出場ペア データ入力・貼付'!E246,'出場ペア データ入力・貼付'!B246))","v":""},{"$f":"IFERROR('出場ペア データ入力・貼付'!H246,\"\")","v":""},{"$f":"IFERROR('出場ペア データ入力・貼付'!I246,\"\")","v":""},{"$f":"IFERROR('出場ペア データ入力・貼付'!J246,\"\")","v":""}]
[null,null,null,null,null,null,null,null,null,null,null,null,null,null,null,null,null,null,null,null,null,null,null,null,{"$f":"IF('出場ペア データ入力・貼付'!B247&'出場ペア データ入力・貼付'!E247=\"\",\"\",IF('出場ペア データ入力・貼付'!E247<>\"\",'出場ペア データ入力・貼付'!E247,'出場ペア データ入力・貼付'!B247))","v":""},{"$f":"IFERROR('出場ペア データ入力・貼付'!H247,\"\")","v":""},{"$f":"IFERROR('出場ペア データ入力・貼付'!I247,\"\")","v":""},{"$f":"IFERROR('出場ペア データ入力・貼付'!J247,\"\")","v":""}]
[null,null,null,null,null,null,null,null,null,null,null,null,null,null,null,null,null,null,null,null,null,null,null,null,{"$f":"IF('出場ペア データ入力・貼付'!B248&'出場ペア データ入力・貼付'!E248=\"\",\"\",IF('出場ペア データ入力・貼付'!E248<>\"\",'出場ペア データ入力・貼付'!E248,'出場ペア データ入力・貼付'!B248))","v":""},{"$f":"IFERROR('出場ペア データ入力・貼付'!H248,\"\")","v":""},{"$f":"IFERROR('出場ペア データ入力・貼付'!I248,\"\")","v":""},{"$f":"IFERROR('出場ペア データ入力・貼付'!J248,\"\")","v":""}]
[null,null,null,null,null,null,null,null,null,null,null,null,null,null,null,null,null,null,null,null,null,null,null,null,{"$f":"IF('出場ペア データ入力・貼付'!B249&'出場ペア データ入力・貼付'!E249=\"\",\"\",IF('出場ペア データ入力・貼付'!E249<>\"\",'出場ペア データ入力・貼付'!E249,'出場ペア データ入力・貼付'!B249))","v":""},{"$f":"IFERROR('出場ペア データ入力・貼付'!H249,\"\")","v":""},{"$f":"IFERROR('出場ペア データ入力・貼付'!I249,\"\")","v":""},{"$f":"IFERROR('出場ペア データ入力・貼付'!J249,\"\")","v":""}]
[null,null,null,null,null,null,null,null,null,null,null,null,null,null,null,null,null,null,null,null,null,null,null,null,{"$f":"IF('出場ペア データ入力・貼付'!B250&'出場ペア データ入力・貼付'!E250=\"\",\"\",IF('出場ペア データ入力・貼付'!E250<>\"\",'出場ペア データ入力・貼付'!E250,'出場ペア データ入力・貼付'!B250))","v":""},{"$f":"IFERROR('出場ペア データ入力・貼付'!H250,\"\")","v":""},{"$f":"IFERROR('出場ペア データ入力・貼付'!I250,\"\")","v":""},{"$f":"IFERROR('出場ペア データ入力・貼付'!J250,\"\")","v":""}]
[null,null,null,null,null,null,null,null,null,null,null,null,null,null,null,null,null,null,null,null,null,null,null,null,{"$f":"IF('出場ペア データ入力・貼付'!B251&'出場ペア データ入力・貼付'!E251=\"\",\"\",IF('出場ペア データ入力・貼付'!E251<>\"\",'出場ペア データ入力・貼付'!E251,'出場ペア データ入力・貼付'!B251))","v":""},{"$f":"IFERROR('出場ペア データ入力・貼付'!H251,\"\")","v":""},{"$f":"IFERROR('出場ペア データ入力・貼付'!I251,\"\")","v":""},{"$f":"IFERROR('出場ペア データ入力・貼付'!J251,\"\")","v":""}]
[null,null,null,null,null,null,null,null,null,null,null,null,null,null,null,null,null,null,null,null,null,null,null,null,{"$f":"IF('出場ペア データ入力・貼付'!B252&'出場ペア データ入力・貼付'!E252=\"\",\"\",IF('出場ペア データ入力・貼付'!E252<>\"\",'出場ペア データ入力・貼付'!E252,'出場ペア データ入力・貼付'!B252))","v":""},{"$f":"IFERROR('出場ペア データ入力・貼付'!H252,\"\")","v":""},{"$f":"IFERROR('出場ペア データ入力・貼付'!I252,\"\")","v":""},{"$f":"IFERROR('出場ペア データ入力・貼付'!J252,\"\")","v":""}]
[null,null,null,null,null,null,null,null,null,null,null,null,null,null,null,null,null,null,null,null,null,null,null,null,{"$f":"IF('出場ペア データ入力・貼付'!B253&'出場ペア データ入力・貼付'!E253=\"\",\"\",IF('出場ペア データ入力・貼付'!E253<>\"\",'出場ペア データ入力・貼付'!E253,'出場ペア データ入力・貼付'!B253))","v":""},{"$f":"IFERROR('出場ペア データ入力・貼付'!H253,\"\")","v":""},{"$f":"IFERROR('出場ペア データ入力・貼付'!I253,\"\")","v":""},{"$f":"IFERROR('出場ペア データ入力・貼付'!J253,\"\")","v":""}]
[null,null,null,null,null,null,null,null,null,null,null,null,null,null,null,null,null,null,null,null,null,null,null,null,{"$f":"IF('出場ペア データ入力・貼付'!B254&'出場ペア データ入力・貼付'!E254=\"\",\"\",IF('出場ペア データ入力・貼付'!E254<>\"\",'出場ペア データ入力・貼付'!E254,'出場ペア データ入力・貼付'!B254))","v":""},{"$f":"IFERROR('出場ペア データ入力・貼付'!H254,\"\")","v":""},{"$f":"IFERROR('出場ペア データ入力・貼付'!I254,\"\")","v":""},{"$f":"IFERROR('出場ペア データ入力・貼付'!J254,\"\")","v":""}]
[null,null,null,null,null,null,null,null,null,null,null,null,null,null,null,null,null,null,null,null,null,null,null,null,{"$f":"IF('出場ペア データ入力・貼付'!B255&'出場ペア データ入力・貼付'!E255=\"\",\"\",IF('出場ペア データ入力・貼付'!E255<>\"\",'出場ペア データ入力・貼付'!E255,'出場ペア データ入力・貼付'!B255))","v":""},{"$f":"IFERROR('出場ペア データ入力・貼付'!H255,\"\")","v":""},{"$f":"IFERROR('出場ペア データ入力・貼付'!I255,\"\")","v":""},{"$f":"IFERROR('出場ペア データ入力・貼付'!J255,\"\")","v":""}]
[null,null,null,null,null,null,null,null,null,null,null,null,null,null,null,null,null,null,null,null,null,null,null,null,{"$f":"IF('出場ペア データ入力・貼付'!B256&'出場ペア データ入力・貼付'!E256=\"\",\"\",IF('出場ペア データ入力・貼付'!E256<>\"\",'出場ペア データ入力・貼付'!E256,'出場ペア データ入力・貼付'!B256))","v":""},{"$f":"IFERROR('出場ペア データ入力・貼付'!H256,\"\")","v":""},{"$f":"IFERROR('出場ペア データ入力・貼付'!I256,\"\")","v":""},{"$f":"IFERROR('出場ペア データ入力・貼付'!J256,\"\")","v":""}]
[null,null,null,null,null,null,null,null,null,null,null,null,null,null,null,null,null,null,null,null,null,null,null,null,{"$f":"IF('出場ペア データ入力・貼付'!B257&'出場ペア データ入力・貼付'!E257=\"\",\"\",IF('出場ペア データ入力・貼付'!E257<>\"\",'出場ペア データ入力・貼付'!E257,'出場ペア データ入力・貼付'!B257))","v":""},{"$f":"IFERROR('出場ペア データ入力・貼付'!H257,\"\")","v":""},{"$f":"IFERROR('出場ペア データ入力・貼付'!I257,\"\")","v":""},{"$f":"IFERROR('出場ペア データ入力・貼付'!J257,\"\")","v":""}]
[null,null,null,null,null,null,null,null,null,null,null,null,null,null,null,null,null,null,null,null,null,null,null,null,{"$f":"IF('出場ペア データ入力・貼付'!B258&'出場ペア データ入力・貼付'!E258=\"\",\"\",IF('出場ペア データ入力・貼付'!E258<>\"\",'出場ペア データ入力・貼付'!E258,'出場ペア データ入力・貼付'!B258))","v":""},{"$f":"IFERROR('出場ペア データ入力・貼付'!H258,\"\")","v":""},{"$f":"IFERROR('出場ペア データ入力・貼付'!I258,\"\")","v":""},{"$f":"IFERROR('出場ペア データ入力・貼付'!J258,\"\")","v":""}]
[null,null,null,null,null,null,null,null,null,null,null,null,null,null,null,null,null,null,null,null,null,null,null,null,{"$f":"IF('出場ペア データ入力・貼付'!B259&'出場ペア データ入力・貼付'!E259=\"\",\"\",IF('出場ペア データ入力・貼付'!E259<>\"\",'出場ペア データ入力・貼付'!E259,'出場ペア データ入力・貼付'!B259))","v":""},{"$f":"IFERROR('出場ペア データ入力・貼付'!H259,\"\")","v":""},{"$f":"IFERROR('出場ペア データ入力・貼付'!I259,\"\")","v":""},{"$f":"IFERROR('出場ペア データ入力・貼付'!J259,\"\")","v":""}]
[null,null,null,null,null,null,null,null,null,null,null,null,null,null,null,null,null,null,null,null,null,null,null,null,{"$f":"IF('出場ペア データ入力・貼付'!B260&'出場ペア データ入力・貼付'!E260=\"\",\"\",IF('出場ペア データ入力・貼付'!E260<>\"\",'出場ペア データ入力・貼付'!E260,'出場ペア データ入力・貼付'!B260))","v":""},{"$f":"IFERROR('出場ペア データ入力・貼付'!H260,\"\")","v":""},{"$f":"IFERROR('出場ペア データ入力・貼付'!I260,\"\")","v":""},{"$f":"IFERROR('出場ペア データ入力・貼付'!J260,\"\")","v":""}]
[null,null,null,null,null,null,null,null,null,null,null,null,null,null,null,null,null,null,null,null,null,null,null,null,{"$f":"IF('出場ペア データ入力・貼付'!B261&'出場ペア データ入力・貼付'!E261=\"\",\"\",IF('出場ペア データ入力・貼付'!E261<>\"\",'出場ペア データ入力・貼付'!E261,'出場ペア データ入力・貼付'!B261))","v":""},{"$f":"IFERROR('出場ペア データ入力・貼付'!H261,\"\")","v":""},{"$f":"IFERROR('出場ペア データ入力・貼付'!I261,\"\")","v":""},{"$f":"IFERROR('出場ペア データ入力・貼付'!J261,\"\")","v":""}]
[null,null,null,null,null,null,null,null,null,null,null,null,null,null,null,null,null,null,null,null,null,null,null,null,{"$f":"IF('出場ペア データ入力・貼付'!B262&'出場ペア データ入力・貼付'!E262=\"\",\"\",IF('出場ペア データ入力・貼付'!E262<>\"\",'出場ペア データ入力・貼付'!E262,'出場ペア データ入力・貼付'!B262))","v":""},{"$f":"IFERROR('出場ペア データ入力・貼付'!H262,\"\")","v":""},{"$f":"IFERROR('出場ペア データ入力・貼付'!I262,\"\")","v":""},{"$f":"IFERROR('出場ペア データ入力・貼付'!J262,\"\")","v":""}]
[null,null,null,null,null,null,null,null,null,null,null,null,null,null,null,null,null,null,null,null,null,null,null,null,{"$f":"IF('出場ペア データ入力・貼付'!B263&'出場ペア データ入力・貼付'!E263=\"\",\"\",IF('出場ペア データ入力・貼付'!E263<>\"\",'出場ペア データ入力・貼付'!E263,'出場ペア データ入力・貼付'!B263))","v":""},{"$f":"IFERROR('出場ペア データ入力・貼付'!H263,\"\")","v":""},{"$f":"IFERROR('出場ペア データ入力・貼付'!I263,\"\")","v":""},{"$f":"IFERROR('出場ペア データ入力・貼付'!J263,\"\")","v":""}]
[null,null,null,null,null,null,null,null,null,null,null,null,null,null,null,null,null,null,null,null,null,null,null,null,{"$f":"IF('出場ペア データ入力・貼付'!B264&'出場ペア データ入力・貼付'!E264=\"\",\"\",IF('出場ペア データ入力・貼付'!E264<>\"\",'出場ペア データ入力・貼付'!E264,'出場ペア データ入力・貼付'!B264))","v":""},{"$f":"IFERROR('出場ペア データ入力・貼付'!H264,\"\")","v":""},{"$f":"IFERROR('出場ペア データ入力・貼付'!I264,\"\")","v":""},{"$f":"IFERROR('出場ペア データ入力・貼付'!J264,\"\")","v":""}]
[null,null,null,null,null,null,null,null,null,null,null,null,null,null,null,null,null,null,null,null,null,null,null,null,{"$f":"IF('出場ペア データ入力・貼付'!B265&'出場ペア データ入力・貼付'!E265=\"\",\"\",IF('出場ペア データ入力・貼付'!E265<>\"\",'出場ペア データ入力・貼付'!E265,'出場ペア データ入力・貼付'!B265))","v":""},{"$f":"IFERROR('出場ペア データ入力・貼付'!H265,\"\")","v":""},{"$f":"IFERROR('出場ペア データ入力・貼付'!I265,\"\")","v":""},{"$f":"IFERROR('出場ペア データ入力・貼付'!J265,\"\")","v":""}]
[null,null,null,null,null,null,null,null,null,null,null,null,null,null,null,null,null,null,null,null,null,null,null,null,{"$f":"IF('出場ペア データ入力・貼付'!B266&'出場ペア データ入力・貼付'!E266=\"\",\"\",IF('出場ペア データ入力・貼付'!E266<>\"\",'出場ペア データ入力・貼付'!E266,'出場ペア データ入力・貼付'!B266))","v":""},{"$f":"IFERROR('出場ペア データ入力・貼付'!H266,\"\")","v":""},{"$f":"IFERROR('出場ペア データ入力・貼付'!I266,\"\")","v":""},{"$f":"IFERROR('出場ペア データ入力・貼付'!J266,\"\")","v":""}]
[null,null,null,null,null,null,null,null,null,null,null,null,null,null,null,null,null,null,null,null,null,null,null,null,{"$f":"IF('出場ペア データ入力・貼付'!B267&'出場ペア データ入力・貼付'!E267=\"\",\"\",IF('出場ペア データ入力・貼付'!E267<>\"\",'出場ペア データ入力・貼付'!E267,'出場ペア データ入力・貼付'!B267))","v":""},{"$f":"IFERROR('出場ペア データ入力・貼付'!H267,\"\")","v":""},{"$f":"IFERROR('出場ペア データ入力・貼付'!I267,\"\")","v":""},{"$f":"IFERROR('出場ペア データ入力・貼付'!J267,\"\")","v":""}]
[null,null,null,null,null,null,null,null,null,null,null,null,null,null,null,null,null,null,null,null,null,null,null,null,{"$f":"IF('出場ペア データ入力・貼付'!B268&'出場ペア データ入力・貼付'!E268=\"\",\"\",IF('出場ペア データ入力・貼付'!E268<>\"\",'出場ペア データ入力・貼付'!E268,'出場ペア データ入力・貼付'!B268))","v":""},{"$f":"IFERROR('出場ペア データ入力・貼付'!H268,\"\")","v":""},{"$f":"IFERROR('出場ペア データ入力・貼付'!I268,\"\")","v":""},{"$f":"IFERROR('出場ペア データ入力・貼付'!J268,\"\")","v":""}]
[null,null,null,null,null,null,null,null,null,null,null,null,null,null,null,null,null,null,null,null,null,null,null,null,{"$f":"IF('出場ペア データ入力・貼付'!B269&'出場ペア データ入力・貼付'!E269=\"\",\"\",IF('出場ペア データ入力・貼付'!E269<>\"\",'出場ペア データ入力・貼付'!E269,'出場ペア データ入力・貼付'!B269))","v":""},{"$f":"IFERROR('出場ペア データ入力・貼付'!H269,\"\")","v":""},{"$f":"IFERROR('出場ペア データ入力・貼付'!I269,\"\")","v":""},{"$f":"IFERROR('出場ペア データ入力・貼付'!J269,\"\")","v":""}]
[null,null,null,null,null,null,null,null,null,null,null,null,null,null,null,null,null,null,null,null,null,null,null,null,{"$f":"IF('出場ペア データ入力・貼付'!B270&'出場ペア データ入力・貼付'!E270=\"\",\"\",IF('出場ペア データ入力・貼付'!E270<>\"\",'出場ペア データ入力・貼付'!E270,'出場ペア データ入力・貼付'!B270))","v":""},{"$f":"IFERROR('出場ペア データ入力・貼付'!H270,\"\")","v":""},{"$f":"IFERROR('出場ペア データ入力・貼付'!I270,\"\")","v":""},{"$f":"IFERROR('出場ペア データ入力・貼付'!J270,\"\")","v":""}]
[null,null,null,null,null,null,null,null,null,null,null,null,null,null,null,null,null,null,null,null,null,null,null,null,{"$f":"IF('出場ペア データ入力・貼付'!B271&'出場ペア データ入力・貼付'!E271=\"\",\"\",IF('出場ペア データ入力・貼付'!E271<>\"\",'出場ペア データ入力・貼付'!E271,'出場ペア データ入力・貼付'!B271))","v":""},{"$f":"IFERROR('出場ペア データ入力・貼付'!H271,\"\")","v":""},{"$f":"IFERROR('出場ペア データ入力・貼付'!I271,\"\")","v":""},{"$f":"IFERROR('出場ペア データ入力・貼付'!J271,\"\")","v":""}]
[null,null,null,null,null,null,null,null,null,null,null,null,null,null,null,null,null,null,null,null,null,null,null,null,{"$f":"IF('出場ペア データ入力・貼付'!B272&'出場ペア データ入力・貼付'!E272=\"\",\"\",IF('出場ペア データ入力・貼付'!E272<>\"\",'出場ペア データ入力・貼付'!E272,'出場ペア データ入力・貼付'!B272))","v":""},{"$f":"IFERROR('出場ペア データ入力・貼付'!H272,\"\")","v":""},{"$f":"IFERROR('出場ペア データ入力・貼付'!I272,\"\")","v":""},{"$f":"IFERROR('出場ペア データ入力・貼付'!J272,\"\")","v":""}]
[null,null,null,null,null,null,null,null,null,null,null,null,null,null,null,null,null,null,null,null,null,null,null,null,{"$f":"IF('出場ペア データ入力・貼付'!B273&'出場ペア データ入力・貼付'!E273=\"\",\"\",IF('出場ペア データ入力・貼付'!E273<>\"\",'出場ペア データ入力・貼付'!E273,'出場ペア データ入力・貼付'!B273))","v":""},{"$f":"IFERROR('出場ペア データ入力・貼付'!H273,\"\")","v":""},{"$f":"IFERROR('出場ペア データ入力・貼付'!I273,\"\")","v":""},{"$f":"IFERROR('出場ペア データ入力・貼付'!J273,\"\")","v":""}]
[null,null,null,null,null,null,null,null,null,null,null,null,null,null,null,null,null,null,null,null,null,null,null,null,{"$f":"IF('出場ペア データ入力・貼付'!B274&'出場ペア データ入力・貼付'!E274=\"\",\"\",IF('出場ペア データ入力・貼付'!E274<>\"\",'出場ペア データ入力・貼付'!E274,'出場ペア データ入力・貼付'!B274))","v":""},{"$f":"IFERROR('出場ペア データ入力・貼付'!H274,\"\")","v":""},{"$f":"IFERROR('出場ペア データ入力・貼付'!I274,\"\")","v":""},{"$f":"IFERROR('出場ペア データ入力・貼付'!J274,\"\")","v":""}]
[null,null,null,null,null,null,null,null,null,null,null,null,null,null,null,null,null,null,null,null,null,null,null,null,{"$f":"IF('出場ペア データ入力・貼付'!B275&'出場ペア データ入力・貼付'!E275=\"\",\"\",IF('出場ペア データ入力・貼付'!E275<>\"\",'出場ペア データ入力・貼付'!E275,'出場ペア データ入力・貼付'!B275))","v":""},{"$f":"IFERROR('出場ペア データ入力・貼付'!H275,\"\")","v":""},{"$f":"IFERROR('出場ペア データ入力・貼付'!I275,\"\")","v":""},{"$f":"IFERROR('出場ペア データ入力・貼付'!J275,\"\")","v":""}]
[null,null,null,null,null,null,null,null,null,null,null,null,null,null,null,null,null,null,null,null,null,null,null,null,{"$f":"IF('出場ペア データ入力・貼付'!B276&'出場ペア データ入力・貼付'!E276=\"\",\"\",IF('出場ペア データ入力・貼付'!E276<>\"\",'出場ペア データ入力・貼付'!E276,'出場ペア データ入力・貼付'!B276))","v":""},{"$f":"IFERROR('出場ペア データ入力・貼付'!H276,\"\")","v":""},{"$f":"IFERROR('出場ペア データ入力・貼付'!I276,\"\")","v":""},{"$f":"IFERROR('出場ペア データ入力・貼付'!J276,\"\")","v":""}]
[null,null,null,null,null,null,null,null,null,null,null,null,null,null,null,null,null,null,null,null,null,null,null,null,{"$f":"IF('出場ペア データ入力・貼付'!B277&'出場ペア データ入力・貼付'!E277=\"\",\"\",IF('出場ペア データ入力・貼付'!E277<>\"\",'出場ペア データ入力・貼付'!E277,'出場ペア データ入力・貼付'!B277))","v":""},{"$f":"IFERROR('出場ペア データ入力・貼付'!H277,\"\")","v":""},{"$f":"IFERROR('出場ペア データ入力・貼付'!I277,\"\")","v":""},{"$f":"IFERROR('出場ペア データ入力・貼付'!J277,\"\")","v":""}]
[null,null,null,null,null,null,null,null,null,null,null,null,null,null,null,null,null,null,null,null,null,null,null,null,{"$f":"IF('出場ペア データ入力・貼付'!B278&'出場ペア データ入力・貼付'!E278=\"\",\"\",IF('出場ペア データ入力・貼付'!E278<>\"\",'出場ペア データ入力・貼付'!E278,'出場ペア データ入力・貼付'!B278))","v":""},{"$f":"IFERROR('出場ペア データ入力・貼付'!H278,\"\")","v":""},{"$f":"IFERROR('出場ペア データ入力・貼付'!I278,\"\")","v":""},{"$f":"IFERROR('出場ペア データ入力・貼付'!J278,\"\")","v":""}]
[null,null,null,null,null,null,null,null,null,null,null,null,null,null,null,null,null,null,null,null,null,null,null,null,{"$f":"IF('出場ペア データ入力・貼付'!B279&'出場ペア データ入力・貼付'!E279=\"\",\"\",IF('出場ペア データ入力・貼付'!E279<>\"\",'出場ペア データ入力・貼付'!E279,'出場ペア データ入力・貼付'!B279))","v":""},{"$f":"IFERROR('出場ペア データ入力・貼付'!H279,\"\")","v":""},{"$f":"IFERROR('出場ペア データ入力・貼付'!I279,\"\")","v":""},{"$f":"IFERROR('出場ペア データ入力・貼付'!J279,\"\")","v":""}]
[null,null,null,null,null,null,null,null,null,null,null,null,null,null,null,null,null,null,null,null,null,null,null,null,{"$f":"IF('出場ペア データ入力・貼付'!B280&'出場ペア データ入力・貼付'!E280=\"\",\"\",IF('出場ペア データ入力・貼付'!E280<>\"\",'出場ペア データ入力・貼付'!E280,'出場ペア データ入力・貼付'!B280))","v":""},{"$f":"IFERROR('出場ペア データ入力・貼付'!H280,\"\")","v":""},{"$f":"IFERROR('出場ペア データ入力・貼付'!I280,\"\")","v":""},{"$f":"IFERROR('出場ペア データ入力・貼付'!J280,\"\")","v":""}]
[null,null,null,null,null,null,null,null,null,null,null,null,null,null,null,null,null,null,null,null,null,null,null,null,{"$f":"IF('出場ペア データ入力・貼付'!B281&'出場ペア データ入力・貼付'!E281=\"\",\"\",IF('出場ペア データ入力・貼付'!E281<>\"\",'出場ペア データ入力・貼付'!E281,'出場ペア データ入力・貼付'!B281))","v":""},{"$f":"IFERROR('出場ペア データ入力・貼付'!H281,\"\")","v":""},{"$f":"IFERROR('出場ペア データ入力・貼付'!I281,\"\")","v":""},{"$f":"IFERROR('出場ペア データ入力・貼付'!J281,\"\")","v":""}]
[null,null,null,null,null,null,null,null,null,null,null,null,null,null,null,null,null,null,null,null,null,null,null,null,{"$f":"IF('出場ペア データ入力・貼付'!B282&'出場ペア データ入力・貼付'!E282=\"\",\"\",IF('出場ペア データ入力・貼付'!E282<>\"\",'出場ペア データ入力・貼付'!E282,'出場ペア データ入力・貼付'!B282))","v":""},{"$f":"IFERROR('出場ペア データ入力・貼付'!H282,\"\")","v":""},{"$f":"IFERROR('出場ペア データ入力・貼付'!I282,\"\")","v":""},{"$f":"IFERROR('出場ペア データ入力・貼付'!J282,\"\")","v":""}]
[null,null,null,null,null,null,null,null,null,null,null,null,null,null,null,null,null,null,null,null,null,null,null,null,{"$f":"IF('出場ペア データ入力・貼付'!B283&'出場ペア データ入力・貼付'!E283=\"\",\"\",IF('出場ペア データ入力・貼付'!E283<>\"\",'出場ペア データ入力・貼付'!E283,'出場ペア データ入力・貼付'!B283))","v":""},{"$f":"IFERROR('出場ペア データ入力・貼付'!H283,\"\")","v":""},{"$f":"IFERROR('出場ペア データ入力・貼付'!I283,\"\")","v":""},{"$f":"IFERROR('出場ペア データ入力・貼付'!J283,\"\")","v":""}]
[null,null,null,null,null,null,null,null,null,null,null,null,null,null,null,null,null,null,null,null,null,null,null,null,{"$f":"IF('出場ペア データ入力・貼付'!B284&'出場ペア データ入力・貼付'!E284=\"\",\"\",IF('出場ペア データ入力・貼付'!E284<>\"\",'出場ペア データ入力・貼付'!E284,'出場ペア データ入力・貼付'!B284))","v":""},{"$f":"IFERROR('出場ペア データ入力・貼付'!H284,\"\")","v":""},{"$f":"IFERROR('出場ペア データ入力・貼付'!I284,\"\")","v":""},{"$f":"IFERROR('出場ペア データ入力・貼付'!J284,\"\")","v":""}]
[null,null,null,null,null,null,null,null,null,null,null,null,null,null,null,null,null,null,null,null,null,null,null,null,{"$f":"IF('出場ペア データ入力・貼付'!B285&'出場ペア データ入力・貼付'!E285=\"\",\"\",IF('出場ペア データ入力・貼付'!E285<>\"\",'出場ペア データ入力・貼付'!E285,'出場ペア データ入力・貼付'!B285))","v":""},{"$f":"IFERROR('出場ペア データ入力・貼付'!H285,\"\")","v":""},{"$f":"IFERROR('出場ペア データ入力・貼付'!I285,\"\")","v":""},{"$f":"IFERROR('出場ペア データ入力・貼付'!J285,\"\")","v":""}]
[null,null,null,null,null,null,null,null,null,null,null,null,null,null,null,null,null,null,null,null,null,null,null,null,{"$f":"IF('出場ペア データ入力・貼付'!B286&'出場ペア データ入力・貼付'!E286=\"\",\"\",IF('出場ペア データ入力・貼付'!E286<>\"\",'出場ペア データ入力・貼付'!E286,'出場ペア データ入力・貼付'!B286))","v":""},{"$f":"IFERROR('出場ペア データ入力・貼付'!H286,\"\")","v":""},{"$f":"IFERROR('出場ペア データ入力・貼付'!I286,\"\")","v":""},{"$f":"IFERROR('出場ペア データ入力・貼付'!J286,\"\")","v":""}]
[null,null,null,null,null,null,null,null,null,null,null,null,null,null,null,null,null,null,null,null,null,null,null,null,{"$f":"IF('出場ペア データ入力・貼付'!B287&'出場ペア データ入力・貼付'!E287=\"\",\"\",IF('出場ペア データ入力・貼付'!E287<>\"\",'出場ペア データ入力・貼付'!E287,'出場ペア データ入力・貼付'!B287))","v":""},{"$f":"IFERROR('出場ペア データ入力・貼付'!H287,\"\")","v":""},{"$f":"IFERROR('出場ペア データ入力・貼付'!I287,\"\")","v":""},{"$f":"IFERROR('出場ペア データ入力・貼付'!J287,\"\")","v":""}]
[null,null,null,null,null,null,null,null,null,null,null,null,null,null,null,null,null,null,null,null,null,null,null,null,{"$f":"IF('出場ペア データ入力・貼付'!B288&'出場ペア データ入力・貼付'!E288=\"\",\"\",IF('出場ペア データ入力・貼付'!E288<>\"\",'出場ペア データ入力・貼付'!E288,'出場ペア データ入力・貼付'!B288))","v":""},{"$f":"IFERROR('出場ペア データ入力・貼付'!H288,\"\")","v":""},{"$f":"IFERROR('出場ペア データ入力・貼付'!I288,\"\")","v":""},{"$f":"IFERROR('出場ペア データ入力・貼付'!J288,\"\")","v":""}]
[null,null,null,null,null,null,null,null,null,null,null,null,null,null,null,null,null,null,null,null,null,null,null,null,{"$f":"IF('出場ペア データ入力・貼付'!B289&'出場ペア データ入力・貼付'!E289=\"\",\"\",IF('出場ペア データ入力・貼付'!E289<>\"\",'出場ペア データ入力・貼付'!E289,'出場ペア データ入力・貼付'!B289))","v":""},{"$f":"IFERROR('出場ペア データ入力・貼付'!H289,\"\")","v":""},{"$f":"IFERROR('出場ペア データ入力・貼付'!I289,\"\")","v":""},{"$f":"IFERROR('出場ペア データ入力・貼付'!J289,\"\")","v":""}]
[null,null,null,null,null,null,null,null,null,null,null,null,null,null,null,null,null,null,null,null,null,null,null,null,{"$f":"IF('出場ペア データ入力・貼付'!B290&'出場ペア データ入力・貼付'!E290=\"\",\"\",IF('出場ペア データ入力・貼付'!E290<>\"\",'出場ペア データ入力・貼付'!E290,'出場ペア データ入力・貼付'!B290))","v":""},{"$f":"IFERROR('出場ペア データ入力・貼付'!H290,\"\")","v":""},{"$f":"IFERROR('出場ペア データ入力・貼付'!I290,\"\")","v":""},{"$f":"IFERROR('出場ペア データ入力・貼付'!J290,\"\")","v":""}]
[null,null,null,null,null,null,null,null,null,null,null,null,null,null,null,null,null,null,null,null,null,null,null,null,{"$f":"IF('出場ペア データ入力・貼付'!B291&'出場ペア データ入力・貼付'!E291=\"\",\"\",IF('出場ペア データ入力・貼付'!E291<>\"\",'出場ペア データ入力・貼付'!E291,'出場ペア データ入力・貼付'!B291))","v":""},{"$f":"IFERROR('出場ペア データ入力・貼付'!H291,\"\")","v":""},{"$f":"IFERROR('出場ペア データ入力・貼付'!I291,\"\")","v":""},{"$f":"IFERROR('出場ペア データ入力・貼付'!J291,\"\")","v":""}]
[null,null,null,null,null,null,null,null,null,null,null,null,null,null,null,null,null,null,null,null,null,null,null,null,{"$f":"IF('出場ペア データ入力・貼付'!B292&'出場ペア データ入力・貼付'!E292=\"\",\"\",IF('出場ペア データ入力・貼付'!E292<>\"\",'出場ペア データ入力・貼付'!E292,'出場ペア データ入力・貼付'!B292))","v":""},{"$f":"IFERROR('出場ペア データ入力・貼付'!H292,\"\")","v":""},{"$f":"IFERROR('出場ペア データ入力・貼付'!I292,\"\")","v":""},{"$f":"IFERROR('出場ペア データ入力・貼付'!J292,\"\")","v":""}]
[null,null,null,null,null,null,null,null,null,null,null,null,null,null,null,null,null,null,null,null,null,null,null,null,{"$f":"IF('出場ペア データ入力・貼付'!B293&'出場ペア データ入力・貼付'!E293=\"\",\"\",IF('出場ペア データ入力・貼付'!E293<>\"\",'出場ペア データ入力・貼付'!E293,'出場ペア データ入力・貼付'!B293))","v":""},{"$f":"IFERROR('出場ペア データ入力・貼付'!H293,\"\")","v":""},{"$f":"IFERROR('出場ペア データ入力・貼付'!I293,\"\")","v":""},{"$f":"IFERROR('出場ペア データ入力・貼付'!J293,\"\")","v":""}]
[null,null,null,null,null,null,null,null,null,null,null,null,null,null,null,null,null,null,null,null,null,null,null,null,{"$f":"IF('出場ペア データ入力・貼付'!B294&'出場ペア データ入力・貼付'!E294=\"\",\"\",IF('出場ペア データ入力・貼付'!E294<>\"\",'出場ペア データ入力・貼付'!E294,'出場ペア データ入力・貼付'!B294))","v":""},{"$f":"IFERROR('出場ペア データ入力・貼付'!H294,\"\")","v":""},{"$f":"IFERROR('出場ペア データ入力・貼付'!I294,\"\")","v":""},{"$f":"IFERROR('出場ペア データ入力・貼付'!J294,\"\")","v":""}]
[null,null,null,null,null,null,null,null,null,null,null,null,null,null,null,null,null,null,null,null,null,null,null,null,{"$f":"IF('出場ペア データ入力・貼付'!B295&'出場ペア データ入力・貼付'!E295=\"\",\"\",IF('出場ペア データ入力・貼付'!E295<>\"\",'出場ペア データ入力・貼付'!E295,'出場ペア データ入力・貼付'!B295))","v":""},{"$f":"IFERROR('出場ペア データ入力・貼付'!H295,\"\")","v":""},{"$f":"IFERROR('出場ペア データ入力・貼付'!I295,\"\")","v":""},{"$f":"IFERROR('出場ペア データ入力・貼付'!J295,\"\")","v":""}]
[null,null,null,null,null,null,null,null,null,null,null,null,null,null,null,null,null,null,null,null,null,null,null,null,{"$f":"IF('出場ペア データ入力・貼付'!B296&'出場ペア データ入力・貼付'!E296=\"\",\"\",IF('出場ペア データ入力・貼付'!E296<>\"\",'出場ペア データ入力・貼付'!E296,'出場ペア データ入力・貼付'!B296))","v":""},{"$f":"IFERROR('出場ペア データ入力・貼付'!H296,\"\")","v":""},{"$f":"IFERROR('出場ペア データ入力・貼付'!I296,\"\")","v":""},{"$f":"IFERROR('出場ペア データ入力・貼付'!J296,\"\")","v":""}]
[null,null,null,null,null,null,null,null,null,null,null,null,null,null,null,null,null,null,null,null,null,null,null,null,{"$f":"IF('出場ペア データ入力・貼付'!B297&'出場ペア データ入力・貼付'!E297=\"\",\"\",IF('出場ペア データ入力・貼付'!E297<>\"\",'出場ペア データ入力・貼付'!E297,'出場ペア データ入力・貼付'!B297))","v":""},{"$f":"IFERROR('出場ペア データ入力・貼付'!H297,\"\")","v":""},{"$f":"IFERROR('出場ペア データ入力・貼付'!I297,\"\")","v":""},{"$f":"IFERROR('出場ペア データ入力・貼付'!J297,\"\")","v":""}]
[null,null,null,null,null,null,null,null,null,null,null,null,null,null,null,null,null,null,null,null,null,null,null,null,{"$f":"IF('出場ペア データ入力・貼付'!B298&'出場ペア データ入力・貼付'!E298=\"\",\"\",IF('出場ペア データ入力・貼付'!E298<>\"\",'出場ペア データ入力・貼付'!E298,'出場ペア データ入力・貼付'!B298))","v":""},{"$f":"IFERROR('出場ペア データ入力・貼付'!H298,\"\")","v":""},{"$f":"IFERROR('出場ペア データ入力・貼付'!I298,\"\")","v":""},{"$f":"IFERROR('出場ペア データ入力・貼付'!J298,\"\")","v":""}]
[null,null,null,null,null,null,null,null,null,null,null,null,null,null,null,null,null,null,null,null,null,null,null,null,{"$f":"IF('出場ペア データ入力・貼付'!B299&'出場ペア データ入力・貼付'!E299=\"\",\"\",IF('出場ペア データ入力・貼付'!E299<>\"\",'出場ペア データ入力・貼付'!E299,'出場ペア データ入力・貼付'!B299))","v":""},{"$f":"IFERROR('出場ペア データ入力・貼付'!H299,\"\")","v":""},{"$f":"IFERROR('出場ペア データ入力・貼付'!I299,\"\")","v":""},{"$f":"IFERROR('出場ペア データ入力・貼付'!J299,\"\")","v":""}]
[null,null,null,null,null,null,null,null,null,null,null,null,null,null,null,null,null,null,null,null,null,null,null,null,{"$f":"IF('出場ペア データ入力・貼付'!B300&'出場ペア データ入力・貼付'!E300=\"\",\"\",IF('出場ペア データ入力・貼付'!E300<>\"\",'出場ペア データ入力・貼付'!E300,'出場ペア データ入力・貼付'!B300))","v":""},{"$f":"IFERROR('出場ペア データ入力・貼付'!H300,\"\")","v":""},{"$f":"IFERROR('出場ペア データ入力・貼付'!I300,\"\")","v":""},{"$f":"IFERROR('出場ペア データ入力・貼付'!J300,\"\")","v":""}]
[null,null,null,null,null,null,null,null,null,null,null,null,null,null,null,null,null,null,null,null,null,null,null,null,{"$f":"IF('出場ペア データ入力・貼付'!B301&'出場ペア データ入力・貼付'!E301=\"\",\"\",IF('出場ペア データ入力・貼付'!E301<>\"\",'出場ペア データ入力・貼付'!E301,'出場ペア データ入力・貼付'!B301))","v":""},{"$f":"IFERROR('出場ペア データ入力・貼付'!H301,\"\")","v":""},{"$f":"IFERROR('出場ペア データ入力・貼付'!I301,\"\")","v":""},{"$f":"IFERROR('出場ペア データ入力・貼付'!J301,\"\")","v":""}]
[null,null,null,null,null,null,null,null,null,null,null,null,null,null,null,null,null,null,null,null,null,null,null,null,{"$f":"IF('出場ペア データ入力・貼付'!B302&'出場ペア データ入力・貼付'!E302=\"\",\"\",IF('出場ペア データ入力・貼付'!E302<>\"\",'出場ペア データ入力・貼付'!E302,'出場ペア データ入力・貼付'!B302))","v":""},{"$f":"IFERROR('出場ペア データ入力・貼付'!H302,\"\")","v":""},{"$f":"IFERROR('出場ペア データ入力・貼付'!I302,\"\")","v":""},{"$f":"IFERROR('出場ペア データ入力・貼付'!J302,\"\")","v":""}]
[null,null,null,null,null,null,null,null,null,null,null,null,null,null,null,null,null,null,null,null,null,null,null,null,{"$f":"IF('出場ペア データ入力・貼付'!B303&'出場ペア データ入力・貼付'!E303=\"\",\"\",IF('出場ペア データ入力・貼付'!E303<>\"\",'出場ペア データ入力・貼付'!E303,'出場ペア データ入力・貼付'!B303))","v":""},{"$f":"IFERROR('出場ペア データ入力・貼付'!H303,\"\")","v":""},{"$f":"IFERROR('出場ペア データ入力・貼付'!I303,\"\")","v":""},{"$f":"IFERROR('出場ペア データ入力・貼付'!J303,\"\")","v":""}]
[null,null,null,null,null,null,null,null,null,null,null,null,null,null,null,null,null,null,null,null,null,null,null,null,{"$f":"IF('出場ペア データ入力・貼付'!B304&'出場ペア データ入力・貼付'!E304=\"\",\"\",IF('出場ペア データ入力・貼付'!E304<>\"\",'出場ペア データ入力・貼付'!E304,'出場ペア データ入力・貼付'!B304))","v":""},{"$f":"IFERROR('出場ペア データ入力・貼付'!H304,\"\")","v":""},{"$f":"IFERROR('出場ペア データ入力・貼付'!I304,\"\")","v":""},{"$f":"IFERROR('出場ペア データ入力・貼付'!J304,\"\")","v":""}]
[null,null,null,null,null,null,null,null,null,null,null,null,null,null,null,null,null,null,null,null,null,null,null,null,{"$f":"IF('出場ペア データ入力・貼付'!B305&'出場ペア データ入力・貼付'!E305=\"\",\"\",IF('出場ペア データ入力・貼付'!E305<>\"\",'出場ペア データ入力・貼付'!E305,'出場ペア データ入力・貼付'!B305))","v":""},{"$f":"IFERROR('出場ペア データ入力・貼付'!H305,\"\")","v":""},{"$f":"IFERROR('出場ペア データ入力・貼付'!I305,\"\")","v":""},{"$f":"IFERROR('出場ペア データ入力・貼付'!J305,\"\")","v":""}]
[null,null,null,null,null,null,null,null,null,null,null,null,null,null,null,null,null,null,null,null,null,null,null,null,{"$f":"IF('出場ペア データ入力・貼付'!B306&'出場ペア データ入力・貼付'!E306=\"\",\"\",IF('出場ペア データ入力・貼付'!E306<>\"\",'出場ペア データ入力・貼付'!E306,'出場ペア データ入力・貼付'!B306))","v":""},{"$f":"IFERROR('出場ペア データ入力・貼付'!H306,\"\")","v":""},{"$f":"IFERROR('出場ペア データ入力・貼付'!I306,\"\")","v":""},{"$f":"IFERROR('出場ペア データ入力・貼付'!J306,\"\")","v":""}]
[null,null,null,null,null,null,null,null,null,null,null,null,null,null,null,null,null,null,null,null,null,null,null,null,{"$f":"IF('出場ペア データ入力・貼付'!B307&'出場ペア データ入力・貼付'!E307=\"\",\"\",IF('出場ペア データ入力・貼付'!E307<>\"\",'出場ペア データ入力・貼付'!E307,'出場ペア データ入力・貼付'!B307))","v":""},{"$f":"IFERROR('出場ペア データ入力・貼付'!H307,\"\")","v":""},{"$f":"IFERROR('出場ペア データ入力・貼付'!I307,\"\")","v":""},{"$f":"IFERROR('出場ペア データ入力・貼付'!J307,\"\")","v":""}]
[null,null,null,null,null,null,null,null,null,null,null,null,null,null,null,null,null,null,null,null,null,null,null,null,{"$f":"IF('出場ペア データ入力・貼付'!B308&'出場ペア データ入力・貼付'!E308=\"\",\"\",IF('出場ペア データ入力・貼付'!E308<>\"\",'出場ペア データ入力・貼付'!E308,'出場ペア データ入力・貼付'!B308))","v":""},{"$f":"IFERROR('出場ペア データ入力・貼付'!H308,\"\")","v":""},{"$f":"IFERROR('出場ペア データ入力・貼付'!I308,\"\")","v":""},{"$f":"IFERROR('出場ペア データ入力・貼付'!J308,\"\")","v":""}]
[null,null,null,null,null,null,null,null,null,null,null,null,null,null,null,null,null,null,null,null,null,null,null,null,{"$f":"IF('出場ペア データ入力・貼付'!B309&'出場ペア データ入力・貼付'!E309=\"\",\"\",IF('出場ペア データ入力・貼付'!E309<>\"\",'出場ペア データ入力・貼付'!E309,'出場ペア データ入力・貼付'!B309))","v":""},{"$f":"IFERROR('出場ペア データ入力・貼付'!H309,\"\")","v":""},{"$f":"IFERROR('出場ペア データ入力・貼付'!I309,\"\")","v":""},{"$f":"IFERROR('出場ペア データ入力・貼付'!J309,\"\")","v":""}]
[null,null,null,null,null,null,null,null,null,null,null,null,null,null,null,null,null,null,null,null,null,null,null,null,{"$f":"IF('出場ペア データ入力・貼付'!B310&'出場ペア データ入力・貼付'!E310=\"\",\"\",IF('出場ペア データ入力・貼付'!E310<>\"\",'出場ペア データ入力・貼付'!E310,'出場ペア データ入力・貼付'!B310))","v":""},{"$f":"IFERROR('出場ペア データ入力・貼付'!H310,\"\")","v":""},{"$f":"IFERROR('出場ペア データ入力・貼付'!I310,\"\")","v":""},{"$f":"IFERROR('出場ペア データ入力・貼付'!J310,\"\")","v":""}]
[null,null,null,null,null,null,null,null,null,null,null,null,null,null,null,null,null,null,null,null,null,null,null,null,{"$f":"IF('出場ペア データ入力・貼付'!B311&'出場ペア データ入力・貼付'!E311=\"\",\"\",IF('出場ペア データ入力・貼付'!E311<>\"\",'出場ペア データ入力・貼付'!E311,'出場ペア データ入力・貼付'!B311))","v":""},{"$f":"IFERROR('出場ペア データ入力・貼付'!H311,\"\")","v":""},{"$f":"IFERROR('出場ペア データ入力・貼付'!I311,\"\")","v":""},{"$f":"IFERROR('出場ペア データ入力・貼付'!J311,\"\")","v":""}]
[null,null,null,null,null,null,null,null,null,null,null,null,null,null,null,null,null,null,null,null,null,null,null,null,{"$f":"IF('出場ペア データ入力・貼付'!B312&'出場ペア データ入力・貼付'!E312=\"\",\"\",IF('出場ペア データ入力・貼付'!E312<>\"\",'出場ペア データ入力・貼付'!E312,'出場ペア データ入力・貼付'!B312))","v":""},{"$f":"IFERROR('出場ペア データ入力・貼付'!H312,\"\")","v":""},{"$f":"IFERROR('出場ペア データ入力・貼付'!I312,\"\")","v":""},{"$f":"IFERROR('出場ペア データ入力・貼付'!J312,\"\")","v":""}]
[null,null,null,null,null,null,null,null,null,null,null,null,null,null,null,null,null,null,null,null,null,null,null,null,{"$f":"IF('出場ペア データ入力・貼付'!B313&'出場ペア データ入力・貼付'!E313=\"\",\"\",IF('出場ペア データ入力・貼付'!E313<>\"\",'出場ペア データ入力・貼付'!E313,'出場ペア データ入力・貼付'!B313))","v":""},{"$f":"IFERROR('出場ペア データ入力・貼付'!H313,\"\")","v":""},{"$f":"IFERROR('出場ペア データ入力・貼付'!I313,\"\")","v":""},{"$f":"IFERROR('出場ペア データ入力・貼付'!J313,\"\")","v":""}]

{"sheet":"採点票(印刷画面)","index":2,"n_rows":281,"n_cols":79,"rows_kept":281,"cut":false,"hidden":false,"merged":[[4,20,4,29],[5,10,5,19],[5,20,6,29],[0,14,0,22],[2,1,2,38],[3,1,4,3],[3,4,4,9],[3,10,4,11],[3,12,4,15],[3,16,4,19],[3,20,3,29],[3,30,4,38],[12,4,14,4],[12,5,14,16],[12,26,14,26],[12,27,14,38],[14,1,14,3],[14,23,14,25],[7,31,8,38],[9,1,13,3],[9,4,11,4],[9,5,11,16],[9,23,13,25],[9,26,11,26],[9,27,11,38],[11,17,12,18],[11,19,12,20],[11,21,12,22],[5,30,6,38],[6,10,6,19],[7,1,8,1],[7,28,8,30],[23,1,24,2],[23,17,24,22],[23,23,24,24],[25,1,26,2],[25,17,26,22],[25,23,26,24],[19,1,20,2],[19,17,20,22],[19,23,20,24],[21,1,22,2],[21,17,22,22],[21,23,22,24],[15,1,16,2],[15,17,16,22],[15,23,16,24],[17,1,18,2],[17,17,18,22],[17,23,18,24],[5,1,6,9],[31,28,32,29],[31,30,32,32],[31,33,32,35],[31,36,32,38],[32,12,32,19],[32,20,32,27],[30,28,30,29],[30,30,30,32],[30,33,30,35],[30,36,30,38],[31,1,32,2],[31,3,32,5],[31,6,32,8],[31,9,32,11],[31,12,31,19],[31,20,31,27],[27,1,29,2],[27,17,29,22],[27,23,29,24],[30,1,30,2],[30,3,30,5],[30,6,30,8],[30,9,30,11],[30,12,30,19],[30,20,30,27],[7,2,8,5],[7,6,8,8],[7,9,8,16],[7,17,8,22],[7,23,8,23],[7,24,8,27],[38,30,39,38],[40,10,40,19],[40,20,41,29],[40,30,41,38],[41,10,41,19],[33,30,34,32],[33,33,34,38],[35,1,35,38],[37,1,37,38],[38,1,39,3],[38,4,39,9],[38,10,39,11],[38,12,39,15],[38,16,39,19],[33,1,34,4],[33,5,34,10],[33,11,34,13],[33,14,34,19],[33,20,34,22],[33,23,34,29],[40,1,41,9],[38,20,38,29],[39,20,39,29],[46,19,47,20],[46,21,47,22],[47,4,49,4],[47,5,49,16],[47,26,49,26],[47,27,49,38],[42,24,43,27],[42,28,43,30],[42,31,43,38],[44,1,48,3],[44,4,46,4],[44,5,46,16],[44,23,48,25],[44,26,46,26],[44,27,46,38],[46,17,47,18],[42,1,43,1],[42,2,43,5],[42,6,43,8],[42,9,43,16],[42,17,43,22],[42,23,43,23],[58,1,59,2],[58,17,59,22],[58,23,59,24],[60,1,61,2],[60,17,61,22],[60,23,61,24],[54,1,55,2],[54,17,55,22],[54,23,55,24],[56,1,57,2],[56,17,57,22],[56,23,57,24],[49,1,49,3],[49,23,49,25],[50,1,51,2],[50,17,51,22],[50,23,51,24],[52,1,53,2],[52,17,53,22],[52,23,53,24],[66,28,67,29],[66,30,67,32],[66,33,67,35],[66,36,67,38],[67,12,67,19],[67,20,67,27],[65,28,65,29],[65,30,65,32],[65,33,65,35],[65,36,65,38],[66,1,67,2],[66,3,67,5],[66,6,67,8],[66,9,67,11],[66,12,66,19],[66,20,66,27],[62,1,64,2],[62,17,64,22],[62,23,64,24],[65,1,65,2],[65,3,65,5],[65,6,65,8],[65,9,65,11],[65,12,65,19],[65,20,65,27],[73,30,74,38],[75,10,75,19],[75,20,76,29],[75,30,76,38],[76,10,76,19],[68,30,69,32],[68,33,69,38],[70,1,70,38],[72,1,72,38],[73,1,74,3],[73,4,74,9],[73,10,74,11],[73,12,74,15],[73,16,74,19],[68,1,69,4],[68,5,69,10],[68,11,69,13],[68,14,69,19],[68,20,69,22],[68,23,69,29],[75,1,76,9],[73,20,73,29],[74,20,74,29],[81,19,82,20],[81,21,82,22],[82,4,84,4],[82,5,84,16],[82,26,84,26],[82,27,84,38],[77,24,78,27],[77,28,78,30],[77,31,78,38],[79,1,83,3],[79,4,81,4],[79,5,81,16],[79,23,83,25],[79,26,81,26],[79,27,81,38],[81,17,82,18],[77,1,78,1],[77,2,78,5],[77,6,78,8],[77,9,78,16],[77,17,78,22],[77,23,78,23],[93,1,94,2],[93,17,94,22],[93,23,94,24],[95,1,96,2],[95,17,96,22],[95,23,96,24],[89,1,90,2],[89,17,90,22],[89,23,90,24],[91,1,92,2],[91,17,92,22],[91,23,92,24],[84,1,84,3],[84,23,84,25],[85,1,86,2],[85,17,86,22],[85,23,86,24],[87,1,88,2],[87,17,88,22],[87,23,88,24],[101,28,102,29],[101,30,102,32],[101,33,102,35],[101,36,102,38],[102,12,102,19],[102,20,102,27],[100,28,100,29],[100,30,100,32],[100,33,100,35],[100,36,100,38],[101,1,102,2],[101,3,102,5],[101,6,102,8],[101,9,102,11],[101,12,101,19],[101,20,101,27],[97,1,99,2],[97,17,99,22],[97,23,99,24],[100,1,100,2],[100,3,100,5],[100,6,100,8],[100,9,100,11],[100,12,100,19],[100,20,100,27],[108,30,109,38],[110,10,110,19],[110,20,111,29],[110,30,111,38],[111,10,111,19],[103,30,104,32],[103,33,104,38],[105,1,105,38],[107,1,107,38],[108,1,109,3],[108,4,109,9],[108,10,109,11],[108,12,109,15],[108,16,109,19],[103,1,104,4],[103,5,104,10],[103,11,104,13],[103,14,104,19],[103,20,104,22],[103,23,104,29],[110,1,111,9],[108,20,108,29],[109,20,109,29],[116,19,117,20],[116,21,117,22],[117,4,119,4],[117,5,119,16],[117,26,119,26],[117,27,119,38],[112,24,113,27],[112,28,113,30],[112,31,113,38],[114,1,118,3],[114,4,116,4],[114,5,116,16],[114,23,118,25],[114,26,116,26],[114,27,116,38],[116,17,117,18],[112,1,113,1],[112,2,113,5],[112,6,113,8],[112,9,113,16],[112,17,113,22],[112,23,113,23],[128,1,129,2],[128,17,129,22],[128,23,129,24],[130,1,131,2],[130,17,131,22],[130,23,131,24],[124,1,125,2],[124,17,125,22],[124,23,125,24],[126,1,127,2],[126,17,127,22],[126,23,127,24],[119,1,119,3],[119,23,119,25],[120,1,121,2],[120,17,121,22],[120,23,121,24],[122,1,123,2],[122,17,123,22],[122,23,123,24],[136,28,137,29],[136,30,137,32],[136,33,137,35],[136,36,137,38],[137,12,137,19],[137,20,137,27],[135,28,135,29],[135,30,135,32],[135,33,135,35],[135,36,135,38],[136,1,137,2],[136,3,137,5],[136,6,137,8],[136,9,137,11],[136,12,136,19],[136,20,136,27],[132,1,134,2],[132,17,134,22],[132,23,134,24],[135,1,135,2],[135,3,135,5],[135,6,135,8],[135,9,135,11],[135,12,135,19],[135,20,135,27],[143,30,144,38],[145,10,145,19],[145,20,146,29],[145,30,146,38],[146,10,146,19],[138,30,139,32],[138,33,139,38],[140,1,140,38],[142,1,142,38],[143,1,144,3],[143,4,144,9],[143,10,144,11],[143,12,144,15],[143,16,144,19],[138,1,139,4],[138,5,139,10],[138,11,139,13],[138,14,139,19],[138,20,139,22],[138,23,139,29],[145,1,146,9],[143,20,143,29],[144,20,144,29],[151,19,152,20],[151,21,152,22],[152,4,154,4],[152,5,154,16],[152,26,154,26],[152,27,154,38],[147,24,148,27],[147,28,148,30],[147,31,148,38],[149,1,153,3],[149,4,151,4],[149,5,151,16],[149,23,153,25],[149,26,151,26],[149,27,151,38],[151,17,152,18],[147,1,148,1],[147,2,148,5],[147,6,148,8],[147,9,148,16],[147,17,148,22],[147,23,148,23],[163,1,164,2],[163,17,164,22],[163,23,164,24],[165,1,166,2],[165,17,166,22],[165,23,166,24],[159,1,160,2],[159,17,160,22],[159,23,160,24],[161,1,162,2],[161,17,162,22],[161,23,162,24],[154,1,154,3],[154,23,154,25],[155,1,156,2],[155,17,156,22],[155,23,156,24],[157,1,158,2],[157,17,158,22],[157,23,158,24],[171,28,172,29],[171,30,172,32],[171,33,172,35],[171,36,172,38],[172,12,172,19],[172,20,172,27],[170,28,170,29],[170,30,170,32],[170,33,170,35],[170,36,170,38],[171,1,172,2],[171,3,172,5],[171,6,172,8],[171,9,172,11],[171,12,171,19],[171,20,171,27],[167,1,169,2],[167,17,169,22],[167,23,169,24],[170,1,170,2],[170,3,170,5],[170,6,170,8],[170,9,170,11],[170,12,170,19],[170,20,170,27],[178,30,179,38],[180,10,180,19],[180,20,181,29],[180,30,181,38],[181,10,181,19],[173,30,174,32],[173,33,174,38],[175,1,175,38],[177,1,177,38],[178,1,179,3],[178,4,179,9],[178,10,179,11],[178,12,179,15],[178,16,179,19],[173,1,174,4],[173,5,174,10],[173,11,174,13],[173,14,174,19],[173,20,174,22],[173,23,174,29],[180,1,181,9],[178,20,178,29],[179,20,179,29],[186,19,187,20],[186,21,187,22],[187,4,189,4],[187,5,189,16],[187,26,189,26],[187,27,189,38],[182,24,183,27],[182,28,183,30],[182,31,183,38],[184,1,188,3],[184,4,186,4],[184,5,186,16],[184,23,188,25],[184,26,186,26],[184,27,186,38],[186,17,187,18],[182,1,183,1],[182,2,183,5],[182,6,183,8],[182,9,183,16],[182,17,183,22],[182,23,183,23],[198,1,199,2],[198,17,199,22],[198,23,199,24],[200,1,201,2],[200,17,201,22],[200,23,201,24],[194,1,195,2],[194,17,195,22],[194,23,195,24],[196,1,197,2],[196,17,197,22],[196,23,197,24],[189,1,189,3],[189,23,189,25],[190,1,191,2],[190,17,191,22],[190,23,191,24],[192,1,193,2],[192,17,193,22],[192,23,193,24],[206,28,207,29],[206,30,207,32],[206,33,207,35],[206,36,207,38],[207,12,207,19],[207,20,207,27],[205,28,205,29],[205,30,205,32],[205,33,205,35],[205,36,205,38],[206,1,207,2],[206,3,207,5],[206,6,207,8],[206,9,207,11],[206,12,206,19],[206,20,206,27],[202,1,204,2],[202,17,204,22],[202,23,204,24],[205,1,205,2],[205,3,205,5],[205,6,205,8],[205,9,205,11],[205,12,205,19],[205,20,205,27],[213,30,214,38],[215,10,215,19],[215,20,216,29],[215,30,216,38],[216,10,216,19],[208,30,209,32],[208,33,209,38],[210,1,210,38],[212,1,212,38],[213,1,214,3],[213,4,214,9],[213,10,214,11],[213,12,214,15],[213,16,214,19],[208,1,209,4],[208,5,209,10],[208,11,209,13],[208,14,209,19],[208,20,209,22],[208,23,209,29],[215,1,216,9],[213,20,213,29],[214,20,214,29],[221,19,222,20],[221,21,222,22],[222,4,224,4],[222,5,224,16],[222,26,224,26],[222,27,224,38],[217,24,218,27],[217,28,218,30],[217,31,218,38],[219,1,223,3],[219,4,221,4],[219,5,221,16],[219,23,223,25],[219,26,221,26],[219,27,221,38],[221,17,222,18],[217,1,218,1],[217,2,218,5],[217,6,218,8],[217,9,218,16],[217,17,218,22],[217,23,218,23],[233,1,234,2],[233,17,234,22],[233,23,234,24],[235,1,236,2],[235,17,236,22],[235,23,236,24],[229,1,230,2],[229,17,230,22],[229,23,230,24],[231,1,232,2],[231,17,232,22],[231,23,232,24],[224,1,224,3],[224,23,224,25],[225,1,226,2],[225,17,226,22],[225,23,226,24],[227,1,228,2],[227,17,228,22],[227,23,228,24],[241,28,242,29],[241,30,242,32],[241,33,242,35],[241,36,242,38],[242,12,242,19],[242,20,242,27],[240,28,240,29],[240,30,240,32],[240,33,240,35],[240,36,240,38],[241,1,242,2],[241,3,242,5],[241,6,242,8],[241,9,242,11],[241,12,241,19],[241,20,241,27],[237,1,239,2],[237,17,239,22],[237,23,239,24],[240,1,240,2],[240,3,240,5],[240,6,240,8],[240,9,240,11],[240,12,240,19],[240,20,240,27],[248,30,249,38],[250,10,250,19],[250,20,251,29],[250,30,251,38],[251,10,251,19],[243,30,244,32],[243,33,244,38],[245,1,245,38],[247,1,247,38],[248,1,249,3],[248,4,249,9],[248,10,249,11],[248,12,249,15],[248,16,249,19],[243,1,244,4],[243,5,244,10],[243,11,244,13],[243,14,244,19],[243,20,244,22],[243,23,244,29],[250,1,251,9],[248,20,248,29],[249,20,249,29],[259,1,259,3],[259,23,259,25],[260,1,261,2],[260,17,261,22],[260,23,261,24],[262,1,263,2],[262,17,263,22],[262,23,263,24],[256,19,257,20],[256,21,257,22],[257,4,259,4],[257,5,259,16],[257,26,259,26],[257,27,259,38],[252,24,253,27],[252,28,253,30],[252,31,253,38],[254,1,258,3],[254,4,256,4],[254,5,256,16],[254,23,258,25],[254,26,256,26],[254,27,256,38],[256,17,257,18],[252,1,253,1],[252,2,253,5],[252,6,253,8],[252,9,253,16],[252,17,253,22],[252,23,253,23],[272,1,274,2],[272,17,274,22],[272,23,274,24],[275,1,275,2],[275,3,275,5],[275,6,275,8],[275,9,275,11],[275,12,275,19],[275,20,275,27],[268,1,269,2],[268,17,269,22],[268,23,269,24],[270,1,271,2],[270,17,271,22],[270,23,271,24],[264,1,265,2],[264,17,265,22],[264,23,265,24],[266,1,267,2],[266,17,267,22],[266,23,267,24],[278,30,279,32],[278,33,279,38],[280,1,280,38],[278,1,279,4],[278,5,279,10],[278,11,279,13],[278,14,279,19],[278,20,279,22],[278,23,279,29],[276,28,277,29],[276,30,277,32],[276,33,277,35],[276,36,277,38],[277,12,277,19],[277,20,277,27],[275,28,275,29],[275,30,275,32],[275,33,275,35],[275,36,275,38],[276,1,277,2],[276,3,277,5],[276,6,277,8],[276,9,277,11],[276,12,276,19],[276,20,276,27],[2,41,2,78],[3,41,4,43],[3,44,4,49],[3,50,4,51],[3,52,4,55],[3,56,4,59],[3,60,3,69],[3,70,4,78],[4,60,4,69],[5,41,6,49],[5,50,5,59],[5,60,6,69],[5,70,6,78],[6,50,6,59],[7,41,8,41],[7,42,8,45],[7,46,8,48],[7,49,8,56],[7,57,8,62],[7,63,8,63],[7,64,8,67],[7,68,8,70],[7,71,8,78],[9,44,11,44],[9,45,11,56],[9,63,13,65],[9,66,11,66],[9,67,11,78],[11,57,12,58],[11,59,12,60],[11,61,12,62],[12,44,14,44],[12,45,14,56],[12,66,14,66],[12,67,14,78],[14,41,14,43],[14,63,14,65],[15,41,16,42],[15,57,16,62],[15,63,16,64],[9,41,13,43],[17,41,18,42],[17,57,18,62],[17,63,18,64],[19,41,20,42],[19,57,20,62],[19,63,20,64],[21,41,22,42],[21,57,22,62],[21,63,22,64],[23,41,24,42],[23,57,24,62],[23,63,24,64],[25,41,26,42],[25,57,26,62],[25,63,26,64],[27,41,29,42],[27,57,29,62],[27,63,29,64],[30,41,30,42],[30,43,30,45],[30,46,30,48],[30,49,30,51],[30,52,30,59],[30,60,30,67],[30,68,30,69],[30,70,30,72],[30,73,30,75],[30,76,30,78],[31,41,32,42],[31,43,32,45],[31,46,32,48],[31,49,32,51],[31,52,31,59],[31,60,31,67],[31,68,32,69],[31,70,32,72],[31,73,32,75],[31,76,32,78],[32,52,32,59],[32,60,32,67],[33,41,34,44],[33,45,34,50],[33,51,34,53],[33,54,34,59],[33,60,34,62],[33,63,34,69],[33,70,34,72],[33,73,34,78],[35,41,35,78],[37,41,37,78],[38,41,39,43],[38,44,39,49],[38,50,39,51],[38,52,39,55],[38,56,39,59],[38,60,38,69],[38,70,39,78],[39,60,39,69],[40,41,41,49],[40,50,40,59],[40,60,41,69],[40,70,41,78],[41,50,41,59],[42,41,43,41],[42,42,43,45],[42,46,43,48],[42,49,43,56],[42,57,43,62],[42,63,43,63],[42,64,43,67],[42,68,43,70],[42,71,43,78],[44,41,48,43],[44,44,46,44],[44,45,46,56],[44,63,48,65],[44,66,46,66],[44,67,46,78],[46,57,47,58],[46,59,47,60],[46,61,47,62],[47,44,49,44],[47,45,49,56],[47,66,49,66],[47,67,49,78],[49,41,49,43],[49,63,49,65],[50,41,51,42],[50,57,51,62],[50,63,51,64],[52,41,53,42],[52,57,53,62],[52,63,53,64],[54,41,55,42],[54,57,55,62],[54,63,55,64],[56,41,57,42],[56,57,57,62],[56,63,57,64],[58,41,59,42],[58,57,59,62],[58,63,59,64],[60,41,61,42],[60,57,61,62],[60,63,61,64],[62,41,64,42],[62,57,64,62],[62,63,64,64],[65,41,65,42],[65,43,65,45],[65,46,65,48],[65,49,65,51],[65,52,65,59],[65,60,65,67],[65,68,65,69],[65,70,65,72],[65,73,65,75],[65,76,65,78],[66,41,67,42],[66,43,67,45],[66,46,67,48],[66,49,67,51],[66,52,66,59],[66,60,66,67],[66,68,67,69],[66,70,67,72],[66,73,67,75],[66,76,67,78],[67,52,67,59],[67,60,67,67],[68,41,69,44],[68,45,69,50],[68,51,69,53],[68,54,69,59],[68,60,69,62],[68,63,69,69],[68,70,69,72],[68,73,69,78],[70,41,70,78],[72,41,72,78],[73,41,74,43],[73,44,74,49],[73,50,74,51],[73,52,74,55],[73,56,74,59],[73,60,73,69],[73,70,74,78],[74,60,74,69],[75,41,76,49],[75,50,75,59],[75,60,76,69],[75,70,76,78],[76,50,76,59],[77,41,78,41],[77,42,78,45],[77,46,78,48],[77,49,78,56],[77,57,78,62],[77,63,78,63],[77,64,78,67],[77,68,78,70],[77,71,78,78],[79,41,83,43],[79,44,81,44],[79,45,81,56],[79,63,83,65],[79,66,81,66],[79,67,81,78],[81,57,82,58],[81,59,82,60],[81,61,82,62],[82,44,84,44],[82,45,84,56],[82,66,84,66],[82,67,84,78],[84,41,84,43],[84,63,84,65],[85,41,86,42],[85,57,86,62],[85,63,86,64],[87,41,88,42],[87,57,88,62],[87,63,88,64],[89,41,90,42],[89,57,90,62],[89,63,90,64],[91,41,92,42],[91,57,92,62],[91,63,92,64],[93,41,94,42],[93,57,94,62],[93,63,94,64],[95,41,96,42],[95,57,96,62],[95,63,96,64],[97,41,99,42],[97,57,99,62],[97,63,99,64],[100,41,100,42],[100,43,100,45],[100,46,100,48],[100,49,100,51],[100,52,100,59],[100,60,100,67],[100,68,100,69],[100,70,100,72],[100,73,100,75],[100,76,100,78],[101,41,102,42],[101,43,102,45],[101,46,102,48],[101,49,102,51],[101,52,101,59],[101,60,101,67],[101,68,102,69],[101,70,102,72],[101,73,102,75],[101,76,102,78],[102,52,102,59],[102,60,102,67],[103,41,104,44],[103,45,104,50],[103,51,104,53],[103,54,104,59],[103,60,104,62],[103,63,104,69],[103,70,104,72],[103,73,104,78],[105,41,105,78],[107,41,107,78],[108,41,109,43],[108,44,109,49],[108,50,109,51],[108,52,109,55],[108,56,109,59],[108,60,108,69],[108,70,109,78],[109,60,109,69]],"merged_total":1441,"flags":["merged_cut"]}
[]
[]
[null,"個　人　戦　採　点　表",null,null,null,null,null,null,null,null,null,null,null,null,null,null,null,null,null,null,null,null,null,null,null,null,null,null,null,null,null,null,null,null,null,null,null,null,null,null,null,"個　人　戦　採　点　表"]
[null,"種別",null,null,{"$f":"IF('採点票(作成画面)'!$A$1=\"\",\"\",'採点票(作成画面)'!$A$1)","v":""},null,null,null,null,null,"第",null,{"$f":"IF('採点票(作成画面)'!C5=\"\",\"\",'採点票(作成画面)'!C5)","v":""},null,null,null,"コート",null,null,null,"　正審\n\n　　　　　　　",null,null,null,null,null,null,null,null,null,"副審\n\n　　　　　　",null,null,null,null,null,null,null,null,null,null,"種別",null,null,{"$f":"IF('採点票(作成画面)'!$A$1=\"\",\"\",'採点票(作成画面)'!$A$1)","v":""},null,null,null,null,null,"第",null,{"$f":"IF('採点票(作成画面)'!C13=\"\",\"\",'採点票(作成画面)'!C13)","v":""},null,null,null,"コート",null,null,null,"　正審\n\n　　　　　　　",null,null,null,null,null,null,null,null,null,"副審\n\n　　　　　　"]
[null,null,null,null,null,null,null,null,null,null,null,null,null,null,null,null,null,null,null,null,{"$f":"IF('採点票(作成画面)'!U5=\"\",\"\",'採点票(作成画面)'!U5&\".\"&\"   \"&'採点票(作成画面)'!V5)","v":""},null,null,null,null,null,null,null,null,null,null,null,null,null,null,null,null,null,null,null,null,null,null,null,null,null,null,null,null,null,null,null,null,null,null,null,null,null,null,null,{"$f":"IF('採点票(作成画面)'!U13=\"\",\"\",'採点票(作成画面)'!U13&\".\"&\"   \"&'採点票(作成画面)'!V13)","v":""}]
[null,{"$f":"IF('採点票(作成画面)'!D5=\"\",\"第　　　　回戦\",'採点票(作成画面)'!D5)","v":"第　　　　回戦"},null,null,null,null,null,null,null,null,"開始　　　　　　　：　　　　　",null,null,null,null,null,null,null,null,null,"線審\n\n　　　　　　　",null,null,null,null,null,null,null,null,null,"線審\n\n　　　　　　",null,null,null,null,null,null,null,null,null,null,{"$f":"IF('採点票(作成画面)'!D13=\"\",\"第　　　　回戦\",'採点票(作成画面)'!D13)","v":"第　　　　回戦"},null,null,null,null,null,null,null,null,"開始　　　　　　　：　　　　　",null,null,null,null,null,null,null,null,null,"線審\n\n　　　　　　　",null,null,null,null,null,null,null,null,null,"線審\n\n　　　　　　"]
[null,null,null,null,null,null,null,null,null,null,"終了　　　　　　　：　　　　　",null,null,null,null,null,null,null,null,null,null,null,null,null,null,null,null,null,null,null,null,null,null,null,null,null,null,null,null,null,null,null,null,null,null,null,null,null,null,null,"終了　　　　　　　：　　　　　"]
[null,"№",{"$f":"IF('採点票(作成画面)'!F5<>\"\",'採点票(作成画面)'!F5,\"\")","v":""},null,null,null,"所属",null,null,{"$f":"IFERROR('採点票(作成画面)'!K5,\"\")","v":""},null,null,null,null,null,null,null,"(スコアー）",null,null,null,null,null,"№",{"$f":"IF('採点票(作成画面)'!N5<>\"\",'採点票(作成画面)'!N5,\"\")","v":""},null,null,null,"所属",null,null,{"$f":"IFERROR('採点票(作成画面)'!S5,\"\")","v":""},null,null,null,null,null,null,null,null,null,"№",{"$f":"IF('採点票(作成画面)'!F13<>\"\",'採点票(作成画面)'!F13,\"\")","v":""},null,null,null,"所属",null,null,{"$f":"IFERROR('採点票(作成画面)'!K13,\"\")","v":""},null,null,null,null,null,null,null,"(スコアー）",null,null,null,null,null,"№",{"$f":"IF('採点票(作成画面)'!N13<>\"\",'採点票(作成画面)'!N13,\"\")","v":""},null,null,null,"所属",null,null,{"$f":"IFERROR('採点票(作成画面)'!S13,\"\")","v":""}]
[]
[null,"プレーヤー",null,null,"A",{"$f":"IFERROR('採点票(作成画面)'!G5,\"\")","v":""},null,null,null,null,null,null,null,null,null,null,null,null,null,null,null,null,null,"プレーヤー",null,null,"A",{"$f":"IFERROR('採点票(作成画面)'!O5,\"\")","v":""},null,null,null,null,null,null,null,null,null,null,null,null,null,"プレーヤー",null,null,"A",{"$f":"IFERROR('採点票(作成画面)'!G13,\"\")","v":""},null,null,null,null,null,null,null,null,null,null,null,null,null,null,null,null,null,"プレーヤー",null,null,"A",{"$f":"IFERROR('採点票(作成画面)'!O13,\"\")","v":""}]
[]
[null,null,null,null,null,null,null,null,null,null,null,null,null,null,null,null,null,null,null,"―",null,null,null,null,null,null,null,null,null,null,null,null,null,null,null,null,null,null,null,null,null,null,null,null,null,null,null,null,null,null,null,null,null,null,null,null,null,null,null,"―"]
[null,null,null,null,"B",{"$f":"IFERROR('採点票(作成画面)'!I5,\"\")","v":""},null,null,null,null,null,null,null,null,null,null,null,null,null,null,null,null,null,null,null,null,"B",{"$f":"IFERROR('採点票(作成画面)'!Q5,\"\")","v":""},null,null,null,null,null,null,null,null,null,null,null,null,null,null,null,null,"B",{"$f":"IFERROR('採点票(作成画面)'!I13,\"\")","v":""},null,null,null,null,null,null,null,null,null,null,null,null,null,null,null,null,null,null,null,null,"B",{"$f":"IFERROR('採点票(作成画面)'!Q13,\"\")","v":""}]
[]
[null,"サイド",null,null,null,null,null,null,null,null,null,null,null,null,null,null,null,null,null,null,null,null,null,"サイド",null,null,null,null,null,null,null,null,null,null,null,null,null,null,null,null,null,"サイド",null,null,null,null,null,null,null,null,null,null,null,null,null,null,null,null,null,null,null,null,null,"サイド"]
[null,"S R",null,null,null,null,null,null,null,null,null,null,null,null,null,null,null,"　-①-　",null,null,null,null,null,"S R",null,null,null,null,null,null,null,null,null,null,null,null,null,null,null,null,null,"S R",null,null,null,null,null,null,null,null,null,null,null,null,null,null,null,"　-①-　",null,null,null,null,null,"S R"]
[]
[null,"S R",null,null,null,null,null,null,null,null,null,null,null,null,null,null,null,"　-②-　",null,null,null,null,null,"S R",null,null,null,null,null,null,null,null,null,null,null,null,null,null,null,null,null,"S R",null,null,null,null,null,null,null,null,null,null,null,null,null,null,null,"　-②-　",null,null,null,null,null,"S R"]
[]
[null,"S R",null,null,null,null,null,null,null,null,null,null,null,null,null,null,null,"　-③-　",null,null,null,null,null,"S R",null,null,null,null,null,null,null,null,null,null,null,null,null,null,null,null,null,"S R",null,null,null,null,null,null,null,null,null,null,null,null,null,null,null,"　-③-　",null,null,null,null,null,"S R"]
[]
[null,"S R",null,null,null,null,null,null,null,null,null,null,null,null,null,null,null,"　-④-　",null,null,null,null,null,"S R",null,null,null,null,null,null,null,null,null,null,null,null,null,null,null,null,null,"S R",null,null,null,null,null,null,null,null,null,null,null,null,null,null,null,"　-④-　",null,null,null,null,null,"S R"]
[]
[null,"S R",null,null,null,null,null,null,null,null,null,null,null,null,null,null,null,"　-⑤-　",null,null,null,null,null,"S R",null,null,null,null,null,null,null,null,null,null,null,null,null,null,null,null,null,"S R",null,null,null,null,null,null,null,null,null,null,null,null,null,null,null,"　-⑤-　",null,null,null,null,null,"S R"]
[]
[null,"S R",null,null,null,null,null,null,null,null,null,null,null,null,null,null,null,"　-⑥-　",null,null,null,null,null,"S R",null,null,null,null,null,null,null,null,null,null,null,null,null,null,null,null,null,"S R",null,null,null,null,null,null,null,null,null,null,null,null,null,null,null,"　-⑥-　",null,null,null,null,null,"S R"]
[]
[null,"S R",null,"*","*",null,null,"*","*",null,null,"*","*",null,null,"*","*","　-F-　",null,null,null,null,null,"S R",null,null,null,"*","*",null,null,"*","*",null,null,"*","*",null,null,null,null,"S R",null,"*","*",null,null,"*","*",null,null,"*","*",null,null,"*","*","　-F-　",null,null,null,null,null,"S R",null,null,null,"*","*",null,null,"*","*",null,null,"*","*"]
[null,null,null,null,null,"*","*",null,null,"*","*",null,null,"*","*",null,null,null,null,null,null,null,null,null,null,"*","*",null,null,"*","*",null,null,"*","*",null,null,"*","*",null,null,null,null,null,null,"*","*",null,null,"*","*",null,null,"*","*",null,null,null,null,null,null,null,null,null,null,"*","*",null,null,"*","*",null,null,"*","*",null,null,"*","*"]
[null,null,null,"*","*",null,null,"*","*",null,null,"*","*",null,null,"*","*",null,null,null,null,null,null,null,null,null,null,"*","*",null,null,"*","*",null,null,"*","*",null,null,null,null,null,null,"*","*",null,null,"*","*",null,null,"*","*",null,null,"*","*",null,null,null,null,null,null,null,null,null,null,"*","*",null,null,"*","*",null,null,"*","*"]
[null,"(警告）",null,"Y",null,null,"Y",null,null,"R",null,null,"タ イ ム",null,null,null,null,null,null,null,"タ イ ム",null,null,null,null,null,null,null,"(警告）",null,"Y",null,null,"Y",null,null,"R",null,null,null,null,"(警告）",null,"Y",null,null,"Y",null,null,"R",null,null,"タ イ ム",null,null,null,null,null,null,null,"タ イ ム",null,null,null,null,null,null,null,"(警告）",null,"Y",null,null,"Y",null,null,"R"]
[null,"該当事項",null,null,null,null,null,null,null,null,null,null,"A　　　５　　・　　５",null,null,null,null,null,null,null,"A　　　５　　・　　５",null,null,null,null,null,null,null,"該当事項",null,null,null,null,null,null,null,null,null,null,null,null,"該当事項",null,null,null,null,null,null,null,null,null,null,"A　　　５　　・　　５",null,null,null,null,null,null,null,"A　　　５　　・　　５",null,null,null,null,null,null,null,"該当事項"]
[null,null,null,null,null,null,null,null,null,null,null,null,"B　　　５　　・　　５",null,null,null,null,null,null,null,"B　　　５　　・　　５",null,null,null,null,null,null,null,null,null,null,null,null,null,null,null,null,null,null,null,null,null,null,null,null,null,null,null,null,null,null,null,"B　　　５　　・　　５",null,null,null,null,null,null,null,"B　　　５　　・　　５"]
[null,"勝者サイン\nNO.",null,null,null,null,null,null,null,null,null,"進行",null,null,null,null,null,null,null,null,"点検",null,null,null,null,null,null,null,null,null,"記録",null,null,null,null,null,null,null,null,null,null,"勝者サイン\nNO.",null,null,null,null,null,null,null,null,null,"進行",null,null,null,null,null,null,null,null,"点検",null,null,null,null,null,null,null,null,null,"記録"]
[]
[null,"千葉県ソフトテニス",null,null,null,null,null,null,null,null,null,null,null,null,null,null,null,null,null,null,null,null,null,null,null,null,null,null,null,null,null,null,null,null,null,null,null,null,null,null,null,"千葉県ソフトテニス"]
[]
[null,"個　人　戦　採　点　表",null,null,null,null,null,null,null,null,null,null,null,null,null,null,null,null,null,null,null,null,null,null,null,null,null,null,null,null,null,null,null,null,null,null,null,null,null,null,null,"個　人　戦　採　点　表"]
[null,"種別",null,null,{"$f":"IF('採点票(作成画面)'!$A$1=\"\",\"\",'採点票(作成画面)'!$A$1)","v":""},null,null,null,null,null,"第",null,{"$f":"IF('採点票(作成画面)'!C6=\"\",\"\",'採点票(作成画面)'!C6)","v":""},null,null,null,"コート",null,null,null,"　正審\n\n　　　　　　　",null,null,null,null,null,null,null,null,null,"副審\n\n　　　　　　",null,null,null,null,null,null,null,null,null,null,"種別",null,null,{"$f":"IF('採点票(作成画面)'!$A$1=\"\",\"\",'採点票(作成画面)'!$A$1)","v":""},null,null,null,null,null,"第",null,{"$f":"IF('採点票(作成画面)'!C14=\"\",\"\",'採点票(作成画面)'!C14)","v":""},null,null,null,"コート",null,null,null,"　正審\n\n　　　　　　　",null,null,null,null,null,null,null,null,null,"副審\n\n　　　　　　"]
[null,null,null,null,null,null,null,null,null,null,null,null,null,null,null,null,null,null,null,null,{"$f":"IF('採点票(作成画面)'!U6=\"\",\"\",'採点票(作成画面)'!U6&\".\"&\"   \"&'採点票(作成画面)'!V6)","v":""},null,null,null,null,null,null,null,null,null,null,null,null,null,null,null,null,null,null,null,null,null,null,null,null,null,null,null,null,null,null,null,null,null,null,null,null,null,null,null,{"$f":"IF('採点票(作成画面)'!U14=\"\",\"\",'採点票(作成画面)'!U14&\".\"&\"   \"&'採点票(作成画面)'!V14)","v":""}]
[null,{"$f":"IF('採点票(作成画面)'!D6=\"\",\"第　　　　回戦\",'採点票(作成画面)'!D6)","v":"第　　　　回戦"},null,null,null,null,null,null,null,null,"開始　　　　　　　：　　　　　",null,null,null,null,null,null,null,null,null,"線審\n\n　　　　　　　",null,null,null,null,null,null,null,null,null,"線審\n\n　　　　　　",null,null,null,null,null,null,null,null,null,null,{"$f":"IF('採点票(作成画面)'!D14=\"\",\"第　　　　回戦\",'採点票(作成画面)'!D14)","v":"第　　　　回戦"},null,null,null,null,null,null,null,null,"開始　　　　　　　：　　　　　",null,null,null,null,null,null,null,null,null,"線審\n\n　　　　　　　",null,null,null,null,null,null,null,null,null,"線審\n\n　　　　　　"]
[null,null,null,null,null,null,null,null,null,null,"終了　　　　　　　：　　　　　",null,null,null,null,null,null,null,null,null,null,null,null,null,null,null,null,null,null,null,null,null,null,null,null,null,null,null,null,null,null,null,null,null,null,null,null,null,null,null,"終了　　　　　　　：　　　　　"]
[null,"№",{"$f":"IF('採点票(作成画面)'!F6<>\"\",'採点票(作成画面)'!F6,\"\")","v":""},null,null,null,"所属",null,null,{"$f":"IFERROR('採点票(作成画面)'!K6,\"\")","v":""},null,null,null,null,null,null,null,"(スコアー）",null,null,null,null,null,"№",{"$f":"IF('採点票(作成画面)'!N6<>\"\",'採点票(作成画面)'!N6,\"\")","v":""},null,null,null,"所属",null,null,{"$f":"IFERROR('採点票(作成画面)'!S6,\"\")","v":""},null,null,null,null,null,null,null,null,null,"№",{"$f":"IF('採点票(作成画面)'!F14<>\"\",'採点票(作成画面)'!F14,\"\")","v":""},null,null,null,"所属",null,null,{"$f":"IFERROR('採点票(作成画面)'!K14,\"\")","v":""},null,null,null,null,null,null,null,"(スコアー）",null,null,null,null,null,"№",{"$f":"IF('採点票(作成画面)'!N14<>\"\",'採点票(作成画面)'!N14,\"\")","v":""},null,null,null,"所属",null,null,{"$f":"IFERROR('採点票(作成画面)'!S14,\"\")","v":""}]
[]
[null,"プレーヤー",null,null,"A",{"$f":"IFERROR('採点票(作成画面)'!G6,\"\")","v":""},null,null,null,null,null,null,null,null,null,null,null,null,null,null,null,null,null,"プレーヤー",null,null,"A",{"$f":"IFERROR('採点票(作成画面)'!O6,\"\")","v":""},null,null,null,null,null,null,null,null,null,null,null,null,null,"プレーヤー",null,null,"A",{"$f":"IFERROR('採点票(作成画面)'!G14,\"\")","v":""},null,null,null,null,null,null,null,null,null,null,null,null,null,null,null,null,null,"プレーヤー",null,null,"A",{"$f":"IFERROR('採点票(作成画面)'!O14,\"\")","v":""}]
[]
[null,null,null,null,null,null,null,null,null,null,null,null,null,null,null,null,null,null,null,"―",null,null,null,null,null,null,null,null,null,null,null,null,null,null,null,null,null,null,null,null,null,null,null,null,null,null,null,null,null,null,null,null,null,null,null,null,null,null,null,"―"]
[null,null,null,null,"B",{"$f":"IFERROR('採点票(作成画面)'!I6,\"\")","v":""},null,null,null,null,null,null,null,null,null,null,null,null,null,null,null,null,null,null,null,null,"B",{"$f":"IFERROR('採点票(作成画面)'!Q6,\"\")","v":""},null,null,null,null,null,null,null,null,null,null,null,null,null,null,null,null,"B",{"$f":"IFERROR('採点票(作成画面)'!I14,\"\")","v":""},null,null,null,null,null,null,null,null,null,null,null,null,null,null,null,null,null,null,null,null,"B",{"$f":"IFERROR('採点票(作成画面)'!Q14,\"\")","v":""}]
[]
[null,"サイド",null,null,null,null,null,null,null,null,null,null,null,null,null,null,null,null,null,null,null,null,null,"サイド",null,null,null,null,null,null,null,null,null,null,null,null,null,null,null,null,null,"サイド",null,null,null,null,null,null,null,null,null,null,null,null,null,null,null,null,null,null,null,null,null,"サイド"]
[null,"S R",null,null,null,null,null,null,null,null,null,null,null,null,null,null,null,"　-①-　",null,null,null,null,null,"S R",null,null,null,null,null,null,null,null,null,null,null,null,null,null,null,null,null,"S R",null,null,null,null,null,null,null,null,null,null,null,null,null,null,null,"　-①-　",null,null,null,null,null,"S R"]
[]
[null,"S R",null,null,null,null,null,null,null,null,null,null,null,null,null,null,null,"　-②-　",null,null,null,null,null,"S R",null,null,null,null,null,null,null,null,null,null,null,null,null,null,null,null,null,"S R",null,null,null,null,null,null,null,null,null,null,null,null,null,null,null,"　-②-　",null,null,null,null,null,"S R"]
[]
[null,"S R",null,null,null,null,null,null,null,null,null,null,null,null,null,null,null,"　-③-　",null,null,null,null,null,"S R",null,null,null,null,null,null,null,null,null,null,null,null,null,null,null,null,null,"S R",null,null,null,null,null,null,null,null,null,null,null,null,null,null,null,"　-③-　",null,null,null,null,null,"S R"]
[]
[null,"S R",null,null,null,null,null,null,null,null,null,null,null,null,null,null,null,"　-④-　",null,null,null,null,null,"S R",null,null,null,null,null,null,null,null,null,null,null,null,null,null,null,null,null,"S R",null,null,null,null,null,null,null,null,null,null,null,null,null,null,null,"　-④-　",null,null,null,null,null,"S R"]
[]
[null,"S R",null,null,null,null,null,null,null,null,null,null,null,null,null,null,null,"　-⑤-　",null,null,null,null,null,"S R",null,null,null,null,null,null,null,null,null,null,null,null,null,null,null,null,null,"S R",null,null,null,null,null,null,null,null,null,null,null,null,null,null,null,"　-⑤-　",null,null,null,null,null,"S R"]
[]
[null,"S R",null,null,null,null,null,null,null,null,null,null,null,null,null,null,null,"　-⑥-　",null,null,null,null,null,"S R",null,null,null,null,null,null,null,null,null,null,null,null,null,null,null,null,null,"S R",null,null,null,null,null,null,null,null,null,null,null,null,null,null,null,"　-⑥-　",null,null,null,null,null,"S R"]
[]
[null,"S R",null,"*","*",null,null,"*","*",null,null,"*","*",null,null,"*","*","　-F-　",null,null,null,null,null,"S R",null,null,null,"*","*",null,null,"*","*",null,null,"*","*",null,null,null,null,"S R",null,"*","*",null,null,"*","*",null,null,"*","*",null,null,"*","*","　-F-　",null,null,null,null,null,"S R",null,null,null,"*","*",null,null,"*","*",null,null,"*","*"]
[null,null,null,null,null,"*","*",null,null,"*","*",null,null,"*","*",null,null,null,null,null,null,null,null,null,null,"*","*",null,null,"*","*",null,null,"*","*",null,null,"*","*",null,null,null,null,null,null,"*","*",null,null,"*","*",null,null,"*","*",null,null,null,null,null,null,null,null,null,null,"*","*",null,null,"*","*",null,null,"*","*",null,null,"*","*"]
[null,null,null,"*","*",null,null,"*","*",null,null,"*","*",null,null,"*","*",null,null,null,null,null,null,null,null,null,null,"*","*",null,null,"*","*",null,null,"*","*",null,null,null,null,null,null,"*","*",null,null,"*","*",null,null,"*","*",null,null,"*","*",null,null,null,null,null,null,null,null,null,null,"*","*",null,null,"*","*",null,null,"*","*"]
[null,"(警告）",null,"Y",null,null,"Y",null,null,"R",null,null,"タ イ ム",null,null,null,null,null,null,null,"タ イ ム",null,null,null,null,null,null,null,"(警告）",null,"Y",null,null,"Y",null,null,"R",null,null,null,null,"(警告）",null,"Y",null,null,"Y",null,null,"R",null,null,"タ イ ム",null,null,null,null,null,null,null,"タ イ ム",null,null,null,null,null,null,null,"(警告）",null,"Y",null,null,"Y",null,null,"R"]
[null,"該当事項",null,null,null,null,null,null,null,null,null,null,"A　　　５　　・　　５",null,null,null,null,null,null,null,"A　　　５　　・　　５",null,null,null,null,null,null,null,"該当事項",null,null,null,null,null,null,null,null,null,null,null,null,"該当事項",null,null,null,null,null,null,null,null,null,null,"A　　　５　　・　　５",null,null,null,null,null,null,null,"A　　　５　　・　　５",null,null,null,null,null,null,null,"該当事項"]
[null,null,null,null,null,null,null,null,null,null,null,null,"B　　　５　　・　　５",null,null,null,null,null,null,null,"B　　　５　　・　　５",null,null,null,null,null,null,null,null,null,null,null,null,null,null,null,null,null,null,null,null,null,null,null,null,null,null,null,null,null,null,null,"B　　　５　　・　　５",null,null,null,null,null,null,null,"B　　　５　　・　　５"]
[null,"勝者サイン\nNO.",null,null,null,null,null,null,null,null,null,"進行",null,null,null,null,null,null,null,null,"点検",null,null,null,null,null,null,null,null,null,"記録",null,null,null,null,null,null,null,null,null,null,"勝者サイン\nNO.",null,null,null,null,null,null,null,null,null,"進行",null,null,null,null,null,null,null,null,"点検",null,null,null,null,null,null,null,null,null,"記録"]
[]
[null,"千葉県ソフトテニス",null,null,null,null,null,null,null,null,null,null,null,null,null,null,null,null,null,null,null,null,null,null,null,null,null,null,null,null,null,null,null,null,null,null,null,null,null,null,null,"千葉県ソフトテニス"]
[]
[null,"個　人　戦　採　点　表",null,null,null,null,null,null,null,null,null,null,null,null,null,null,null,null,null,null,null,null,null,null,null,null,null,null,null,null,null,null,null,null,null,null,null,null,null,null,null,"個　人　戦　採　点　表"]
[null,"種別",null,null,{"$f":"IF('採点票(作成画面)'!$A$1=\"\",\"\",'採点票(作成画面)'!$A$1)","v":""},null,null,null,null,null,"第",null,{"$f":"IF('採点票(作成画面)'!C7=\"\",\"\",'採点票(作成画面)'!C7)","v":""},null,null,null,"コート",null,null,null,"　正審\n\n　　　　　　　",null,null,null,null,null,null,null,null,null,"副審\n\n　　　　　　",null,null,null,null,null,null,null,null,null,null,"種別",null,null,{"$f":"IF('採点票(作成画面)'!$A$1=\"\",\"\",'採点票(作成画面)'!$A$1)","v":""},null,null,null,null,null,"第",null,{"$f":"IF('採点票(作成画面)'!C15=\"\",\"\",'採点票(作成画面)'!C15)","v":""},null,null,null,"コート",null,null,null,"　正審\n\n　　　　　　　",null,null,null,null,null,null,null,null,null,"副審\n\n　　　　　　"]
[null,null,null,null,null,null,null,null,null,null,null,null,null,null,null,null,null,null,null,null,{"$f":"IF('採点票(作成画面)'!U7=\"\",\"\",'採点票(作成画面)'!U7&\".\"&\"   \"&'採点票(作成画面)'!V7)","v":""},null,null,null,null,null,null,null,null,null,null,null,null,null,null,null,null,null,null,null,null,null,null,null,null,null,null,null,null,null,null,null,null,null,null,null,null,null,null,null,{"$f":"IF('採点票(作成画面)'!U15=\"\",\"\",'採点票(作成画面)'!U15&\".\"&\"   \"&'採点票(作成画面)'!V15)","v":""}]
[null,{"$f":"IF('採点票(作成画面)'!D7=\"\",\"第　　　　回戦\",'採点票(作成画面)'!D7)","v":"第　　　　回戦"},null,null,null,null,null,null,null,null,"開始　　　　　　　：　　　　　",null,null,null,null,null,null,null,null,null,"線審\n\n　　　　　　　",null,null,null,null,null,null,null,null,null,"線審\n\n　　　　　　",null,null,null,null,null,null,null,null,null,null,{"$f":"IF('採点票(作成画面)'!D15=\"\",\"第　　　　回戦\",'採点票(作成画面)'!D15)","v":"第　　　　回戦"},null,null,null,null,null,null,null,null,"開始　　　　　　　：　　　　　",null,null,null,null,null,null,null,null,null,"線審\n\n　　　　　　　",null,null,null,null,null,null,null,null,null,"線審\n\n　　　　　　"]
[null,null,null,null,null,null,null,null,null,null,"終了　　　　　　　：　　　　　",null,null,null,null,null,null,null,null,null,null,null,null,null,null,null,null,null,null,null,null,null,null,null,null,null,null,null,null,null,null,null,null,null,null,null,null,null,null,null,"終了　　　　　　　：　　　　　"]
[null,"№",{"$f":"IF('採点票(作成画面)'!F7<>\"\",'採点票(作成画面)'!F7,\"\")","v":""},null,null,null,"所属",null,null,{"$f":"IFERROR('採点票(作成画面)'!K7,\"\")","v":""},null,null,null,null,null,null,null,"(スコアー）",null,null,null,null,null,"№",{"$f":"IF('採点票(作成画面)'!N7<>\"\",'採点票(作成画面)'!N7,\"\")","v":""},null,null,null,"所属",null,null,{"$f":"IFERROR('採点票(作成画面)'!S7,\"\")","v":""},null,null,null,null,null,null,null,null,null,"№",{"$f":"IF('採点票(作成画面)'!F15<>\"\",'採点票(作成画面)'!F15,\"\")","v":""},null,null,null,"所属",null,null,{"$f":"IFERROR('採点票(作成画面)'!K15,\"\")","v":""},null,null,null,null,null,null,null,"(スコアー）",null,null,null,null,null,"№",{"$f":"IF('採点票(作成画面)'!N15<>\"\",'採点票(作成画面)'!N15,\"\")","v":""},null,null,null,"所属",null,null,{"$f":"IFERROR('採点票(作成画面)'!S15,\"\")","v":""}]
[]
[null,"プレーヤー",null,null,"A",{"$f":"IFERROR('採点票(作成画面)'!G7,\"\")","v":""},null,null,null,null,null,null,null,null,null,null,null,null,null,null,null,null,null,"プレーヤー",null,null,"A",{"$f":"IFERROR('採点票(作成画面)'!O7,\"\")","v":""},null,null,null,null,null,null,null,null,null,null,null,null,null,"プレーヤー",null,null,"A",{"$f":"IFERROR('採点票(作成画面)'!G15,\"\")","v":""},null,null,null,null,null,null,null,null,null,null,null,null,null,null,null,null,null,"プレーヤー",null,null,"A",{"$f":"IFERROR('採点票(作成画面)'!O15,\"\")","v":""}]
[]
[null,null,null,null,null,null,null,null,null,null,null,null,null,null,null,null,null,null,null,"―",null,null,null,null,null,null,null,null,null,null,null,null,null,null,null,null,null,null,null,null,null,null,null,null,null,null,null,null,null,null,null,null,null,null,null,null,null,null,null,"―"]
[null,null,null,null,"B",{"$f":"IFERROR('採点票(作成画面)'!I7,\"\")","v":""},null,null,null,null,null,null,null,null,null,null,null,null,null,null,null,null,null,null,null,null,"B",{"$f":"IFERROR('採点票(作成画面)'!Q7,\"\")","v":""},null,null,null,null,null,null,null,null,null,null,null,null,null,null,null,null,"B",{"$f":"IFERROR('採点票(作成画面)'!I15,\"\")","v":""},null,null,null,null,null,null,null,null,null,null,null,null,null,null,null,null,null,null,null,null,"B",{"$f":"IFERROR('採点票(作成画面)'!Q15,\"\")","v":""}]
[]
[null,"サイド",null,null,null,null,null,null,null,null,null,null,null,null,null,null,null,null,null,null,null,null,null,"サイド",null,null,null,null,null,null,null,null,null,null,null,null,null,null,null,null,null,"サイド",null,null,null,null,null,null,null,null,null,null,null,null,null,null,null,null,null,null,null,null,null,"サイド"]
[null,"S R",null,null,null,null,null,null,null,null,null,null,null,null,null,null,null,"　-①-　",null,null,null,null,null,"S R",null,null,null,null,null,null,null,null,null,null,null,null,null,null,null,null,null,"S R",null,null,null,null,null,null,null,null,null,null,null,null,null,null,null,"　-①-　",null,null,null,null,null,"S R"]
[]
[null,"S R",null,null,null,null,null,null,null,null,null,null,null,null,null,null,null,"　-②-　",null,null,null,null,null,"S R",null,null,null,null,null,null,null,null,null,null,null,null,null,null,null,null,null,"S R",null,null,null,null,null,null,null,null,null,null,null,null,null,null,null,"　-②-　",null,null,null,null,null,"S R"]
[]
[null,"S R",null,null,null,null,null,null,null,null,null,null,null,null,null,null,null,"　-③-　",null,null,null,null,null,"S R",null,null,null,null,null,null,null,null,null,null,null,null,null,null,null,null,null,"S R",null,null,null,null,null,null,null,null,null,null,null,null,null,null,null,"　-③-　",null,null,null,null,null,"S R"]
[]
[null,"S R",null,null,null,null,null,null,null,null,null,null,null,null,null,null,null,"　-④-　",null,null,null,null,null,"S R",null,null,null,null,null,null,null,null,null,null,null,null,null,null,null,null,null,"S R",null,null,null,null,null,null,null,null,null,null,null,null,null,null,null,"　-④-　",null,null,null,null,null,"S R"]
[]
[null,"S R",null,null,null,null,null,null,null,null,null,null,null,null,null,null,null,"　-⑤-　",null,null,null,null,null,"S R",null,null,null,null,null,null,null,null,null,null,null,null,null,null,null,null,null,"S R",null,null,null,null,null,null,null,null,null,null,null,null,null,null,null,"　-⑤-　",null,null,null,null,null,"S R"]
[]
[null,"S R",null,null,null,null,null,null,null,null,null,null,null,null,null,null,null,"　-⑥-　",null,null,null,null,null,"S R",null,null,null,null,null,null,null,null,null,null,null,null,null,null,null,null,null,"S R",null,null,null,null,null,null,null,null,null,null,null,null,null,null,null,"　-⑥-　",null,null,null,null,null,"S R"]
[]
[null,"S R",null,"*","*",null,null,"*","*",null,null,"*","*",null,null,"*","*","　-F-　",null,null,null,null,null,"S R",null,null,null,"*","*",null,null,"*","*",null,null,"*","*",null,null,null,null,"S R",null,"*","*",null,null,"*","*",null,null,"*","*",null,null,"*","*","　-F-　",null,null,null,null,null,"S R",null,null,null,"*","*",null,null,"*","*",null,null,"*","*"]
[null,null,null,null,null,"*","*",null,null,"*","*",null,null,"*","*",null,null,null,null,null,null,null,null,null,null,"*","*",null,null,"*","*",null,null,"*","*",null,null,"*","*",null,null,null,null,null,null,"*","*",null,null,"*","*",null,null,"*","*",null,null,null,null,null,null,null,null,null,null,"*","*",null,null,"*","*",null,null,"*","*",null,null,"*","*"]
[null,null,null,"*","*",null,null,"*","*",null,null,"*","*",null,null,"*","*",null,null,null,null,null,null,null,null,null,null,"*","*",null,null,"*","*",null,null,"*","*",null,null,null,null,null,null,"*","*",null,null,"*","*",null,null,"*","*",null,null,"*","*",null,null,null,null,null,null,null,null,null,null,"*","*",null,null,"*","*",null,null,"*","*"]
[null,"(警告）",null,"Y",null,null,"Y",null,null,"R",null,null,"タ イ ム",null,null,null,null,null,null,null,"タ イ ム",null,null,null,null,null,null,null,"(警告）",null,"Y",null,null,"Y",null,null,"R",null,null,null,null,"(警告）",null,"Y",null,null,"Y",null,null,"R",null,null,"タ イ ム",null,null,null,null,null,null,null,"タ イ ム",null,null,null,null,null,null,null,"(警告）",null,"Y",null,null,"Y",null,null,"R"]
[null,"該当事項",null,null,null,null,null,null,null,null,null,null,"A　　　５　　・　　５",null,null,null,null,null,null,null,"A　　　５　　・　　５",null,null,null,null,null,null,null,"該当事項",null,null,null,null,null,null,null,null,null,null,null,null,"該当事項",null,null,null,null,null,null,null,null,null,null,"A　　　５　　・　　５",null,null,null,null,null,null,null,"A　　　５　　・　　５",null,null,null,null,null,null,null,"該当事項"]
[null,null,null,null,null,null,null,null,null,null,null,null,"B　　　５　　・　　５",null,null,null,null,null,null,null,"B　　　５　　・　　５",null,null,null,null,null,null,null,null,null,null,null,null,null,null,null,null,null,null,null,null,null,null,null,null,null,null,null,null,null,null,null,"B　　　５　　・　　５",null,null,null,null,null,null,null,"B　　　５　　・　　５"]
[null,"勝者サイン\nNO.",null,null,null,null,null,null,null,null,null,"進行",null,null,null,null,null,null,null,null,"点検",null,null,null,null,null,null,null,null,null,"記録",null,null,null,null,null,null,null,null,null,null,"勝者サイン\nNO.",null,null,null,null,null,null,null,null,null,"進行",null,null,null,null,null,null,null,null,"点検",null,null,null,null,null,null,null,null,null,"記録"]
[]
[null,"千葉県ソフトテニス",null,null,null,null,null,null,null,null,null,null,null,null,null,null,null,null,null,null,null,null,null,null,null,null,null,null,null,null,null,null,null,null,null,null,null,null,null,null,null,"千葉県ソフトテニス"]
[]
[null,"個　人　戦　採　点　表",null,null,null,null,null,null,null,null,null,null,null,null,null,null,null,null,null,null,null,null,null,null,null,null,null,null,null,null,null,null,null,null,null,null,null,null,null,null,null,"個　人　戦　採　点　表"]
[null,"種別",null,null,{"$f":"IF('採点票(作成画面)'!$A$1=\"\",\"\",'採点票(作成画面)'!$A$1)","v":""},null,null,null,null,null,"第",null,{"$f":"IF('採点票(作成画面)'!C8=\"\",\"\",'採点票(作成画面)'!C8)","v":""},null,null,null,"コート",null,null,null,"　正審\n\n　　　　　　　",null,null,null,null,null,null,null,null,null,"副審\n\n　　　　　　",null,null,null,null,null,null,null,null,null,null,"種別",null,null,{"$f":"IF('採点票(作成画面)'!$A$1=\"\",\"\",'採点票(作成画面)'!$A$1)","v":""},null,null,null,null,null,"第",null,{"$f":"IF('採点票(作成画面)'!C16=\"\",\"\",'採点票(作成画面)'!C16)","v":""},null,null,null,"コート",null,null,null,"　正審\n\n　　　　　　　",null,null,null,null,null,null,null,null,null,"副審\n\n　　　　　　"]
[null,null,null,null,null,null,null,null,null,null,null,null,null,null,null,null,null,null,null,null,{"$f":"IF('採点票(作成画面)'!U8=\"\",\"\",'採点票(作成画面)'!U8&\".\"&\"   \"&'採点票(作成画面)'!V8)","v":""},null,null,null,null,null,null,null,null,null,null,null,null,null,null,null,null,null,null,null,null,null,null,null,null,null,null,null,null,null,null,null,null,null,null,null,null,null,null,null,{"$f":"IF('採点票(作成画面)'!U16=\"\",\"\",'採点票(作成画面)'!U16&\".\"&\"   \"&'採点票(作成画面)'!V16)","v":""}]
[null,{"$f":"IF('採点票(作成画面)'!D8=\"\",\"第　　　　回戦\",'採点票(作成画面)'!D8)","v":"第　　　　回戦"},null,null,null,null,null,null,null,null,"開始　　　　　　　：　　　　　",null,null,null,null,null,null,null,null,null,"線審\n\n　　　　　　　",null,null,null,null,null,null,null,null,null,"線審\n\n　　　　　　",null,null,null,null,null,null,null,null,null,null,{"$f":"IF('採点票(作成画面)'!D16=\"\",\"第　　　　回戦\",'採点票(作成画面)'!D16)","v":"第　　　　回戦"},null,null,null,null,null,null,null,null,"開始　　　　　　　：　　　　　",null,null,null,null,null,null,null,null,null,"線審\n\n　　　　　　　",null,null,null,null,null,null,null,null,null,"線審\n\n　　　　　　"]
[null,null,null,null,null,null,null,null,null,null,"終了　　　　　　　：　　　　　",null,null,null,null,null,null,null,null,null,null,null,null,null,null,null,null,null,null,null,null,null,null,null,null,null,null,null,null,null,null,null,null,null,null,null,null,null,null,null,"終了　　　　　　　：　　　　　"]
[null,"№",{"$f":"IF('採点票(作成画面)'!F8<>\"\",'採点票(作成画面)'!F8,\"\")","v":""},null,null,null,"所属",null,null,{"$f":"IFERROR('採点票(作成画面)'!K8,\"\")","v":""},null,null,null,null,null,null,null,"(スコアー）",null,null,null,null,null,"№",{"$f":"IF('採点票(作成画面)'!N8<>\"\",'採点票(作成画面)'!N8,\"\")","v":""},null,null,null,"所属",null,null,{"$f":"IFERROR('採点票(作成画面)'!S8,\"\")","v":""},null,null,null,null,null,null,null,null,null,"№",{"$f":"IF('採点票(作成画面)'!F16<>\"\",'採点票(作成画面)'!F16,\"\")","v":""},null,null,null,"所属",null,null,{"$f":"IFERROR('採点票(作成画面)'!K16,\"\")","v":""},null,null,null,null,null,null,null,"(スコアー）",null,null,null,null,null,"№",{"$f":"IF('採点票(作成画面)'!N16<>\"\",'採点票(作成画面)'!N16,\"\")","v":""},null,null,null,"所属",null,null,{"$f":"IFERROR('採点票(作成画面)'!S16,\"\")","v":""}]
[]
[null,"プレーヤー",null,null,"A",{"$f":"IFERROR('採点票(作成画面)'!G8,\"\")","v":""},null,null,null,null,null,null,null,null,null,null,null,null,null,null,null,null,null,"プレーヤー",null,null,"A",{"$f":"IFERROR('採点票(作成画面)'!O8,\"\")","v":""},null,null,null,null,null,null,null,null,null,null,null,null,null,"プレーヤー",null,null,"A",{"$f":"IFERROR('採点票(作成画面)'!G16,\"\")","v":""},null,null,null,null,null,null,null,null,null,null,null,null,null,null,null,null,null,"プレーヤー",null,null,"A",{"$f":"IFERROR('採点票(作成画面)'!O16,\"\")","v":""}]
[]
[null,null,null,null,null,null,null,null,null,null,null,null,null,null,null,null,null,null,null,"―",null,null,null,null,null,null,null,null,null,null,null,null,null,null,null,null,null,null,null,null,null,null,null,null,null,null,null,null,null,null,null,null,null,null,null,null,null,null,null,"―"]
[null,null,null,null,"B",{"$f":"IFERROR('採点票(作成画面)'!I8,\"\")","v":""},null,null,null,null,null,null,null,null,null,null,null,null,null,null,null,null,null,null,null,null,"B",{"$f":"IFERROR('採点票(作成画面)'!Q8,\"\")","v":""},null,null,null,null,null,null,null,null,null,null,null,null,null,null,null,null,"B",{"$f":"IFERROR('採点票(作成画面)'!I16,\"\")","v":""},null,null,null,null,null,null,null,null,null,null,null,null,null,null,null,null,null,null,null,null,"B",{"$f":"IFERROR('採点票(作成画面)'!Q16,\"\")","v":""}]
[]
[null,"サイド",null,null,null,null,null,null,null,null,null,null,null,null,null,null,null,null,null,null,null,null,null,"サイド",null,null,null,null,null,null,null,null,null,null,null,null,null,null,null,null,null,"サイド",null,null,null,null,null,null,null,null,null,null,null,null,null,null,null,null,null,null,null,null,null,"サイド"]
[null,"S R",null,null,null,null,null,null,null,null,null,null,null,null,null,null,null,"　-①-　",null,null,null,null,null,"S R",null,null,null,null,null,null,null,null,null,null,null,null,null,null,null,null,null,"S R",null,null,null,null,null,null,null,null,null,null,null,null,null,null,null,"　-①-　",null,null,null,null,null,"S R"]
[]
[null,"S R",null,null,null,null,null,null,null,null,null,null,null,null,null,null,null,"　-②-　",null,null,null,null,null,"S R",null,null,null,null,null,null,null,null,null,null,null,null,null,null,null,null,null,"S R",null,null,null,null,null,null,null,null,null,null,null,null,null,null,null,"　-②-　",null,null,null,null,null,"S R"]
[]
[null,"S R",null,null,null,null,null,null,null,null,null,null,null,null,null,null,null,"　-③-　",null,null,null,null,null,"S R",null,null,null,null,null,null,null,null,null,null,null,null,null,null,null,null,null,"S R",null,null,null,null,null,null,null,null,null,null,null,null,null,null,null,"　-③-　",null,null,null,null,null,"S R"]
[]
[null,"S R",null,null,null,null,null,null,null,null,null,null,null,null,null,null,null,"　-④-　",null,null,null,null,null,"S R",null,null,null,null,null,null,null,null,null,null,null,null,null,null,null,null,null,"S R",null,null,null,null,null,null,null,null,null,null,null,null,null,null,null,"　-④-　",null,null,null,null,null,"S R"]
[]
[null,"S R",null,null,null,null,null,null,null,null,null,null,null,null,null,null,null,"　-⑤-　",null,null,null,null,null,"S R",null,null,null,null,null,null,null,null,null,null,null,null,null,null,null,null,null,"S R",null,null,null,null,null,null,null,null,null,null,null,null,null,null,null,"　-⑤-　",null,null,null,null,null,"S R"]
[]
[null,"S R",null,null,null,null,null,null,null,null,null,null,null,null,null,null,null,"　-⑥-　",null,null,null,null,null,"S R",null,null,null,null,null,null,null,null,null,null,null,null,null,null,null,null,null,"S R",null,null,null,null,null,null,null,null,null,null,null,null,null,null,null,"　-⑥-　",null,null,null,null,null,"S R"]
[]
[null,"S R",null,"*","*",null,null,"*","*",null,null,"*","*",null,null,"*","*","　-F-　",null,null,null,null,null,"S R",null,null,null,"*","*",null,null,"*","*",null,null,"*","*",null,null,null,null,"S R",null,"*","*",null,null,"*","*",null,null,"*","*",null,null,"*","*","　-F-　",null,null,null,null,null,"S R",null,null,null,"*","*",null,null,"*","*",null,null,"*","*"]
[null,null,null,null,null,"*","*",null,null,"*","*",null,null,"*","*",null,null,null,null,null,null,null,null,null,null,"*","*",null,null,"*","*",null,null,"*","*",null,null,"*","*",null,null,null,null,null,null,"*","*",null,null,"*","*",null,null,"*","*",null,null,null,null,null,null,null,null,null,null,"*","*",null,null,"*","*",null,null,"*","*",null,null,"*","*"]
[null,null,null,"*","*",null,null,"*","*",null,null,"*","*",null,null,"*","*",null,null,null,null,null,null,null,null,null,null,"*","*",null,null,"*","*",null,null,"*","*",null,null,null,null,null,null,"*","*",null,null,"*","*",null,null,"*","*",null,null,"*","*",null,null,null,null,null,null,null,null,null,null,"*","*",null,null,"*","*",null,null,"*","*"]
[null,"(警告）",null,"Y",null,null,"Y",null,null,"R",null,null,"タ イ ム",null,null,null,null,null,null,null,"タ イ ム",null,null,null,null,null,null,null,"(警告）",null,"Y",null,null,"Y",null,null,"R",null,null,null,null,"(警告）",null,"Y",null,null,"Y",null,null,"R",null,null,"タ イ ム",null,null,null,null,null,null,null,"タ イ ム",null,null,null,null,null,null,null,"(警告）",null,"Y",null,null,"Y",null,null,"R"]
[null,"該当事項",null,null,null,null,null,null,null,null,null,null,"A　　　５　　・　　５",null,null,null,null,null,null,null,"A　　　５　　・　　５",null,null,null,null,null,null,null,"該当事項",null,null,null,null,null,null,null,null,null,null,null,null,"該当事項",null,null,null,null,null,null,null,null,null,null,"A　　　５　　・　　５",null,null,null,null,null,null,null,"A　　　５　　・　　５",null,null,null,null,null,null,null,"該当事項"]
[null,null,null,null,null,null,null,null,null,null,null,null,"B　　　５　　・　　５",null,null,null,null,null,null,null,"B　　　５　　・　　５",null,null,null,null,null,null,null,null,null,null,null,null,null,null,null,null,null,null,null,null,null,null,null,null,null,null,null,null,null,null,null,"B　　　５　　・　　５",null,null,null,null,null,null,null,"B　　　５　　・　　５"]
[null,"勝者サイン\nNO.",null,null,null,null,null,null,null,null,null,"進行",null,null,null,null,null,null,null,null,"点検",null,null,null,null,null,null,null,null,null,"記録",null,null,null,null,null,null,null,null,null,null,"勝者サイン\nNO.",null,null,null,null,null,null,null,null,null,"進行",null,null,null,null,null,null,null,null,"点検",null,null,null,null,null,null,null,null,null,"記録"]
[]
[null,"千葉県ソフトテニス",null,null,null,null,null,null,null,null,null,null,null,null,null,null,null,null,null,null,null,null,null,null,null,null,null,null,null,null,null,null,null,null,null,null,null,null,null,null,null,"千葉県ソフトテニス"]
[]
[null,"個　人　戦　採　点　表",null,null,null,null,null,null,null,null,null,null,null,null,null,null,null,null,null,null,null,null,null,null,null,null,null,null,null,null,null,null,null,null,null,null,null,null,null,null,null,"個　人　戦　採　点　表"]
[null,"種別",null,null,{"$f":"IF('採点票(作成画面)'!$A$1=\"\",\"\",'採点票(作成画面)'!$A$1)","v":""},null,null,null,null,null,"第",null,{"$f":"IF('採点票(作成画面)'!C9=\"\",\"\",'採点票(作成画面)'!C9)","v":""},null,null,null,"コート",null,null,null,"　正審\n\n　　　　　　　",null,null,null,null,null,null,null,null,null,"副審\n\n　　　　　　",null,null,null,null,null,null,null,null,null,null,"種別",null,null,{"$f":"IF('採点票(作成画面)'!$A$1=\"\",\"\",'採点票(作成画面)'!$A$1)","v":""},null,null,null,null,null,"第",null,{"$f":"IF('採点票(作成画面)'!C17=\"\",\"\",'採点票(作成画面)'!C17)","v":""},null,null,null,"コート",null,null,null,"　正審\n\n　　　　　　　",null,null,null,null,null,null,null,null,null,"副審\n\n　　　　　　"]
[null,null,null,null,null,null,null,null,null,null,null,null,null,null,null,null,null,null,null,null,{"$f":"IF('採点票(作成画面)'!U9=\"\",\"\",'採点票(作成画面)'!U9&\".\"&\"   \"&'採点票(作成画面)'!V9)","v":""},null,null,null,null,null,null,null,null,null,null,null,null,null,null,null,null,null,null,null,null,null,null,null,null,null,null,null,null,null,null,null,null,null,null,null,null,null,null,null,{"$f":"IF('採点票(作成画面)'!U17=\"\",\"\",'採点票(作成画面)'!U17&\".\"&\"   \"&'採点票(作成画面)'!V17)","v":""}]
[null,{"$f":"IF('採点票(作成画面)'!D9=\"\",\"第　　　　回戦\",'採点票(作成画面)'!D9)","v":"第　　　　回戦"},null,null,null,null,null,null,null,null,"開始　　　　　　　：　　　　　",null,null,null,null,null,null,null,null,null,"線審\n\n　　　　　　　",null,null,null,null,null,null,null,null,null,"線審\n\n　　　　　　",null,null,null,null,null,null,null,null,null,null,{"$f":"IF('採点票(作成画面)'!D17=\"\",\"第　　　　回戦\",'採点票(作成画面)'!D17)","v":"第　　　　回戦"},null,null,null,null,null,null,null,null,"開始　　　　　　　：　　　　　",null,null,null,null,null,null,null,null,null,"線審\n\n　　　　　　　",null,null,null,null,null,null,null,null,null,"線審\n\n　　　　　　"]
[null,null,null,null,null,null,null,null,null,null,"終了　　　　　　　：　　　　　",null,null,null,null,null,null,null,null,null,null,null,null,null,null,null,null,null,null,null,null,null,null,null,null,null,null,null,null,null,null,null,null,null,null,null,null,null,null,null,"終了　　　　　　　：　　　　　"]
[null,"№",{"$f":"IF('採点票(作成画面)'!F9<>\"\",'採点票(作成画面)'!F9,\"\")","v":""},null,null,null,"所属",null,null,{"$f":"IFERROR('採点票(作成画面)'!K9,\"\")","v":""},null,null,null,null,null,null,null,"(スコアー）",null,null,null,null,null,"№",{"$f":"IF('採点票(作成画面)'!N9<>\"\",'採点票(作成画面)'!N9,\"\")","v":""},null,null,null,"所属",null,null,{"$f":"IFERROR('採点票(作成画面)'!S9,\"\")","v":""},null,null,null,null,null,null,null,null,null,"№",{"$f":"IF('採点票(作成画面)'!F17<>\"\",'採点票(作成画面)'!F17,\"\")","v":""},null,null,null,"所属",null,null,{"$f":"IFERROR('採点票(作成画面)'!K17,\"\")","v":""},null,null,null,null,null,null,null,"(スコアー）",null,null,null,null,null,"№",{"$f":"IF('採点票(作成画面)'!N17<>\"\",'採点票(作成画面)'!N17,\"\")","v":""},null,null,null,"所属",null,null,{"$f":"IFERROR('採点票(作成画面)'!S17,\"\")","v":""}]
[]
[null,"プレーヤー",null,null,"A",{"$f":"IFERROR('採点票(作成画面)'!G9,\"\")","v":""},null,null,null,null,null,null,null,null,null,null,null,null,null,null,null,null,null,"プレーヤー",null,null,"A",{"$f":"IFERROR('採点票(作成画面)'!O9,\"\")","v":""},null,null,null,null,null,null,null,null,null,null,null,null,null,"プレーヤー",null,null,"A",{"$f":"IFERROR('採点票(作成画面)'!G17,\"\")","v":""},null,null,null,null,null,null,null,null,null,null,null,null,null,null,null,null,null,"プレーヤー",null,null,"A",{"$f":"IFERROR('採点票(作成画面)'!O17,\"\")","v":""}]
[]
[null,null,null,null,null,null,null,null,null,null,null,null,null,null,null,null,null,null,null,"―",null,null,null,null,null,null,null,null,null,null,null,null,null,null,null,null,null,null,null,null,null,null,null,null,null,null,null,null,null,null,null,null,null,null,null,null,null,null,null,"―"]
[null,null,null,null,"B",{"$f":"IFERROR('採点票(作成画面)'!I9,\"\")","v":""},null,null,null,null,null,null,null,null,null,null,null,null,null,null,null,null,null,null,null,null,"B",{"$f":"IFERROR('採点票(作成画面)'!Q9,\"\")","v":""},null,null,null,null,null,null,null,null,null,null,null,null,null,null,null,null,"B",{"$f":"IFERROR('採点票(作成画面)'!I17,\"\")","v":""},null,null,null,null,null,null,null,null,null,null,null,null,null,null,null,null,null,null,null,null,"B",{"$f":"IFERROR('採点票(作成画面)'!Q17,\"\")","v":""}]
[]
[null,"サイド",null,null,null,null,null,null,null,null,null,null,null,null,null,null,null,null,null,null,null,null,null,"サイド",null,null,null,null,null,null,null,null,null,null,null,null,null,null,null,null,null,"サイド",null,null,null,null,null,null,null,null,null,null,null,null,null,null,null,null,null,null,null,null,null,"サイド"]
[null,"S R",null,null,null,null,null,null,null,null,null,null,null,null,null,null,null,"　-①-　",null,null,null,null,null,"S R",null,null,null,null,null,null,null,null,null,null,null,null,null,null,null,null,null,"S R",null,null,null,null,null,null,null,null,null,null,null,null,null,null,null,"　-①-　",null,null,null,null,null,"S R"]
[]
[null,"S R",null,null,null,null,null,null,null,null,null,null,null,null,null,null,null,"　-②-　",null,null,null,null,null,"S R",null,null,null,null,null,null,null,null,null,null,null,null,null,null,null,null,null,"S R",null,null,null,null,null,null,null,null,null,null,null,null,null,null,null,"　-②-　",null,null,null,null,null,"S R"]
[]
[null,"S R",null,null,null,null,null,null,null,null,null,null,null,null,null,null,null,"　-③-　",null,null,null,null,null,"S R",null,null,null,null,null,null,null,null,null,null,null,null,null,null,null,null,null,"S R",null,null,null,null,null,null,null,null,null,null,null,null,null,null,null,"　-③-　",null,null,null,null,null,"S R"]
[]
[null,"S R",null,null,null,null,null,null,null,null,null,null,null,null,null,null,null,"　-④-　",null,null,null,null,null,"S R",null,null,null,null,null,null,null,null,null,null,null,null,null,null,null,null,null,"S R",null,null,null,null,null,null,null,null,null,null,null,null,null,null,null,"　-④-　",null,null,null,null,null,"S R"]
[]
[null,"S R",null,null,null,null,null,null,null,null,null,null,null,null,null,null,null,"　-⑤-　",null,null,null,null,null,"S R",null,null,null,null,null,null,null,null,null,null,null,null,null,null,null,null,null,"S R",null,null,null,null,null,null,null,null,null,null,null,null,null,null,null,"　-⑤-　",null,null,null,null,null,"S R"]
[]
[null,"S R",null,null,null,null,null,null,null,null,null,null,null,null,null,null,null,"　-⑥-　",null,null,null,null,null,"S R",null,null,null,null,null,null,null,null,null,null,null,null,null,null,null,null,null,"S R",null,null,null,null,null,null,null,null,null,null,null,null,null,null,null,"　-⑥-　",null,null,null,null,null,"S R"]
[]
[null,"S R",null,"*","*",null,null,"*","*",null,null,"*","*",null,null,"*","*","　-F-　",null,null,null,null,null,"S R",null,null,null,"*","*",null,null,"*","*",null,null,"*","*",null,null,null,null,"S R",null,"*","*",null,null,"*","*",null,null,"*","*",null,null,"*","*","　-F-　",null,null,null,null,null,"S R",null,null,null,"*","*",null,null,"*","*",null,null,"*","*"]
[null,null,null,null,null,"*","*",null,null,"*","*",null,null,"*","*",null,null,null,null,null,null,null,null,null,null,"*","*",null,null,"*","*",null,null,"*","*",null,null,"*","*",null,null,null,null,null,null,"*","*",null,null,"*","*",null,null,"*","*",null,null,null,null,null,null,null,null,null,null,"*","*",null,null,"*","*",null,null,"*","*",null,null,"*","*"]
[null,null,null,"*","*",null,null,"*","*",null,null,"*","*",null,null,"*","*",null,null,null,null,null,null,null,null,null,null,"*","*",null,null,"*","*",null,null,"*","*",null,null,null,null,null,null,"*","*",null,null,"*","*",null,null,"*","*",null,null,"*","*",null,null,null,null,null,null,null,null,null,null,"*","*",null,null,"*","*",null,null,"*","*"]
[null,"(警告）",null,"Y",null,null,"Y",null,null,"R",null,null,"タ イ ム",null,null,null,null,null,null,null,"タ イ ム",null,null,null,null,null,null,null,"(警告）",null,"Y",null,null,"Y",null,null,"R",null,null,null,null,"(警告）",null,"Y",null,null,"Y",null,null,"R",null,null,"タ イ ム",null,null,null,null,null,null,null,"タ イ ム",null,null,null,null,null,null,null,"(警告）",null,"Y",null,null,"Y",null,null,"R"]
[null,"該当事項",null,null,null,null,null,null,null,null,null,null,"A　　　５　　・　　５",null,null,null,null,null,null,null,"A　　　５　　・　　５",null,null,null,null,null,null,null,"該当事項",null,null,null,null,null,null,null,null,null,null,null,null,"該当事項",null,null,null,null,null,null,null,null,null,null,"A　　　５　　・　　５",null,null,null,null,null,null,null,"A　　　５　　・　　５",null,null,null,null,null,null,null,"該当事項"]
[null,null,null,null,null,null,null,null,null,null,null,null,"B　　　５　　・　　５",null,null,null,null,null,null,null,"B　　　５　　・　　５",null,null,null,null,null,null,null,null,null,null,null,null,null,null,null,null,null,null,null,null,null,null,null,null,null,null,null,null,null,null,null,"B　　　５　　・　　５",null,null,null,null,null,null,null,"B　　　５　　・　　５"]
[null,"勝者サイン\nNO.",null,null,null,null,null,null,null,null,null,"進行",null,null,null,null,null,null,null,null,"点検",null,null,null,null,null,null,null,null,null,"記録",null,null,null,null,null,null,null,null,null,null,"勝者サイン\nNO.",null,null,null,null,null,null,null,null,null,"進行",null,null,null,null,null,null,null,null,"点検",null,null,null,null,null,null,null,null,null,"記録"]
[]
[null,"千葉県ソフトテニス",null,null,null,null,null,null,null,null,null,null,null,null,null,null,null,null,null,null,null,null,null,null,null,null,null,null,null,null,null,null,null,null,null,null,null,null,null,null,null,"千葉県ソフトテニス"]
[]
[null,"個　人　戦　採　点　表",null,null,null,null,null,null,null,null,null,null,null,null,null,null,null,null,null,null,null,null,null,null,null,null,null,null,null,null,null,null,null,null,null,null,null,null,null,null,null,"個　人　戦　採　点　表"]
[null,"種別",null,null,{"$f":"IF('採点票(作成画面)'!$A$1=\"\",\"\",'採点票(作成画面)'!$A$1)","v":""},null,null,null,null,null,"第",null,{"$f":"IF('採点票(作成画面)'!C10=\"\",\"\",'採点票(作成画面)'!C10)","v":""},null,null,null,"コート",null,null,null,"　正審\n\n　　　　　　　",null,null,null,null,null,null,null,null,null,"副審\n\n　　　　　　",null,null,null,null,null,null,null,null,null,null,"種別",null,null,{"$f":"IF('採点票(作成画面)'!$A$1=\"\",\"\",'採点票(作成画面)'!$A$1)","v":""},null,null,null,null,null,"第",null,{"$f":"IF('採点票(作成画面)'!C18=\"\",\"\",'採点票(作成画面)'!C18)","v":""},null,null,null,"コート",null,null,null,"　正審\n\n　　　　　　　",null,null,null,null,null,null,null,null,null,"副審\n\n　　　　　　"]
[null,null,null,null,null,null,null,null,null,null,null,null,null,null,null,null,null,null,null,null,{"$f":"IF('採点票(作成画面)'!U10=\"\",\"\",'採点票(作成画面)'!U10&\".\"&\"   \"&'採点票(作成画面)'!V10)","v":""},null,null,null,null,null,null,null,null,null,null,null,null,null,null,null,null,null,null,null,null,null,null,null,null,null,null,null,null,null,null,null,null,null,null,null,null,null,null,null,{"$f":"IF('採点票(作成画面)'!U18=\"\",\"\",'採点票(作成画面)'!U18&\".\"&\"   \"&'採点票(作成画面)'!V18)","v":""}]
[null,{"$f":"IF('採点票(作成画面)'!D10=\"\",\"第　　　　回戦\",'採点票(作成画面)'!D10)","v":"第　　　　回戦"},null,null,null,null,null,null,null,null,"開始　　　　　　　：　　　　　",null,null,null,null,null,null,null,null,null,"線審\n\n　　　　　　　",null,null,null,null,null,null,null,null,null,"線審\n\n　　　　　　",null,null,null,null,null,null,null,null,null,null,{"$f":"IF('採点票(作成画面)'!D18=\"\",\"第　　　　回戦\",'採点票(作成画面)'!D18)","v":"第　　　　回戦"},null,null,null,null,null,null,null,null,"開始　　　　　　　：　　　　　",null,null,null,null,null,null,null,null,null,"線審\n\n　　　　　　　",null,null,null,null,null,null,null,null,null,"線審\n\n　　　　　　"]
[null,null,null,null,null,null,null,null,null,null,"終了　　　　　　　：　　　　　",null,null,null,null,null,null,null,null,null,null,null,null,null,null,null,null,null,null,null,null,null,null,null,null,null,null,null,null,null,null,null,null,null,null,null,null,null,null,null,"終了　　　　　　　：　　　　　"]
[null,"№",{"$f":"IF('採点票(作成画面)'!F10<>\"\",'採点票(作成画面)'!F10,\"\")","v":""},null,null,null,"所属",null,null,{"$f":"IFERROR('採点票(作成画面)'!K10,\"\")","v":""},null,null,null,null,null,null,null,"(スコアー）",null,null,null,null,null,"№",{"$f":"IF('採点票(作成画面)'!N10<>\"\",'採点票(作成画面)'!N10,\"\")","v":""},null,null,null,"所属",null,null,{"$f":"IFERROR('採点票(作成画面)'!S10,\"\")","v":""},null,null,null,null,null,null,null,null,null,"№",{"$f":"IF('採点票(作成画面)'!F18<>\"\",'採点票(作成画面)'!F18,\"\")","v":""},null,null,null,"所属",null,null,{"$f":"IFERROR('採点票(作成画面)'!K18,\"\")","v":""},null,null,null,null,null,null,null,"(スコアー）",null,null,null,null,null,"№",{"$f":"IF('採点票(作成画面)'!N18<>\"\",'採点票(作成画面)'!N18,\"\")","v":""},null,null,null,"所属",null,null,{"$f":"IFERROR('採点票(作成画面)'!S18,\"\")","v":""}]
[]
[null,"プレーヤー",null,null,"A",{"$f":"IFERROR('採点票(作成画面)'!G10,\"\")","v":""},null,null,null,null,null,null,null,null,null,null,null,null,null,null,null,null,null,"プレーヤー",null,null,"A",{"$f":"IFERROR('採点票(作成画面)'!O10,\"\")","v":""},null,null,null,null,null,null,null,null,null,null,null,null,null,"プレーヤー",null,null,"A",{"$f":"IFERROR('採点票(作成画面)'!G18,\"\")","v":""},null,null,null,null,null,null,null,null,null,null,null,null,null,null,null,null,null,"プレーヤー",null,null,"A",{"$f":"IFERROR('採点票(作成画面)'!O18,\"\")","v":""}]
[]
[null,null,null,null,null,null,null,null,null,null,null,null,null,null,null,null,null,null,null,"―",null,null,null,null,null,null,null,null,null,null,null,null,null,null,null,null,null,null,null,null,null,null,null,null,null,null,null,null,null,null,null,null,null,null,null,null,null,null,null,"―"]
[null,null,null,null,"B",{"$f":"IFERROR('採点票(作成画面)'!I10,\"\")","v":""},null,null,null,null,null,null,null,null,null,null,null,null,null,null,null,null,null,null,null,null,"B",{"$f":"IFERROR('採点票(作成画面)'!Q10,\"\")","v":""},null,null,null,null,null,null,null,null,null,null,null,null,null,null,null,null,"B",{"$f":"IFERROR('採点票(作成画面)'!I18,\"\")","v":""},null,null,null,null,null,null,null,null,null,null,null,null,null,null,null,null,null,null,null,null,"B",{"$f":"IFERROR('採点票(作成画面)'!Q18,\"\")","v":""}]
[]
[null,"サイド",null,null,null,null,null,null,null,null,null,null,null,null,null,null,null,null,null,null,null,null,null,"サイド",null,null,null,null,null,null,null,null,null,null,null,null,null,null,null,null,null,"サイド",null,null,null,null,null,null,null,null,null,null,null,null,null,null,null,null,null,null,null,null,null,"サイド"]
[null,"S R",null,null,null,null,null,null,null,null,null,null,null,null,null,null,null,"　-①-　",null,null,null,null,null,"S R",null,null,null,null,null,null,null,null,null,null,null,null,null,null,null,null,null,"S R",null,null,null,null,null,null,null,null,null,null,null,null,null,null,null,"　-①-　",null,null,null,null,null,"S R"]
[]
[null,"S R",null,null,null,null,null,null,null,null,null,null,null,null,null,null,null,"　-②-　",null,null,null,null,null,"S R",null,null,null,null,null,null,null,null,null,null,null,null,null,null,null,null,null,"S R",null,null,null,null,null,null,null,null,null,null,null,null,null,null,null,"　-②-　",null,null,null,null,null,"S R"]
[]
[null,"S R",null,null,null,null,null,null,null,null,null,null,null,null,null,null,null,"　-③-　",null,null,null,null,null,"S R",null,null,null,null,null,null,null,null,null,null,null,null,null,null,null,null,null,"S R",null,null,null,null,null,null,null,null,null,null,null,null,null,null,null,"　-③-　",null,null,null,null,null,"S R"]
[]
[null,"S R",null,null,null,null,null,null,null,null,null,null,null,null,null,null,null,"　-④-　",null,null,null,null,null,"S R",null,null,null,null,null,null,null,null,null,null,null,null,null,null,null,null,null,"S R",null,null,null,null,null,null,null,null,null,null,null,null,null,null,null,"　-④-　",null,null,null,null,null,"S R"]
[]
[null,"S R",null,null,null,null,null,null,null,null,null,null,null,null,null,null,null,"　-⑤-　",null,null,null,null,null,"S R",null,null,null,null,null,null,null,null,null,null,null,null,null,null,null,null,null,"S R",null,null,null,null,null,null,null,null,null,null,null,null,null,null,null,"　-⑤-　",null,null,null,null,null,"S R"]
[]
[null,"S R",null,null,null,null,null,null,null,null,null,null,null,null,null,null,null,"　-⑥-　",null,null,null,null,null,"S R",null,null,null,null,null,null,null,null,null,null,null,null,null,null,null,null,null,"S R",null,null,null,null,null,null,null,null,null,null,null,null,null,null,null,"　-⑥-　",null,null,null,null,null,"S R"]
[]
[null,"S R",null,"*","*",null,null,"*","*",null,null,"*","*",null,null,"*","*","　-F-　",null,null,null,null,null,"S R",null,null,null,"*","*",null,null,"*","*",null,null,"*","*",null,null,null,null,"S R",null,"*","*",null,null,"*","*",null,null,"*","*",null,null,"*","*","　-F-　",null,null,null,null,null,"S R",null,null,null,"*","*",null,null,"*","*",null,null,"*","*"]
[null,null,null,null,null,"*","*",null,null,"*","*",null,null,"*","*",null,null,null,null,null,null,null,null,null,null,"*","*",null,null,"*","*",null,null,"*","*",null,null,"*","*",null,null,null,null,null,null,"*","*",null,null,"*","*",null,null,"*","*",null,null,null,null,null,null,null,null,null,null,"*","*",null,null,"*","*",null,null,"*","*",null,null,"*","*"]
[null,null,null,"*","*",null,null,"*","*",null,null,"*","*",null,null,"*","*",null,null,null,null,null,null,null,null,null,null,"*","*",null,null,"*","*",null,null,"*","*",null,null,null,null,null,null,"*","*",null,null,"*","*",null,null,"*","*",null,null,"*","*",null,null,null,null,null,null,null,null,null,null,"*","*",null,null,"*","*",null,null,"*","*"]
[null,"(警告）",null,"Y",null,null,"Y",null,null,"R",null,null,"タ イ ム",null,null,null,null,null,null,null,"タ イ ム",null,null,null,null,null,null,null,"(警告）",null,"Y",null,null,"Y",null,null,"R",null,null,null,null,"(警告）",null,"Y",null,null,"Y",null,null,"R",null,null,"タ イ ム",null,null,null,null,null,null,null,"タ イ ム",null,null,null,null,null,null,null,"(警告）",null,"Y",null,null,"Y",null,null,"R"]
[null,"該当事項",null,null,null,null,null,null,null,null,null,null,"A　　　５　　・　　５",null,null,null,null,null,null,null,"A　　　５　　・　　５",null,null,null,null,null,null,null,"該当事項",null,null,null,null,null,null,null,null,null,null,null,null,"該当事項",null,null,null,null,null,null,null,null,null,null,"A　　　５　　・　　５",null,null,null,null,null,null,null,"A　　　５　　・　　５",null,null,null,null,null,null,null,"該当事項"]
[null,null,null,null,null,null,null,null,null,null,null,null,"B　　　５　　・　　５",null,null,null,null,null,null,null,"B　　　５　　・　　５",null,null,null,null,null,null,null,null,null,null,null,null,null,null,null,null,null,null,null,null,null,null,null,null,null,null,null,null,null,null,null,"B　　　５　　・　　５",null,null,null,null,null,null,null,"B　　　５　　・　　５"]
[null,"勝者サイン\nNO.",null,null,null,null,null,null,null,null,null,"進行",null,null,null,null,null,null,null,null,"点検",null,null,null,null,null,null,null,null,null,"記録",null,null,null,null,null,null,null,null,null,null,"勝者サイン\nNO.",null,null,null,null,null,null,null,null,null,"進行",null,null,null,null,null,null,null,null,"点検",null,null,null,null,null,null,null,null,null,"記録"]
[]
[null,"千葉県ソフトテニス",null,null,null,null,null,null,null,null,null,null,null,null,null,null,null,null,null,null,null,null,null,null,null,null,null,null,null,null,null,null,null,null,null,null,null,null,null,null,null,"千葉県ソフトテニス"]
[]
[null,"個　人　戦　採　点　表",null,null,null,null,null,null,null,null,null,null,null,null,null,null,null,null,null,null,null,null,null,null,null,null,null,null,null,null,null,null,null,null,null,null,null,null,null,null,null,"個　人　戦　採　点　表"]
[null,"種別",null,null,{"$f":"IF('採点票(作成画面)'!$A$1=\"\",\"\",'採点票(作成画面)'!$A$1)","v":""},null,null,null,null,null,"第",null,{"$f":"IF('採点票(作成画面)'!C11=\"\",\"\",'採点票(作成画面)'!C11)","v":""},null,null,null,"コート",null,null,null,"　正審\n\n　　　　　　　",null,null,null,null,null,null,null,null,null,"副審\n\n　　　　　　",null,null,null,null,null,null,null,null,null,null,"種別",null,null,{"$f":"IF('採点票(作成画面)'!$A$1=\"\",\"\",'採点票(作成画面)'!$A$1)","v":""},null,null,null,null,null,"第",null,{"$f":"IF('採点票(作成画面)'!C19=\"\",\"\",'採点票(作成画面)'!C19)","v":""},null,null,null,"コート",null,null,null,"　正審\n\n　　　　　　　",null,null,null,null,null,null,null,null,null,"副審\n\n　　　　　　"]
[null,null,null,null,null,null,null,null,null,null,null,null,null,null,null,null,null,null,null,null,{"$f":"IF('採点票(作成画面)'!U11=\"\",\"\",'採点票(作成画面)'!U11&\".\"&\"   \"&'採点票(作成画面)'!V11)","v":""},null,null,null,null,null,null,null,null,null,null,null,null,null,null,null,null,null,null,null,null,null,null,null,null,null,null,null,null,null,null,null,null,null,null,null,null,null,null,null,{"$f":"IF('採点票(作成画面)'!U19=\"\",\"\",'採点票(作成画面)'!U19&\".\"&\"   \"&'採点票(作成画面)'!V19)","v":""}]
[null,{"$f":"IF('採点票(作成画面)'!D11=\"\",\"第　　　　回戦\",'採点票(作成画面)'!D11)","v":"第　　　　回戦"},null,null,null,null,null,null,null,null,"開始　　　　　　　：　　　　　",null,null,null,null,null,null,null,null,null,"線審\n\n　　　　　　　",null,null,null,null,null,null,null,null,null,"線審\n\n　　　　　　",null,null,null,null,null,null,null,null,null,null,{"$f":"IF('採点票(作成画面)'!D19=\"\",\"第　　　　回戦\",'採点票(作成画面)'!D19)","v":"第　　　　回戦"},null,null,null,null,null,null,null,null,"開始　　　　　　　：　　　　　",null,null,null,null,null,null,null,null,null,"線審\n\n　　　　　　　",null,null,null,null,null,null,null,null,null,"線審\n\n　　　　　　"]
[null,null,null,null,null,null,null,null,null,null,"終了　　　　　　　：　　　　　",null,null,null,null,null,null,null,null,null,null,null,null,null,null,null,null,null,null,null,null,null,null,null,null,null,null,null,null,null,null,null,null,null,null,null,null,null,null,null,"終了　　　　　　　：　　　　　"]
[null,"№",{"$f":"IF('採点票(作成画面)'!F11<>\"\",'採点票(作成画面)'!F11,\"\")","v":""},null,null,null,"所属",null,null,{"$f":"IFERROR('採点票(作成画面)'!K11,\"\")","v":""},null,null,null,null,null,null,null,"(スコアー）",null,null,null,null,null,"№",{"$f":"IF('採点票(作成画面)'!N11<>\"\",'採点票(作成画面)'!N11,\"\")","v":""},null,null,null,"所属",null,null,{"$f":"IFERROR('採点票(作成画面)'!S11,\"\")","v":""},null,null,null,null,null,null,null,null,null,"№",{"$f":"IF('採点票(作成画面)'!F19<>\"\",'採点票(作成画面)'!F19,\"\")","v":""},null,null,null,"所属",null,null,{"$f":"IFERROR('採点票(作成画面)'!K19,\"\")","v":""},null,null,null,null,null,null,null,"(スコアー）",null,null,null,null,null,"№",{"$f":"IF('採点票(作成画面)'!N19<>\"\",'採点票(作成画面)'!N19,\"\")","v":""},null,null,null,"所属",null,null,{"$f":"IFERROR('採点票(作成画面)'!S19,\"\")","v":""}]
[]
[null,"プレーヤー",null,null,"A",{"$f":"IFERROR('採点票(作成画面)'!G11,\"\")","v":""},null,null,null,null,null,null,null,null,null,null,null,null,null,null,null,null,null,"プレーヤー",null,null,"A",{"$f":"IFERROR('採点票(作成画面)'!O11,\"\")","v":""},null,null,null,null,null,null,null,null,null,null,null,null,null,"プレーヤー",null,null,"A",{"$f":"IFERROR('採点票(作成画面)'!G19,\"\")","v":""},null,null,null,null,null,null,null,null,null,null,null,null,null,null,null,null,null,"プレーヤー",null,null,"A",{"$f":"IFERROR('採点票(作成画面)'!O19,\"\")","v":""}]
[]
[null,null,null,null,null,null,null,null,null,null,null,null,null,null,null,null,null,null,null,"―",null,null,null,null,null,null,null,null,null,null,null,null,null,null,null,null,null,null,null,null,null,null,null,null,null,null,null,null,null,null,null,null,null,null,null,null,null,null,null,"―"]
[null,null,null,null,"B",{"$f":"IFERROR('採点票(作成画面)'!I11,\"\")","v":""},null,null,null,null,null,null,null,null,null,null,null,null,null,null,null,null,null,null,null,null,"B",{"$f":"IFERROR('採点票(作成画面)'!Q11,\"\")","v":""},null,null,null,null,null,null,null,null,null,null,null,null,null,null,null,null,"B",{"$f":"IFERROR('採点票(作成画面)'!I19,\"\")","v":""},null,null,null,null,null,null,null,null,null,null,null,null,null,null,null,null,null,null,null,null,"B",{"$f":"IFERROR('採点票(作成画面)'!Q19,\"\")","v":""}]
[]
[null,"サイド",null,null,null,null,null,null,null,null,null,null,null,null,null,null,null,null,null,null,null,null,null,"サイド",null,null,null,null,null,null,null,null,null,null,null,null,null,null,null,null,null,"サイド",null,null,null,null,null,null,null,null,null,null,null,null,null,null,null,null,null,null,null,null,null,"サイド"]
[null,"S R",null,null,null,null,null,null,null,null,null,null,null,null,null,null,null,"　-①-　",null,null,null,null,null,"S R",null,null,null,null,null,null,null,null,null,null,null,null,null,null,null,null,null,"S R",null,null,null,null,null,null,null,null,null,null,null,null,null,null,null,"　-①-　",null,null,null,null,null,"S R"]
[]
[null,"S R",null,null,null,null,null,null,null,null,null,null,null,null,null,null,null,"　-②-　",null,null,null,null,null,"S R",null,null,null,null,null,null,null,null,null,null,null,null,null,null,null,null,null,"S R",null,null,null,null,null,null,null,null,null,null,null,null,null,null,null,"　-②-　",null,null,null,null,null,"S R"]
[]
[null,"S R",null,null,null,null,null,null,null,null,null,null,null,null,null,null,null,"　-③-　",null,null,null,null,null,"S R",null,null,null,null,null,null,null,null,null,null,null,null,null,null,null,null,null,"S R",null,null,null,null,null,null,null,null,null,null,null,null,null,null,null,"　-③-　",null,null,null,null,null,"S R"]
[]
[null,"S R",null,null,null,null,null,null,null,null,null,null,null,null,null,null,null,"　-④-　",null,null,null,null,null,"S R",null,null,null,null,null,null,null,null,null,null,null,null,null,null,null,null,null,"S R",null,null,null,null,null,null,null,null,null,null,null,null,null,null,null,"　-④-　",null,null,null,null,null,"S R"]
[]
[null,"S R",null,null,null,null,null,null,null,null,null,null,null,null,null,null,null,"　-⑤-　",null,null,null,null,null,"S R",null,null,null,null,null,null,null,null,null,null,null,null,null,null,null,null,null,"S R",null,null,null,null,null,null,null,null,null,null,null,null,null,null,null,"　-⑤-　",null,null,null,null,null,"S R"]
[]
[null,"S R",null,null,null,null,null,null,null,null,null,null,null,null,null,null,null,"　-⑥-　",null,null,null,null,null,"S R",null,null,null,null,null,null,null,null,null,null,null,null,null,null,null,null,null,"S R",null,null,null,null,null,null,null,null,null,null,null,null,null,null,null,"　-⑥-　",null,null,null,null,null,"S R"]
[]
[null,"S R",null,"*","*",null,null,"*","*",null,null,"*","*",null,null,"*","*","　-F-　",null,null,null,null,null,"S R",null,null,null,"*","*",null,null,"*","*",null,null,"*","*",null,null,null,null,"S R",null,"*","*",null,null,"*","*",null,null,"*","*",null,null,"*","*","　-F-　",null,null,null,null,null,"S R",null,null,null,"*","*",null,null,"*","*",null,null,"*","*"]
[null,null,null,null,null,"*","*",null,null,"*","*",null,null,"*","*",null,null,null,null,null,null,null,null,null,null,"*","*",null,null,"*","*",null,null,"*","*",null,null,"*","*",null,null,null,null,null,null,"*","*",null,null,"*","*",null,null,"*","*",null,null,null,null,null,null,null,null,null,null,"*","*",null,null,"*","*",null,null,"*","*",null,null,"*","*"]
[null,null,null,"*","*",null,null,"*","*",null,null,"*","*",null,null,"*","*",null,null,null,null,null,null,null,null,null,null,"*","*",null,null,"*","*",null,null,"*","*",null,null,null,null,null,null,"*","*",null,null,"*","*",null,null,"*","*",null,null,"*","*",null,null,null,null,null,null,null,null,null,null,"*","*",null,null,"*","*",null,null,"*","*"]
[null,"(警告）",null,"Y",null,null,"Y",null,null,"R",null,null,"タ イ ム",null,null,null,null,null,null,null,"タ イ ム",null,null,null,null,null,null,null,"(警告）",null,"Y",null,null,"Y",null,null,"R",null,null,null,null,"(警告）",null,"Y",null,null,"Y",null,null,"R",null,null,"タ イ ム",null,null,null,null,null,null,null,"タ イ ム",null,null,null,null,null,null,null,"(警告）",null,"Y",null,null,"Y",null,null,"R"]
[null,"該当事項",null,null,null,null,null,null,null,null,null,null,"A　　　５　　・　　５",null,null,null,null,null,null,null,"A　　　５　　・　　５",null,null,null,null,null,null,null,"該当事項",null,null,null,null,null,null,null,null,null,null,null,null,"該当事項",null,null,null,null,null,null,null,null,null,null,"A　　　５　　・　　５",null,null,null,null,null,null,null,"A　　　５　　・　　５",null,null,null,null,null,null,null,"該当事項"]
[null,null,null,null,null,null,null,null,null,null,null,null,"B　　　５　　・　　５",null,null,null,null,null,null,null,"B　　　５　　・　　５",null,null,null,null,null,null,null,null,null,null,null,null,null,null,null,null,null,null,null,null,null,null,null,null,null,null,null,null,null,null,null,"B　　　５　　・　　５",null,null,null,null,null,null,null,"B　　　５　　・　　５"]
[null,"勝者サイン\nNO.",null,null,null,null,null,null,null,null,null,"進行",null,null,null,null,null,null,null,null,"点検",null,null,null,null,null,null,null,null,null,"記録",null,null,null,null,null,null,null,null,null,null,"勝者サイン\nNO.",null,null,null,null,null,null,null,null,null,"進行",null,null,null,null,null,null,null,null,"点検",null,null,null,null,null,null,null,null,null,"記録"]
[]
[null,"千葉県ソフトテニス",null,null,null,null,null,null,null,null,null,null,null,null,null,null,null,null,null,null,null,null,null,null,null,null,null,null,null,null,null,null,null,null,null,null,null,null,null,null,null,"千葉県ソフトテニス"]
[]
[null,"個　人　戦　採　点　表",null,null,null,null,null,null,null,null,null,null,null,null,null,null,null,null,null,null,null,null,null,null,null,null,null,null,null,null,null,null,null,null,null,null,null,null,null,null,null,"個　人　戦　採　点　表"]
[null,"種別",null,null,{"$f":"IF('採点票(作成画面)'!$A$1=\"\",\"\",'採点票(作成画面)'!$A$1)","v":""},null,null,null,null,null,"第",null,{"$f":"IF('採点票(作成画面)'!C12=\"\",\"\",'採点票(作成画面)'!C12)","v":""},null,null,null,"コート",null,null,null,"　正審\n\n　　　　　　　",null,null,null,null,null,null,null,null,null,"副審\n\n　　　　　　",null,null,null,null,null,null,null,null,null,null,"種別",null,null,{"$f":"IF('採点票(作成画面)'!$A$1=\"\",\"\",'採点票(作成画面)'!$A$1)","v":""},null,null,null,null,null,"第",null,{"$f":"IF('採点票(作成画面)'!C20=\"\",\"\",'採点票(作成画面)'!C20)","v":""},null,null,null,"コート",null,null,null,"　正審\n\n　　　　　　　",null,null,null,null,null,null,null,null,null,"副審\n\n　　　　　　"]
[null,null,null,null,null,null,null,null,null,null,null,null,null,null,null,null,null,null,null,null,{"$f":"IF('採点票(作成画面)'!U12=\"\",\"\",'採点票(作成画面)'!U12&\".\"&\"   \"&'採点票(作成画面)'!V12)","v":""},null,null,null,null,null,null,null,null,null,null,null,null,null,null,null,null,null,null,null,null,null,null,null,null,null,null,null,null,null,null,null,null,null,null,null,null,null,null,null,{"$f":"IF('採点票(作成画面)'!U20=\"\",\"\",'採点票(作成画面)'!U20&\".\"&\"   \"&'採点票(作成画面)'!V20)","v":""}]
[null,{"$f":"IF('採点票(作成画面)'!D12=\"\",\"第　　　　回戦\",'採点票(作成画面)'!D12)","v":"第　　　　回戦"},null,null,null,null,null,null,null,null,"開始　　　　　　　：　　　　　",null,null,null,null,null,null,null,null,null,"線審\n\n　　　　　　　",null,null,null,null,null,null,null,null,null,"線審\n\n　　　　　　",null,null,null,null,null,null,null,null,null,null,{"$f":"IF('採点票(作成画面)'!D20=\"\",\"第　　　　回戦\",'採点票(作成画面)'!D20)","v":"第　　　　回戦"},null,null,null,null,null,null,null,null,"開始　　　　　　　：　　　　　",null,null,null,null,null,null,null,null,null,"線審\n\n　　　　　　　",null,null,null,null,null,null,null,null,null,"線審\n\n　　　　　　"]
[null,null,null,null,null,null,null,null,null,null,"終了　　　　　　　：　　　　　",null,null,null,null,null,null,null,null,null,null,null,null,null,null,null,null,null,null,null,null,null,null,null,null,null,null,null,null,null,null,null,null,null,null,null,null,null,null,null,"終了　　　　　　　：　　　　　"]
[null,"№",{"$f":"IF('採点票(作成画面)'!F12<>\"\",'採点票(作成画面)'!F12,\"\")","v":""},null,null,null,"所属",null,null,{"$f":"IFERROR('採点票(作成画面)'!K12,\"\")","v":""},null,null,null,null,null,null,null,"(スコアー）",null,null,null,null,null,"№",{"$f":"IF('採点票(作成画面)'!N12<>\"\",'採点票(作成画面)'!N12,\"\")","v":""},null,null,null,"所属",null,null,{"$f":"IFERROR('採点票(作成画面)'!S12,\"\")","v":""},null,null,null,null,null,null,null,null,null,"№",{"$f":"IF('採点票(作成画面)'!F20<>\"\",'採点票(作成画面)'!F20,\"\")","v":""},null,null,null,"所属",null,null,{"$f":"IFERROR('採点票(作成画面)'!K20,\"\")","v":""},null,null,null,null,null,null,null,"(スコアー）",null,null,null,null,null,"№",{"$f":"IF('採点票(作成画面)'!N20<>\"\",'採点票(作成画面)'!N20,\"\")","v":""},null,null,null,"所属",null,null,{"$f":"IFERROR('採点票(作成画面)'!S20,\"\")","v":""}]
[]
[null,"プレーヤー",null,null,"A",{"$f":"IFERROR('採点票(作成画面)'!G12,\"\")","v":""},null,null,null,null,null,null,null,null,null,null,null,null,null,null,null,null,null,"プレーヤー",null,null,"A",{"$f":"IFERROR('採点票(作成画面)'!O12,\"\")","v":""},null,null,null,null,null,null,null,null,null,null,null,null,null,"プレーヤー",null,null,"A",{"$f":"IFERROR('採点票(作成画面)'!G20,\"\")","v":""},null,null,null,null,null,null,null,null,null,null,null,null,null,null,null,null,null,"プレーヤー",null,null,"A",{"$f":"IFERROR('採点票(作成画面)'!O20,\"\")","v":""}]
[]
[null,null,null,null,null,null,null,null,null,null,null,null,null,null,null,null,null,null,null,"―",null,null,null,null,null,null,null,null,null,null,null,null,null,null,null,null,null,null,null,null,null,null,null,null,null,null,null,null,null,null,null,null,null,null,null,null,null,null,null,"―"]
[null,null,null,null,"B",{"$f":"IFERROR('採点票(作成画面)'!I12,\"\")","v":""},null,null,null,null,null,null,null,null,null,null,null,null,null,null,null,null,null,null,null,null,"B",{"$f":"IFERROR('採点票(作成画面)'!Q12,\"\")","v":""},null,null,null,null,null,null,null,null,null,null,null,null,null,null,null,null,"B",{"$f":"IFERROR('採点票(作成画面)'!I20,\"\")","v":""},null,null,null,null,null,null,null,null,null,null,null,null,null,null,null,null,null,null,null,null,"B",{"$f":"IFERROR('採点票(作成画面)'!Q20,\"\")","v":""}]
[]
[null,"サイド",null,null,null,null,null,null,null,null,null,null,null,null,null,null,null,null,null,null,null,null,null,"サイド",null,null,null,null,null,null,null,null,null,null,null,null,null,null,null,null,null,"サイド",null,null,null,null,null,null,null,null,null,null,null,null,null,null,null,null,null,null,null,null,null,"サイド"]
[null,"S R",null,null,null,null,null,null,null,null,null,null,null,null,null,null,null,"　-①-　",null,null,null,null,null,"S R",null,null,null,null,null,null,null,null,null,null,null,null,null,null,null,null,null,"S R",null,null,null,null,null,null,null,null,null,null,null,null,null,null,null,"　-①-　",null,null,null,null,null,"S R"]
[]
[null,"S R",null,null,null,null,null,null,null,null,null,null,null,null,null,null,null,"　-②-　",null,null,null,null,null,"S R",null,null,null,null,null,null,null,null,null,null,null,null,null,null,null,null,null,"S R",null,null,null,null,null,null,null,null,null,null,null,null,null,null,null,"　-②-　",null,null,null,null,null,"S R"]
[]
[null,"S R",null,null,null,null,null,null,null,null,null,null,null,null,null,null,null,"　-③-　",null,null,null,null,null,"S R",null,null,null,null,null,null,null,null,null,null,null,null,null,null,null,null,null,"S R",null,null,null,null,null,null,null,null,null,null,null,null,null,null,null,"　-③-　",null,null,null,null,null,"S R"]
[]
[null,"S R",null,null,null,null,null,null,null,null,null,null,null,null,null,null,null,"　-④-　",null,null,null,null,null,"S R",null,null,null,null,null,null,null,null,null,null,null,null,null,null,null,null,null,"S R",null,null,null,null,null,null,null,null,null,null,null,null,null,null,null,"　-④-　",null,null,null,null,null,"S R"]
[]
[null,"S R",null,null,null,null,null,null,null,null,null,null,null,null,null,null,null,"　-⑤-　",null,null,null,null,null,"S R",null,null,null,null,null,null,null,null,null,null,null,null,null,null,null,null,null,"S R",null,null,null,null,null,null,null,null,null,null,null,null,null,null,null,"　-⑤-　",null,null,null,null,null,"S R"]
[]
[null,"S R",null,null,null,null,null,null,null,null,null,null,null,null,null,null,null,"　-⑥-　",null,null,null,null,null,"S R",null,null,null,null,null,null,null,null,null,null,null,null,null,null,null,null,null,"S R",null,null,null,null,null,null,null,null,null,null,null,null,null,null,null,"　-⑥-　",null,null,null,null,null,"S R"]
[]
[null,"S R",null,"*","*",null,null,"*","*",null,null,"*","*",null,null,"*","*","　-F-　",null,null,null,null,null,"S R",null,null,null,"*","*",null,null,"*","*",null,null,"*","*",null,null,null,null,"S R",null,"*","*",null,null,"*","*",null,null,"*","*",null,null,"*","*","　-F-　",null,null,null,null,null,"S R",null,null,null,"*","*",null,null,"*","*",null,null,"*","*"]
[null,null,null,null,null,"*","*",null,null,"*","*",null,null,"*","*",null,null,null,null,null,null,null,null,null,null,"*","*",null,null,"*","*",null,null,"*","*",null,null,"*","*",null,null,null,null,null,null,"*","*",null,null,"*","*",null,null,"*","*",null,null,null,null,null,null,null,null,null,null,"*","*",null,null,"*","*",null,null,"*","*",null,null,"*","*"]
[null,null,null,"*","*",null,null,"*","*",null,null,"*","*",null,null,"*","*",null,null,null,null,null,null,null,null,null,null,"*","*",null,null,"*","*",null,null,"*","*",null,null,null,null,null,null,"*","*",null,null,"*","*",null,null,"*","*",null,null,"*","*",null,null,null,null,null,null,null,null,null,null,"*","*",null,null,"*","*",null,null,"*","*"]
[null,"(警告）",null,"Y",null,null,"Y",null,null,"R",null,null,"タ イ ム",null,null,null,null,null,null,null,"タ イ ム",null,null,null,null,null,null,null,"(警告）",null,"Y",null,null,"Y",null,null,"R",null,null,null,null,"(警告）",null,"Y",null,null,"Y",null,null,"R",null,null,"タ イ ム",null,null,null,null,null,null,null,"タ イ ム",null,null,null,null,null,null,null,"(警告）",null,"Y",null,null,"Y",null,null,"R"]
[null,"該当事項",null,null,null,null,null,null,null,null,null,null,"A　　　５　　・　　５",null,null,null,null,null,null,null,"A　　　５　　・　　５",null,null,null,null,null,null,null,"該当事項",null,null,null,null,null,null,null,null,null,null,null,null,"該当事項",null,null,null,null,null,null,null,null,null,null,"A　　　５　　・　　５",null,null,null,null,null,null,null,"A　　　５　　・　　５",null,null,null,null,null,null,null,"該当事項"]
[null,null,null,null,null,null,null,null,null,null,null,null,"B　　　５　　・　　５",null,null,null,null,null,null,null,"B　　　５　　・　　５",null,null,null,null,null,null,null,null,null,null,null,null,null,null,null,null,null,null,null,null,null,null,null,null,null,null,null,null,null,null,null,"B　　　５　　・　　５",null,null,null,null,null,null,null,"B　　　５　　・　　５"]
[null,"勝者サイン\nNO.",null,null,null,null,null,null,null,null,null,"進行",null,null,null,null,null,null,null,null,"点検",null,null,null,null,null,null,null,null,null,"記録",null,null,null,null,null,null,null,null,null,null,"勝者サイン\nNO.",null,null,null,null,null,null,null,null,null,"進行",null,null,null,null,null,null,null,null,"点検",null,null,null,null,null,null,null,null,null,"記録"]
[]
[null,"千葉県ソフトテニス",null,null,null,null,null,null,null,null,null,null,null,null,null,null,null,null,null,null,null,null,null,null,null,null,null,null,null,null,null,null,null,null,null,null,null,null,null,null,null,"千葉県ソフトテニス"]